Workbook

Sheet Tutorial
A1: Tutorial for transient waveform simulator v1.2.1
A2: Simulation circuit
A3: This transient simulation tool is designed for synchronous buck converter circuit shown in figure 1.
A4: Basically, the circuit has eight components: input votlage VIN, high side MOSFET MHS with package parasitic inductances and resistances, low side MOSFET MLS with package parasitic inductances and resistances, output inductance with parasitic resistance, output capacitance with parasitic resistance, load resistance, high side driver pulse and low side driver pulse.
A5: LDH, RDH, RSH, LSH are parasitic inductance and resistance of high side MOSFET at drain side and source side respectively. RDL, LDL, RSL, LSL are parasitic inductance and resistance of low side MOSFET at drain side and source side respectively. RLL is parasitic resistance of output inductance LL, RC1 is parasitic resistance of output capacitance of C1.
A26: Driver pulses Driver pulse of high side MOSFET are schematicaly shown in figure 2. Gate pulse of low side MOSFET is complimentary for high side gate pulse with deadtime.
A27: In figure 2, V1 is low voltage of gate pulse, V2 is high voltage of gate pulse, Tr is is pulse rising time, and Tf is pulse falling time, PW is pulse with. Deadtime between high side gate pulse and low side gate pulse is not shown in figure 2. Deadtime is specified in parameter interface.
A28: here, pulse rising time and falling time for high side pulse also apply for low side pulse.
A49: Parameter Interface
A50: All the circuit parameters and simulation parameters must be specified in parameter interface shown in figure 3.
A51: These parameters are:
A52: 1. Circuit parameter: VIN, LL, RLL, CL, RCL, and Rload
A53: 2. High side parasitics: RDH, LDH, RSH, LSH
A54: 3. Low side parasitics: RDL, LDL, RSL, LSL
A55: 4. Driver parameters: V1, V2, TD, Tr, Tf, PW, Period, and deadtime
A56: 5. Circuit initial state: LL and CL
A57: 6. Simulation parameters: Time step and stop time
A58: 7. Select high side and low side MOSFET: MHS, MLS
A80: Start simulation
A81: After specify all the circuit parameters and simulation parameters, click the button "Start Simulation" to start simulation. Simulation results are instantly plotted in figure 4, in which users could monitor simulation process.
A84: Simulation Results: Figure 4 is a figure which would adjust itself based on driver pulse and simulation results. Whenever driver pulse is changed, figure 4 will change itself instantly, so that users could check whether the pulse they specified is right or not.
A102: Final simulation results are shown in figure 5. five simulation results are shown in figure 5: high side gate pulse, low side gate pulse, phase node votlage, load current and high side current. Voltages are shown in left axis and currents are shown in right axis.
A138: Note
A139: If you interrupt a simulation, please click the button on the bottom left to reset macros.
A142: For information or feedback, please contact
A143: Zhiyang Chen
A144: Sr. Application Engineer
A145: Zhiyang.Chen@onsemi.com

Sheet TransientSimulator
A1: Transient Waveform Simulator for Low Voltage MOSFETs | S1: Netlist3: | T1: Net List for Modified Nodal Analysis | AF1: Netlist4: | AG1: Linearized Net List for Jacobia matrix in newton-raphson iteration
A2: Input and output stage parameters | D2: High Side MOSFET | E2: NTMFS4925N | G2: Low Side MOSFET | H2: NTTFS4985NF | S2: Component | T2: Value | U2: Node+ | V2: Node- | W2: Branch | X2: Control+ | Y2: Control- | AF2: Component | AG2: Value | AH2: Node+ | AI2: Node- | AJ2: Branch | AK2: Control+ | AL2: Control-
A3: Vin | B3: 19 | C3: V | S3: R1 | T3: 1000000 | U3: 8 | V3: 9 | AF3: R1 | AG3: 1000000 | AH3: 8 | AI3: 9
A4: LL | B4: 1 | C4: uH | D4: High side package parameters | G4: High side gate pulse | S4: R2 | T4: 1000000 | U4: 6 | V4: 7 | AF4: R2 | AG4: 1000000 | AH4: 6 | AI4: 7
A5: RLL | B5: 1 | C5: mΩ | D5: RDH | E5: 0.5 | F5: mΩ | G5: V1 | H5: 0 | I5: V | S5: CGSHP | T5: 1e-12 | U5: 6 | V5: 7 | AF5: CGSHP | AG5: 1e-12 | AH5: 6 | AI5: 7
A6: CL | B6: 88 | C6: uF | D6: LDH | E6: 0.001 | F6: nH | G6: V2 | H6: 5 | I6: V | S6: RGH | T6: 0.78 | U6: 10 | V6: 6 | AF6: RGH | AG6: 0.78 | AH6: 10 | AI6: 6
A7: RCL | B7: 1 | C7: mΩ | D7: RSH | E7: 0.5 | F7: mΩ | G7: TD | H7: 10 | I7: ns | J7: Simultion ciruit | S7: LL | T7: 1e-06 | U7: 2 | V7: 3 | W7: 20 | AA7: 1 | AF7: LL | AG7: 1e-06 | AH7: 2 | AI7: 3 | AJ7: 20
A8: RLOAD | B8: 0.09 | C8: Ω | D8: LSH | E8: 1 | F8: nH | G8: Tr | H8: 2 | I8: ns | S8: RLL | T8: 0.001 | U8: 3 | V8: 4 | AF8: RLL | AG8: 0.001 | AH8: 3 | AI8: 4
A9: Initial conditions | D9: Low side package parameters | G9: PW | H9: 157.5 | I9: ns | S9: CL | T9: 8.8e-05 | U9: 5 | V9: 0 | AF9: CL | AG9: 8.8e-05 | AH9: 5 | AI9: 0
A10: LL | B10: 20 | C10: A | D10: RDL | E10: 0.5 | F10: mΩ | G10: Tf | H10: 2 | I10: ns | S10: RCL | T10: 0.001 | U10: 4 | V10: 5 | AF10: RCL | AG10: 0.001 | AH10: 4 | AI10: 5
A11: CL | B11: 1.8 | C11: V | D11: LDL | E11: 0.001 | F11: nH | G11: Period | H11: 1667 | I11: ns | S11: RLOAD | T11: 0.09 | U11: 4 | V11: 0 | AF11: RLOAD | AG11: 0.09 | AH11: 4 | AI11: 0
A12: Simulation parameters | D12: RSL | E12: 0.5 | F12: mΩ | G12: Deadtime | H12: 10 | I12: ns | S12: RGND1 | T12: 1000000 | U12: 7 | V12: 0 | AF12: RGND | AG12: 1000000000 | AH12: 7 | AI12: 0
A13: Time step | B13: 1 | C13: ns | D13: LSL | E13: 1 | F13: nH | S13: Rgmin | T13: 1000000 | U13: 2 | V13: 0 | AF13: Rgmin | AG13: 1000000000 | AH13: 2 | AI13: 0
A14: Stop time | B14: 200 | C14: ns | D14: progressing | E14: 1 | J14: Symbols of gate pulse | S14: RDH | T14: 0.0005 | U14: 18 | V14: 8 | AF14: RDH | AG14: 0.0005 | AH14: 18 | AI14: 8
S15: RSH | T15: 0.0005 | U15: 9 | V15: 19 | AF15: RSH | AG15: 0.0005 | AH15: 9 | AI15: 19
S16: IMOSH | T16: 5 | U16: 8 | V16: 9 | AF16: IMOSH | AG16: 5 | AH16: 8 | AI16: 9
S17: IDL | T17: 4 | U17: 16 | V17: 15 | AF17: Rg0H | AG17: 1000000 | AH17: 8 | AI17: 9
S18: VGH | T18: 2 | U18: 10 | V18: 2 | W18: 22 | AF18: GgmH | AG18: 1e-06 | AH18: 8 | AI18: 9 | AJ18: 6 | AK18: 7
S19: Vin | T19: 1 | U19: 1 | V19: 0 | W19: 21 | AF19: IDL | AG19: 4 | AH19: 16 | AI19: 15
S20: VGL | T20: 3 | U20: 12 | V20: 11 | W20: 23 | AF20: RDL_ | AG20: 0.001150178837 | AH20: 16 | AI20: 15
S21: IMOSL | T21: 6 | U21: 15 | V21: 16 | AF21: VGH | AG21: 2 | AH21: 10 | AI21: 2 | AJ21: 22
S22: RGL | T22: 0.7 | U22: 12 | V22: 13 | AF22: Vin | AG22: 1 | AH22: 1 | AI22: 0 | AJ22: 21
S23: CGSLP | T23: 1e-12 | U23: 13 | V23: 11 | AF23: VGL | AG23: 3 | AH23: 12 | AI23: 11 | AJ23: 23
S24: R3 | T24: 1000000 | U24: 13 | V24: 11 | AF24: IMOSL | AG24: 6 | AH24: 15 | AI24: 16
J25: Ggate pulse and simulation results | S25: RGND2 | T25: 1000000 | U25: 11 | V25: 0 | AF25: Rg0L | AG25: 1000000 | AH25: 15 | AI25: 16
B26: If you interrupt a simulation, please reset. | S26: IDH | T26: 7 | U26: 9 | V26: 8 | AF26: GgmL | AG26: 1e-06 | AH26: 15 | AI26: 16 | AJ26: 13 | AK26: 11
S27: RDL | T27: 0.0005 | U27: 2 | V27: 14 | AF27: RGL | AG27: 0.7 | AH27: 12 | AI27: 13
S28: LDL | T28: 1e-12 | U28: 14 | V28: 15 | W28: 24 | AF28: CGSLP | AG28: 1e-12 | AH28: 13 | AI28: 11
S29: RSL | T29: 0.0005 | U29: 16 | V29: 17 | AF29: R3 | AG29: 1000000 | AH29: 13 | AI29: 11
S30: LSL | T30: 1e-09 | U30: 17 | V30: 0 | W30: 25 | AF30: RGND2 | AG30: 1000000 | AH30: 11 | AI30: 0
S31: LDH | T31: 1e-12 | U31: 1 | V31: 18 | W31: 26 | AF31: IDH | AG31: 7 | AH31: 9 | AI31: 8
S32: LSH | T32: 1e-09 | U32: 19 | V32: 2 | W32: 27 | AF32: RDH_ | AG32: 1000000000 | AH32: 9 | AI32: 8
A33: Time Step | B33: =B13*0.000000001 -> 1e-09 | K33: High side MOSFET | S33: RLDH | T33: 1000000 | U33: 1 | V33: 18 | AF33: RDL | AG33: 0.0005 | AH33: 2 | AI33: 14
A34: Number of Simulation Steps | B34: =B14/B13 -> 200 | K34: gate-drain capacitances | L34: =IF(ISNUMBER(VLOOKUP(E2,MOSFETs!A1:T100,17,0)),VLOOKUP(E2,MOSFETs!A1:T100,17,0),E1-9) -> 5.5063e-10 | M34: Drain-source capacitances | O34: Gate-source capacitances | S34: RLSH | T34: 1000000 | U34: 19 | V34: 2 | AF34: LDL | AG34: 1e-12 | AH34: 14 | AI34: 15 | AJ34: 24
A35: Max number of iterations | B35: 1000 | K35: CJ0_GD_H | L35: =IF(ISNUMBER(VLOOKUP(E2,MOSFETs!A1:T100,17,0)),VLOOKUP(E2,MOSFETs!A1:T100,17,0),0.000000001) -> 5.5063e-10 | M35: CJ0_DS_H | N35: =IF(ISNUMBER(VLOOKUP(E2,MOSFETs!A1:T100,11,0)),VLOOKUP(E2,MOSFETs!A1:T100,11,0),0.000000001) -> 7.89e-10 | S35: RLDL | T35: 1000000 | U35: 14 | V35: 15 | AF35: RSL | AG35: 0.0005 | AH35: 16 | AI35: 17
A36: Number of inputs | B36: =B37+B38 -> 7 | K36: VJ_GD_H | L36: =IF(ISNUMBER(VLOOKUP(E2,MOSFETs!A1:T100,18,0)),VLOOKUP(E2,MOSFETs!A1:T100,18,0),0.000000001) -> 0.5 | M36: VJ_DS_H | N36: =IF(ISNUMBER(VLOOKUP(E2,MOSFETs!A1:T100,12,0)),VLOOKUP(E2,MOSFETs!A1:T100,12,0),E1-9) -> 3.20488 | S36: RLSL | T36: 1000000 | U36: 17 | V36: 0 | AF36: LSL | AG36: 1e-09 | AH36: 17 | AI36: 0 | AJ36: 25
A37: number of indendent sources | B37: 3 | K37: M_GD_H | L37: =IF(ISNUMBER(VLOOKUP(E2,MOSFETs!A1:T100,19,0)),VLOOKUP(E2,MOSFETs!A1:T100,19,0),0.000000001) -> 0.419972 | M37: M_DS_H | N37: =IF(ISNUMBER(VLOOKUP(E2,MOSFETs!A1:T100,13,0)),VLOOKUP(E2,MOSFETs!A1:T100,13,0),0.000000001) -> 0.505598 | S37: RL1P | T37: 1000000 | U37: 2 | V37: 3 | AF37: LDH | AG37: 1e-12 | AH37: 1 | AI37: 18 | AJ37: 26
A38: number of nonlinear components | B38: 4 | K38: FC_GD_H | L38: =IF(ISNUMBER(VLOOKUP(E2,MOSFETs!A1:T100,20,0)),VLOOKUP(E2,MOSFETs!A1:T100,20,0),0.000000001) -> 1e-08 | M38: FC_DS_H | N38: =IF(ISNUMBER(VLOOKUP(E2,MOSFETs!A1:T100,14,0)),VLOOKUP(E2,MOSFETs!A1:T100,14,0),0.000000001) -> 0.5 | S38: CGSL | T38: 2.07968e-05 | U38: 13 | V38: 11 | AF38: LSH | AG38: 1e-09 | AH38: 19 | AI38: 2 | AJ38: 27
A39: number of outputs | B39: =B40+B41 -> 27 | K39: CGDO_H | L39: =IF(ISNUMBER(VLOOKUP(E2,MOSFETs!A1:T100,7,0)),VLOOKUP(E2,MOSFETs!A1:T100,7,0)*0.0001,0.000000001) -> 7.62997e-12 | M39: TT_H | N39: =IF(ISNUMBER(VLOOKUP(E2,MOSFETs!A1:T100,10,0)),VLOOKUP(E2,MOSFETs!A1:T100,10,0),0.000000001) -> 1.8e-08 | O39: CGSO_H | P39: =IF(ISNUMBER(VLOOKUP(E2,MOSFETs!A1:T100,6,0)),VLOOKUP(E2,MOSFETs!A1:T100,6,0)*0.0001,0.000000001) -> 1.143e-09 | S39: CGDL | T39: 4.707058432e-10 | U39: 13 | V39: 15 | AF39: RLDH | AG39: 1000000 | AH39: 1 | AI39: 18
A40: number of nodes | B40: 19 | S40: CDSL | T40: 2.830193168e-09 | U40: 15 | V40: 16 | AF40: RLSH | AG40: 1000000 | AH40: 19 | AI40: 2
A41: number of observable current | B41: 8 | K41: Low side MOSFET | S41: CGSH | T41: 1.143e-09 | U41: 6 | V41: 7 | AF41: RLDL | AG41: 1000000 | AH41: 14 | AI41: 15
A42: Absolute Tolerance | B42: 1e-06 | C42: min= 1e-6 | D42: max= 100e-6 | K42: gate-drain capacitances | M42: Drain-source capacitances | O42: Gate-source capacitances | S42: CGDH | T42: 1.246017093e-10 | U42: 6 | V42: 8 | AF42: RLSL | AG42: 1000000 | AH42: 17 | AI42: 0
A43: Relative Tolerance | B43: 1e-06 | C43: min= 1e-6 | D43: max= 10e-3 | K43: CJ0_GD_L | L43: =IF(ISNUMBER(VLOOKUP(H2,MOSFETs!A1:T100,17,0)),VLOOKUP(H2,MOSFETs!A1:T100,17,0),0.000000001) -> 3.79148e-10 | M43: CJ0_DS_L | N43: =IF(ISNUMBER(VLOOKUP(H2,MOSFETs!A1:T100,11,0)),VLOOKUP(H2,MOSFETs!A1:T100,11,0),0.000000001) -> 2.53591e-09 | S43: CDSH | T43: 2.932656997e-10 | U43: 8 | V43: 9 | AF43: RL1P | AG43: 1000000 | AH43: 2 | AI43: 3
K44: VJ_GD_L | L44: =IF(ISNUMBER(VLOOKUP(H2,MOSFETs!A1:T100,18,0)),VLOOKUP(H2,MOSFETs!A1:T100,18,0),0.000000001) -> 1.90314 | M44: VJ_DS_L | N44: =IF(ISNUMBER(VLOOKUP(H2,MOSFETs!A1:T100,12,0)),VLOOKUP(H2,MOSFETs!A1:T100,12,0),0.000000001) -> 2.76684 | S44: RCONT1 | T44: 1e-06 | U44: 7 | V44: 9 | AF44: CGSL | AG44: 2.07968e-05 | AH44: 13 | AI44: 11
A45: Diode | K45: M_GD_L | L45: =IF(ISNUMBER(VLOOKUP(H2,MOSFETs!A1:T100,19,0)),VLOOKUP(H2,MOSFETs!A1:T100,19,0),0.000000001) -> 0.84836 | M45: M_DS_L | N45: =IF(ISNUMBER(VLOOKUP(H2,MOSFETs!A1:T100,13,0)),VLOOKUP(H2,MOSFETs!A1:T100,13,0),0.000000001) -> 0.580663 | S45: RCONT2 | T45: 1e-06 | U45: 11 | V45: 16 | AF45: CGDL | AG45: 4.707058432e-10 | AH45: 13 | AI45: 15
A46: VT | B46: 0.0259 | K46: FC_GD_L | L46: =IF(ISNUMBER(VLOOKUP(H2,MOSFETs!A1:T100,20,0)),VLOOKUP(H2,MOSFETs!A1:T100,20,0),0.000000001) -> 1e-08 | M46: FC_DS_L | N46: =IF(ISNUMBER(VLOOKUP(H2,MOSFETs!A1:T100,14,0)),VLOOKUP(H2,MOSFETs!A1:T100,14,0),0.000000001) -> 0.5 | AF46: CDSL | AG46: 2.830193168e-09 | AH46: 15 | AI46: 16
K47: CGDO_L | L47: =IF(ISNUMBER(VLOOKUP(H2,MOSFETs!A1:T100,7,0)),VLOOKUP(H2,MOSFETs!A1:T100,7,0),0.000000001) -> 1e-11 | M47: TT_L | N47: =IF(ISNUMBER(VLOOKUP(H2,MOSFETs!A1:T100,10,0)),VLOOKUP(H2,MOSFETs!A1:T100,10,0),0.000000001) -> 0 | O47: CGSO_L | P47: =IF(ISNUMBER(VLOOKUP(H2,MOSFETs!A1:T100,6,0)),VLOOKUP(H2,MOSFETs!A1:T100,6,0),0.000000001) -> 2.07968e-05 | AF47: CGSH | AG47: 1.143e-09 | AH47: 6 | AI47: 7
AF48: CGDH | AG48: 1.246017093e-10 | AH48: 6 | AI48: 8
AF49: CDSH | AG49: 2.932656997e-10 | AH49: 8 | AI49: 9
AF50: RCONT1 | AG50: 1e-06 | AH50: 7 | AI50: 9
K51: High side MOSFET parameters | N51: Low side MOSFET parameters | AF51: RCONT2 | AG51: 1e-06 | AH51: 11 | AI51: 16
K52: VTO_HS | L52: =IF(ISNUMBER(VLOOKUP(E2,MOSFETs!A1:T100,3,0)),VLOOKUP(E2,MOSFETs!A1:T100,3,0),0.000000001) -> 2.131 | M52: V | N52: VTO_LS | O52: =IF(ISNUMBER(VLOOKUP(H2,MOSFETs!A1:T100,3,0)),VLOOKUP(H2,MOSFETs!A1:T100,3,0),0.000000001) -> 2.30134 | P52: V
K53: KP_HS | L53: =IF(ISNUMBER(VLOOKUP(E2,MOSFETs!A1:T100,5,0)),VLOOKUP(E2,MOSFETs!A1:T100,5,0),0.000000001) -> 138.5 | M53: S | N53: KP_LS | O53: =IF(ISNUMBER(VLOOKUP(H2,MOSFETs!A1:T100,5,0)),VLOOKUP(H2,MOSFETs!A1:T100,5,0),0.000000001) -> 209.385 | P53: S
A54: =10*(3-0.5*0.3541)*0.3541 -> 9.99606595 | K54: CGSH | L54: 0.1 | M54: nF | N54: CGSL | O54: 0.1 | P54: nF
K55: CGDH | L55: 0.1 | M55: nF | N55: CGDL | O55: 0.1 | P55: nF
K56: CDSH | L56: 1 | M56: nF | N56: CDSL | O56: 1 | P56: nF
K58: High side diode parameters | N58: Low side diode parameters
K59: N_H | L59: 1 | N59: N_L | O59: 1
K60: IS_H | L60: =IF(ISNUMBER(VLOOKUP(E2,MOSFETs!A1:T100,8,0)),VLOOKUP(E2,MOSFETs!A1:T100,8,0),0.000000001) -> 1.0908e-12 | M60: A | N60: IS_L | O60: =IF(ISNUMBER(VLOOKUP(H2,MOSFETs!A1:T100,8,0)),VLOOKUP(H2,MOSFETs!A1:T100,8,0),0.000000001) -> 2.288998e-07 | P60: A
K62: High side driver parameters | N62: Low side driver parameters
K63: VGH | L63: =V2_ -> 5 | M63: V | N63: VGL | O63: =V2_ -> 5 | P63: V
K64: RGH | L64: =IF(ISNUMBER(VLOOKUP(E2,MOSFETs!A1:T100,2,0)),VLOOKUP(E2,MOSFETs!A1:T100,2,0),0.000000001) -> 0.78 | M64: Ω | N64: RGL | O64: =IF(ISNUMBER(VLOOKUP(H2,MOSFETs!A1:T100,2,0)),VLOOKUP(H2,MOSFETs!A1:T100,2,0),0.000000001) -> 0.7 | P64: Ω
AX153: Initialguess_highsideon
AX154: 19 | AY154: 19 | AZ154: 1 | BA154: 1 | BB154: 1 | BC154: 24 | BD154: 19 | BE154: 19 | BF154: 19 | BG154: 24 | BH154: 0 | BI154: 0 | BJ154: 0 | BK154: 19 | BL154: 19 | BM154: 0 | BN154: 0 | BO154: 19 | BP154: 19 | BQ154: 1 | BR154: -1 | BS154: 1 | BT154: 0 | BU154: 0 | BV154: 0 | BW154: 1 | BX154: 1
AX155: initialguess_lowsideon
AX156: 19 | AY156: -0.1 | AZ156: 1 | BA156: 1 | BB156: 1 | BC156: -1 | BD156: -1 | BE156: 19 | BF156: -1 | BG156: -1 | BH156: -1 | BI156: 5 | BJ156: 5 | BK156: -1 | BL156: -1 | BM156: -1 | BN156: -1 | BO156: 19 | BP156: -1 | BQ156: 1 | BR156: 0 | BS156: 0 | BT156: 1 | BU156: -1 | BV156: -1 | BW156: 0 | BX156: 0
AX157: initialguess_deadtime
AX158: 19 | AY158: -1 | AZ158: 1 | BA158: 1 | BB158: 1 | BC158: -1 | BD158: -1 | BE158: 19 | BF158: -1 | BG158: -1 | BH158: -1 | BI158: -1 | BJ158: -1 | BK158: -1 | BL158: -1 | BM158: -1 | BN158: -1 | BO158: 19 | BP158: -1 | BQ158: 1 | BR158: 0 | BS158: 0 | BT158: 0 | BU158: -1 | BV158: -1 | BW158: 0 | BX158: 0
H159: nonlinearsourcemax | I159: 100 | J159: 100 | K159: 50 | L159: 10 | M159: 20 | N159: 38 | O159: 3 | P159: 3 | Q159: 3 | R159: 53 | S159: 38 | T159: 38 | U159: 38 | V159: 53 | W159: 38 | X159: 53 | Y159: 53 | Z159: 38 | AA159: 38 | AB159: 38 | AC159: 38 | AD159: 38 | AE159: 38 | AF159: 50 | AG159: 10 | AH159: 5 | AI159: 5 | AJ159: 50 | AK159: 50 | AL159: 100 | AM159: 100
D160: ResultTable | H160: nonlinearsourcemin | I160: -100 | J160: -10 | K160: -50 | L160: -20 | M160: 18 | N160: -38 | O160: -1 | P160: -1 | Q160: -1 | R160: -38 | S160: -38 | T160: -38 | U160: -38 | V160: -38 | W160: -38 | X160: -38 | Y160: -38 | Z160: -38 | AA160: -38 | AB160: -38 | AC160: -38 | AD160: -38 | AE160: -38 | AF160: -10 | AG160: -100 | AH160: -5 | AI160: -5 | AJ160: -50 | AK160: -50 | AL160: -10 | AM160: -10 | AP160: Iteration table
A161: V | B161: ID | F161: Vin | G161: VGH | H161: VGL | I161: IDN0 | J161: IMOSH | K161: IMOSL | L161: IDH | M161: V(1) | N161: V(2) | O161: V(3) | P161: V(4) | Q161: V(5) | R161: V(6) | S161: V(7) | T161: V(8) | U161: V(9) | V161: V(10) | W161: V(11) | X161: V(112) | Y161: V(13) | Z161: V(14) | AA161: V(15) | AB161: V(16) | AC161: V(17) | AD161: V(18) | AE161: V(19) | AF161: IL1 | AG161: I(VIN) | AH161: I(VGH) | AI161: I(VGL) | AJ161: I(LDL) | AK161: I(LSL) | AL161: I(LDH) | AM161: I(LSLH | AQ161: Vin | AR161: VGH | AS161: VGL | AT161: IDL | AU161: IMOSH | AV161: IMOSL | AW161: IDH | AX161: V(1) | AY161: V(2) | AZ161: V(3) | BA161: V(4) | BB161: V(5) | BC161: V(6) | BD161: V(7) | BE161: V(8) | BF161: V(9) | BG161: V(10) | BH161: V(11) | BI161: V(12) | BJ161: V(13) | BK161: V(14) | BL161: V(15) | BM161: V(16) | BN161: V(17) | BO161: V(18) | BP161: V(19) | BQ161: IL1 | BR161: I(VIN) | BS161: I(VGH) | BT161: I(VGL) | BU161: I(LDL) | BV161: I(LSL) | BW161: I(LDH) | BX161: I(LSH)
A162: 0 | B162: =$O$60*(EXP(A162/$B$46)-1) -> 0 | D162: Points | E162: Time | F162: input1 | G162: input2 | H162: input3 | I162: input4 | J162: input5 | K162: input6 | L162: input7 | M162: output1 | N162: output2 | O162: output3 | P162: output4 | Q162: output5 | R162: output6 | S162: output7 | T162: output8 | U162: output9 | V162: output10 | W162: output11 | X162: output12 | Y162: output13 | Z162: output14 | AA162: output15 | AB162: output16 | AC162: output17 | AD162: output18 | AE162: output19 | AF162: output20 | AG162: output21 | AH162: output22 | AI162: output23 | AJ162: output24 | AK162: output25 | AL162: output26 | AM162: output27 | AP162: iteration | AQ162: input1 | AR162: input2 | AS162: input3 | AT162: input4 | AU162: input5 | AV162: input6 | AW162: input7 | AX162: output1 | AY162: output2 | AZ162: output3 | BA162: output4 | BB162: output5 | BC162: output6 | BD162: output7 | BE162: output8 | BF162: output9 | BG162: output10 | BH162: output11 | BI162: output12 | BJ162: output13 | BK162: output14 | BL162: output15 | BM162: output16 | BN162: output17 | BO162: output18 | BP162: output19 | BQ162: output20 | BR162: output21 | BS162: output22 | BT162: output23 | BU162: output24 | BV162: output25 | BW162: output26 | BX162: output27
A163: 0.01 | B163: 1.078649917e-07 | D163: 0 | E163: 0 | F163: 19 | G163: 0 | H163: 0 | I163: 0 | J163: 0 | K163: 1 | L163: 0 | M163: 19 | N163: 0 | O163: 1.8 | P163: 1.8 | Q163: 1.8 | R163: 0 | S163: 0 | T163: 19 | U163: 0 | V163: 0 | W163: 0 | X163: 0 | Y163: 0 | Z163: 0 | AA163: 0 | AB163: 0 | AC163: 0 | AD163: 19 | AE163: 0 | AF163: 20 | AG163: 0 | AH163: 0 | AI163: 0 | AJ163: -20 | AK163: -20 | AL163: 0 | AM163: 0 | AP163: 0 | AQ163: 19 | AR163: 0 | AS163: 5 | AT163: 0 | AU163: 0 | AV163: 0 | AW163: -1.0908e-12 | AX163: 19 | AY163: -0.1 | AZ163: 1 | BA163: 1 | BB163: 1 | BC163: -1 | BD163: -1 | BE163: 19 | BF163: -1 | BG163: -1 | BH163: -1 | BI163: 5 | BJ163: 5 | BK163: -1 | BL163: -1 | BM163: -1 | BN163: -1 | BO163: 19 | BP163: -1 | BQ163: 1 | BR163: 0 | BS163: 0 | BT163: 1 | BU163: -1 | BV163: -1 | BW163: 0 | BX163: 0
A164: 0.02 | B164: 2.665594575e-07 | D164: 1 | E164: 1e-09 | F164: 19 | G164: 0 | H164: 0 | I164: 18.49127359 | J164: 0 | K164: 0 | L164: -1.0908e-12 | M164: 19 | N164: -0.3619455624 | O164: 1.819995631 | P164: 1.799997816 | Q164: 1.799999975 | R164: -0.3144023294 | S164: -0.295685364 | T164: 18.99980923 | U164: -0.2956853426 | V164: -0.3619455624 | W164: 0.1194287702 | X164: 0.1194287702 | Y164: 0.119419947 | Z164: -0.3520102446 | AA164: -0.3521396092 | AB164: 0.1194289537 | AC164: 0.1293642715 | AD164: 18.99987282 | AE164: -0.2957184562 | AF164: 19.99781806 | AG164: -0.1271797395 | AH164: 0.06095286275 | AI164: -1.260453839e-05 | AJ164: -19.87063548 | AK164: -19.87063573 | AL164: 0.1271797394 | AM164: 0.06622710622 | AP164: 1 | AQ164: 19 | AR164: 0 | AS164: 5 | AT164: 5.323744713e-07 | AU164: 0 | AV164: 0 | AW164: -1.0908e-12 | AX164: 19 | AY164: -0.1676796075 | AZ164: 1.82788163 | BA164: 1.805360902 | BB164: 1.802899739 | BC164: -0.2121402197 | BD164: -0.2255354819 | BE164: 19.00017217 | BF164: -0.2255355036 | BG164: -0.1676796075 | BH164: -0.1251245881 | BI164: 4.874875412 | BJ164: -0.1188887197 | BK164: -0.1563628781 | BL164: -0.1562490698 | BM164: -0.1251247977 | BN164: -0.1138080684 | BO164: 19.0001158 | BP164: -0.2255076389 | BQ164: 22.52073049 | BR164: 0.112731264 | BS164: -0.05700078495 | BT164: -5 | BU164: -22.63345866 | BV164: -22.63345842 | BW164: -0.1127312639 | BX164: -0.05572942188
A165: 0.03 | B165: 5.000358901e-07 | D165: 2 | E165: 2e-09 | F165: 19 | G165: 0 | H165: 0 | I165: 19.898981 | J165: 0 | K165: 0 | L165: -1.0908e-12 | M165: 19 | N165: -0.528016069 | O165: 1.819990911 | P165: 1.799995443 | Q165: 1.799999925 | R165: -0.5198470913 | S165: -0.5144523607 | T165: 18.99999184 | U165: -0.514452376 | V165: -0.528016069 | W165: -0.04456000504 | X165: -0.04456000504 | Y165: -0.04456887045 | Z165: -0.5180634474 | AA165: -0.5180288397 | AB165: -0.04456000415 | AC165: -0.03460738258 | AD165: 19.00003696 | AE165: -0.5144922515 | AF165: 19.99547005 | AG165: -0.09022347113 | AH165: 0.01047304832 | AI165: -1.266487313e-05 | AJ165: -19.90524319 | AK165: -19.90524311 | AL165: 0.09022347117 | AM165: 0.07975092372 | AP165: 2 | AQ165: 19 | AR165: 0 | AS165: 5 | AT165: 0.005041624715 | AU165: 0 | AV165: 0 | AW165: -1.0908e-12 | AX165: 19 | AY165: -5.183884552 | AZ165: 1.827871587 | BA165: 1.80535588 | BB165: 1.802899682 | BC165: -4.575287932 | BD165: -4.331757127 | BE165: 18.99755199 | BF165: -4.331756855 | BG165: -5.183884552 | BH165: 1.627548505 | BI165: 6.627548505 | BJ165: 1.633631124 | BK165: -5.173443724 | BL165: 1.368551483 | BM165: 1.627551483 | BN165: 1.637992311 | BO165: 18.99836902 | BP165: -4.332183755 | BQ165: 22.51571429 | BR165: -1.634052106 | BS165: 0.780252077 | BT165: -5 | BU165: -20.88165478 | BV165: -20.88165804 | BW165: 1.634052105 | BX165: 0.8537994065
A166: 0.04 | B166: 8.435339718e-07 | D166: 3 | E166: 3e-09 | F166: 19 | G166: 0 | H166: 0 | I166: 19.96542262 | J166: 0 | K166: 0 | L166: -1.0908e-12 | M166: 19 | N166: -0.5540453699 | O166: 1.819986112 | P166: 1.799993018 | Q166: 1.799999847 | R166: -0.5694250079 | S166: -0.586669377 | T166: 19.00004915 | U166: -0.5866694029 | V166: -0.5540453699 | W166: -0.07044688208 | X166: -0.07044688208 | Y166: -0.07045574883 | Z166: -0.5440625163 | AA166: -0.5440020522 | AB166: -0.07044688204 | AC166: -0.06046402844 | AD166: 19.00006284 | AE166: -0.5866929545 | AF166: 19.99309602 | AG166: -0.02738523524 | AH166: -0.01971748461 | AI166: -1.266678541e-05 | AJ166: -19.96570727 | AK166: -19.96570714 | AL166: 0.0273852353 | AM166: 0.0471033391 | AP166: 3 | AQ166: 19 | AR166: 0 | AS166: 5 | AT166: 0.01370495016 | AU166: 0 | AV166: 0 | AW166: -1.0908e-12 | AX166: 19 | AY166: -4.93157668 | AZ166: 1.827872092 | BA166: 1.805356133 | BB166: 1.802899685 | BC166: -4.355827837 | BD166: -4.12521997 | BE166: 18.99768379 | BF166: -4.125219713 | BG166: -4.93157668 | BH166: 1.539396802 | BI166: 6.539396802 | BJ166: 1.545487129 | BK166: -4.921091798 | BL166: 1.254499619 | BM166: 1.539399619 | BN166: 1.549884501 | BO166: 18.99845688 | BP166: -4.125623739 | BQ166: 22.5159666 | BR166: -1.546187567 | BS166: 0.7381395421 | BT166: -5 | BU166: -20.96976276 | BV166: -20.96976585 | BW166: 1.546187565 | BX166: 0.8080515504
A167: 0.05 | B167: 1.348899463e-06 | D167: 4 | E167: 4e-09 | F167: 19 | G167: 0 | H167: 0 | I167: 19.9996751 | J167: 0 | K167: 0 | L167: -1.0908e-12 | M167: 19 | N167: -0.527747763 | O167: 1.819981339 | P167: 1.799990593 | Q167: 1.799999743 | R167: -0.5401257961 | S167: -0.568054443 | T167: 19.000041 | U167: -0.5680544553 | V167: -0.527747763 | W167: -0.04411417217 | X167: -0.04411417217 | Y167: -0.04412303931 | Z167: -0.5177478522 | AA167: -0.517713738 | AB167: -0.04411417214 | AC167: -0.03411426143 | AD167: 19.00003646 | AE167: -0.5680578519 | AF167: 19.99074829 | AG167: 0.009076631486 | AH167: -0.01586927329 | AI167: -1.266734609e-05 | AJ167: -19.99982148 | AK167: -19.9998214 | AL167: -0.00907663145 | AM167: 0.006793250191 | AP167: 4 | AQ167: 19 | AR167: 0 | AS167: 5 | AT167: 0.03725431031 | AU167: 0 | AV167: 0 | AW167: -1.0908e-12 | AX167: 19 | AY167: -4.556576001 | AZ167: 1.827872843 | BA167: 1.805356508 | BB167: 1.802899689 | BC167: -4.029648314 | BD167: -3.818247691 | BE167: 18.99787967 | BF167: -3.818247455 | BG167: -4.556576001 | BH167: 1.408370477 | BI167: 6.408370477 | BJ167: 1.414472261 | BK167: -4.546025639 | BL167: 1.097573056 | BM167: 1.408373056 | BN167: 1.418923419 | BO167: 18.99858747 | BP167: -3.818617484 | BQ167: 22.5163416 | BR167: -1.415602057 | BS167: 0.675548317 | BT167: -5 | BU167: -21.10072411 | BV167: -21.10072693 | BW167: 1.415602056 | BX167: 0.7400571266
A168: 0.06 | B168: 2.092409525e-06 | D168: 5 | E168: 5e-09 | F168: 19 | G168: 0 | H168: 0 | I168: 20.00617952 | J168: 0 | K168: 0 | L168: -1.0908e-12 | M168: 19 | N168: -0.5000064414 | O168: 1.819976596 | P168: 1.79998817 | Q168: 1.799999613 | R168: -0.5002979108 | S168: -0.5242164934 | T168: 19.0000176 | U168: -0.5242164888 | V168: -0.5000064414 | W168: -0.01638896415 | X168: -0.01638896415 | Y168: -0.01639783087 | Z168: -0.4900033378 | AA168: -0.489996952 | AB168: -0.01638896414 | AC168: -0.006385860508 | AD168: 19.00000871 | AE168: -0.5242077847 | AF168: 19.98842831 | AG168: 0.01778232024 | AH168: -0.0003736787082 | AI168: -1.266674743e-05 | AJ168: -20.00620728 | AK168: -20.00620726 | AL168: -0.01778232023 | AM168: -0.01740809311 | AP168: 5 | AQ168: 19 | AR168: 0 | AS168: 5 | AT168: 0.101268108 | AU168: 0 | AV168: 0 | AW168: -1.0908e-12 | AX168: 19 | AY168: -3.794372382 | AZ168: 1.827874369 | BA168: 1.805357271 | BB168: 1.802899698 | BC168: -3.366675611 | BD168: -3.194314463 | BE168: 18.9982778 | BF168: -3.194314272 | BG168: -3.794372382 | BH168: 1.142054467 | BI168: 6.142054467 | BJ168: 1.148179536 | BK168: -3.783688928 | BL168: 0.8053565614 | BM168: 1.142056561 | BN168: 1.152740016 | BO168: 18.99885289 | BP168: -3.1946152 | BQ168: 22.5171038 | BR168: -1.150181768 | BS168: 0.548329194 | BT168: -5 | BU168: -21.36690804 | BV168: -21.36691033 | BW168: 1.150181767 | BX168: 0.6018557915
A169: 0.07 | B169: 3.186285585e-06 | D169: 6 | E169: 6e-09 | F169: 19 | G169: 0 | H169: 0 | I169: 19.99862312 | J169: 0 | K169: 0 | L169: -1.0908e-12 | M169: 19 | N169: -0.4859727789 | O169: 1.819971856 | P169: 1.799985736 | Q169: 1.799999457 | R169: -0.4782036773 | S169: -0.4910075814 | T169: 19.00000093 | U169: -0.4910075687 | V169: -0.4859727789 | W169: -0.002382896376 | X169: -0.002382896376 | Y169: -0.002391762269 | Z169: -0.4759734834 | AA169: -0.4759810999 | AB169: -0.00238289638 | AC169: 0.007616399047 | AD169: 18.99999469 | AE169: -0.4909963528 | AF169: 19.98612236 | AG169: 0.01247177655 | AH169: 0.00996038659 | AI169: -1.266556209e-05 | AJ169: -19.99859086 | AK169: -19.99859086 | AL169: -0.01247177655 | AM169: -0.02243166709 | AP169: 6 | AQ169: 19 | AR169: 0 | AS169: 5 | AT169: 0.2752756512 | AU169: 0 | AV169: 0 | AW169: -1.0908e-12 | AX169: 19 | AY169: -2.666596908 | AZ169: 1.827876627 | BA169: 1.8053584 | BB169: 1.802899711 | BC169: -2.385724676 | BD169: -2.271127311 | BE169: 18.99886688 | BF169: -2.271127186 | BG169: -2.666596908 | BH169: 0.7480064433 | BI169: 5.748006443 | BJ169: 0.7541659675 | BK169: -2.655716528 | BL169: 0.3854078216 | BM169: 0.7480078216 | BN169: 0.7588882023 | BO169: 18.99924561 | BP169: -2.271325871 | BQ169: 22.51823158 | BR169: -0.7574594543 | BS169: 0.3600926058 | BT169: -5 | BU169: -21.76076064 | BV169: -21.76076215 | BW169: 0.7574594535 | BX169: 0.3973696466
A170: 0.08 | B170: 4.795631435e-06 | D170: 7 | E170: 7e-09 | F170: 19 | G170: 0 | H170: 0 | I170: 19.98843874 | J170: 0 | K170: 0 | L170: -1.0908e-12 | M170: 19 | N170: -0.4833675972 | O170: 1.819967094 | P170: 1.799983278 | Q170: 1.799999275 | R170: -0.4744799742 | S170: -0.4769173204 | T170: 18.9999944 | U170: -0.4769173086 | V170: -0.4833675972 | W170: 0.0002014152841 | X170: 0.0002014152841 | Y170: 0.0001925502972 | Z170: -0.4733733996 | AA170: -0.4733835952 | AB170: 0.0002014152779 | AC170: 0.0101956129 | AD170: 18.99999211 | AE170: -0.4769093219 | AF170: 19.98381903 | AG170: 0.00457947384 | AH170: 0.01139438839 | AI170: -1.266426698e-05 | AJ170: -19.98839524 | AK170: -19.98839525 | AL170: -0.004579473848 | AM170: -0.01597339179 | AP170: 7 | AQ170: 19 | AR170: 0 | AS170: 5 | AT170: 0.7482771939 | AU170: 0 | AV170: 0 | AW170: -1.0908e-12 | AX170: 19 | AY170: -1.595763226 | AZ170: 1.827878771 | BA170: 1.805359472 | BB170: 1.802899723 | BC170: -1.454302313 | BD170: -1.394552223 | BE170: 18.99942622 | BF170: -1.394552161 | BG170: -1.595763226 | BH170: 0.3738536263 | BI170: 5.373853626 | BJ170: 0.3800458654 | BK170: -1.584695862 | BL170: -0.01464567587 | BM170: 0.3738543241 | BN170: 0.3849216883 | BO170: 18.99961851 | BP170: -1.394653766 | BQ170: 22.51930241 | BR170: -0.3845661454 | BS170: 0.1813601446 | BT170: -5 | BU170: -22.1347279 | BV170: -22.13472866 | BW170: 0.384566145 | BX170: 0.2032080698
A171: 0.09 | B171: 7.16335312e-06 | D171: 8 | E171: 8e-09 | F171: 19 | G171: 0 | H171: 0 | I171: 19.98085929 | J171: 0 | K171: 0 | L171: -1.0908e-12 | M171: 19 | N171: -0.4859801035 | O171: 1.819962303 | P171: 1.799980792 | Q171: 1.799999068 | R171: -0.4801869267 | S171: -0.4767538567 | T171: 18.9999944 | U171: -0.47675385 | V171: -0.4859801035 | W171: -0.002422070891 | X171: -0.002422070891 | Y171: -0.002430935047 | Z171: -0.4759896901 | AA171: -0.4759972584 | AB171: -0.002422070896 | AC171: 0.007568342554 | AD171: 18.99999474 | AE171: -0.4767504781 | AF171: 19.98151309 | AG171: -0.0006829160394 | AH171: 0.007427149845 | AI171: -1.266308057e-05 | AJ171: -19.9808269 | AK171: -19.98082691 | AL171: 0.0006829160341 | AM171: -0.006743766335 | AP171: 8 | AQ171: 19 | AR171: 0 | AS171: 5 | AT171: 2.034028692 | AU171: 0 | AV171: 0 | AW171: -1.0908e-12 | AX171: 19 | AY171: -0.93653927 | AZ171: 1.827880091 | BA171: 1.805360132 | BB171: 1.80289973 | BC171: -0.88090241 | BD171: -0.8549172681 | BE171: 18.99977056 | BF171: -0.8549172448 | BG171: -0.93653927 | BH171: 0.143518212 | BI171: 5.143518212 | BJ171: 0.149730591 | BK171: -0.9253567954 | BL171: -0.270881509 | BM171: 0.143518491 | BN171: 0.1547009656 | BO171: 18.99984807 | BP171: -0.8549590842 | BQ171: 22.51996163 | BR171: -0.1550067907 | BS171: 0.07132930773 | BT171: -5 | BU171: -22.36494909 | BV171: -22.36494939 | BW171: 0.1550067906 | BX171: 0.08367879533
A172: 0.1 | B172: 1.064682187e-05 | D172: 9 | E172: 9e-09 | F172: 19 | G172: 0 | H172: 0 | I172: 19.97662067 | J172: 0 | K172: 0 | L172: -1.0908e-12 | M172: 19 | N172: -0.489317716 | O172: 1.819957478 | P172: 1.799978277 | Q172: 1.799998834 | R172: -0.4873516309 | S172: -0.4824960821 | T172: 18.99999679 | U172: -0.4824960805 | V172: -0.489317716 | W172: -0.005763946404 | X172: -0.005763946404 | Y172: -0.005772809827 | Z172: -0.4793294147 | AA172: -0.4793336391 | AB172: -0.005763946406 | AC172: 0.004224354868 | AD172: 18.99999808 | AE172: -0.4824961194 | AF172: 19.97920381 | AG172: -0.00259797655 | AH172: 0.002520621946 | AI172: -1.266203372e-05 | AJ172: -19.97660255 | AK172: -19.97660255 | AL172: 0.002597976548 | AM172: 7.783028809e-05 | AP172: 9 | AQ172: 19 | AR172: 0 | AS172: 5 | AT172: 5.529063625 | AU172: 0 | AV172: 0 | AW172: -1.0908e-12 | AX172: 19 | AY172: -0.6384424823 | AZ172: 1.827880688 | BA172: 1.80536043 | BB172: 1.802899734 | BC172: -0.6216147031 | BD172: -0.6108978536 | BE172: 18.99992627 | BF172: -0.6108978477 | BG172: -0.6384424823 | BH172: 0.03936185301 | BI172: 5.039361853 | BJ172: 0.04558333918 | BK172: -0.6272079554 | BL172: -0.4009380574 | BM172: 0.03936194258 | BN172: 0.0505964695 | BO172: 18.99995187 | BP172: -0.610912662 | BQ172: 22.52025973 | BR172: -0.05120167858 | BS172: 0.02157407593 | BT172: -5 | BU172: -22.46905379 | BV172: -22.46905388 | BW172: 0.05120167853 | BX172: 0.02962842987
A173: 0.11 | B173: 1.57718138e-05 | D173: 10 | E173: 1e-08 | F173: 19 | G173: 0 | H173: 0 | I173: 19.97454875 | J173: 0 | K173: 0 | L173: -1.0908e-12 | M173: 19 | N173: -0.4914768147 | O173: 1.819952624 | P173: 1.799975734 | Q173: 1.799998574 | R173: -0.4920840765 | S173: -0.4884248519 | T173: 18.99999907 | U173: -0.4884248532 | V173: -0.4914768147 | W173: -0.007924601125 | X173: -0.007924601125 | Y173: -0.00793346388 | Z173: -0.4814895447 | AA173: -0.4814916074 | AB173: -0.007924601127 | AC173: 0.002062668814 | AD173: 19.00000025 | AE173: -0.4884264173 | AF173: 19.97689238 | AG173: -0.002349201336 | AH173: -0.000778540852 | AI173: -1.266107744e-05 | AJ173: -19.97453989 | AK173: -19.97453988 | AL173: 0.002349201337 | AM173: 0.003128227597 | AP173: 10 | AQ173: 19 | AR173: 0 | AS173: 5 | AT173: 15.02955357 | AU173: 0 | AV173: 0 | AW173: -1.0908e-12 | AX173: 19 | AY173: -0.529216706 | AZ173: 1.827880906 | BA173: 1.80536054 | BB173: 1.802899735 | BC173: -0.5266089801 | BD173: -0.5214865933 | BE173: 18.99998332 | BF173: -0.5214865938 | BG173: -0.529216706 | BH173: 0.001197816139 | BI173: 5.001197816 | BJ173: 0.007422639249 | BK173: -0.5179631066 | BL173: -0.4650021637 | BM173: 0.001197836305 | BN173: 0.01245143576 | BO173: 18.99998991 | BP173: -0.5214915058 | BQ173: 22.52036895 | BR173: -0.01316644534 | BS173: 0.003343238422 | BT173: -5 | BU173: -22.5071989 | BV173: -22.50719891 | BW173: 0.01316644533 | BX173: 0.009823809845
A174: 0.12 | B174: 2.331186775e-05 | D174: 11 | E174: 1.1e-08 | F174: 19 | G174: 2.5 | H174: 0 | I174: 20.28098229 | J174: 0 | K174: 0 | L174: -1.0908e-12 | M174: 19 | N174: -0.8022932616 | O174: 1.819947122 | P174: 1.799972855 | Q174: 1.799998285 | R174: 0.8283512792 | S174: 0.001524507284 | T174: 19.00046437 | U174: 0.001523557207 | V174: 1.697706738 | W174: -0.3178830517 | X174: -0.3178830517 | Y174: -0.3178919228 | Z174: -0.7921521204 | AA174: -0.7918443778 | AB174: -0.3178830515 | AC174: -0.3077419105 | AD174: 19.00031036 | AE174: 0.001120285918 | AF174: 19.97427014 | AG174: 0.308015701 | AH174: -1.114558281 | AI174: -1.267291527e-05 | AJ174: -20.28228242 | AK174: -20.28228179 | AL174: -0.3080157007 | AM174: 0.8065417751 | AP174: 11 | AQ174: 19 | AR174: 0 | AS174: 5 | AT174: 24.72206951 | AU174: 0 | AV174: 0 | AW174: -1.0908e-12 | AX174: 19 | AY174: -0.4995236678 | AZ174: 1.827880966 | BA174: 1.80536057 | BB174: 1.802899735 | BC174: -0.500781665 | BD174: -0.4971801339 | BE174: 18.99999883 | BF174: -0.4971801362 | BG174: -0.4995236678 | BH174: -0.009177110373 | BI174: 4.99082289 | BJ174: -0.002951380112 | BK174: -0.4882648835 | BL174: -0.4882669651 | BM174: -0.009177109074 | BN174: 0.002081675263 | BO174: 19.00000025 | BP174: -0.4971823562 | BQ174: 22.52039865 | BR174: -0.002826585229 | BS174: -0.001612816983 | BT174: -5 | BU174: -22.51756868 | BV174: -22.51756868 | BW174: 0.00282658523 | BX174: 0.004439921212
A175: 0.13 | B175: 3.440503907e-05 | D175: 12 | E175: 1.2e-08 | F175: 19 | G175: 5 | H175: 0 | I175: 19.8666283 | J175: 0.7848147195 | K175: 0 | L175: -1.0908e-12 | M175: 19 | N175: -0.07545852064 | O175: 1.819943047 | P175: 1.799970674 | Q175: 1.799997975 | R175: 3.408120123 | S175: 1.170663256 | T175: 18.99953072 | U175: 1.170661642 | V175: 4.924541479 | W175: 0.407483187 | X175: 0.407483187 | Y175: 0.4074743286 | Z175: -0.06552608797 | AA175: -0.06594350504 | AB175: 0.4074831868 | AC175: 0.4174156196 | AD175: 18.99958448 | AE175: 1.169635823 | AF175: 19.97237474 | AG175: -0.1075085908 | AH175: -1.944129944 | AI175: -1.265481311e-05 | AJ175: -19.86486535 | AK175: -19.86486617 | AL175: 0.1075085904 | AM175: 2.051636119 | AP175: 12 | AQ175: 19 | AR175: 0 | AS175: 5 | AT175: 22.61307488 | AU175: 0 | AV175: 0 | AW175: -1.0908e-12 | AX175: 19 | AY175: -0.4978128918 | AZ175: 1.827880969 | BA175: 1.805360571 | BB175: 1.802899735 | BC175: -0.4992936145 | BD175: -0.4957797083 | BE175: 18.99999973 | BF175: -0.4957797107 | BG175: -0.4978128918 | BH175: -0.009774890144 | BI175: 4.99022511 | BJ175: -0.003549107617 | BK175: -0.4865538087 | BL175: -0.4865552929 | BM175: -0.009774889932 | BN175: 0.001484193146 | BO175: 19.00000084 | BP175: -0.4957817756 | BQ175: 22.52040036 | BR175: -0.00223086831 | BS175: -0.001898362396 | BT175: -5 | BU175: -22.51816617 | BV175: -22.51816616 | BW175: 0.002230868311 | BX175: 0.004129725771
A176: 0.14 | B176: 5.072567164e-05 | D176: 13 | E176: 1.3e-08 | F176: 19 | G176: 5 | H176: 0 | I176: 16.60024121 | J176: 5.031199055 | K176: 0 | L176: -1.0908e-12 | M176: 19 | N176: 2.797877636 | O176: 1.819944702 | P176: 1.799971348 | Q176: 1.799997676 | R176: 7.245482432 | S176: 4.844940795 | T176: 18.99502482 | U176: 4.844940608 | V176: 7.797877636 | W176: 3.271664554 | X176: 3.271664554 | Y176: 3.271655801 | Z176: 2.806170087 | AA176: 2.802890124 | AB176: 3.271664551 | AC176: 3.279957004 | AD176: 18.99671905 | AE176: 4.842892282 | AF176: 19.97335267 | AG176: -3.388458676 | AH176: -0.7081989798 | AI176: -1.250402641e-05 | AJ176: -16.58490262 | AK176: -16.58490917 | AL176: 3.388458673 | AM176: 4.096650765 | AP176: 13 | AQ176: 19 | AR176: 0 | AS176: 5 | AT176: 22.51823709 | AU176: 0 | AV176: 0 | AW176: -1.0908e-12 | AX176: 19 | AY176: -0.4977322581 | AZ176: 1.827880969 | BA176: 1.805360571 | BB176: 1.802899735 | BC176: -0.4992234784 | BD176: -0.4957137023 | BE176: 18.99999977 | BF176: -0.4957137047 | BG176: -0.4977322581 | BH176: -0.009803065489 | BI176: 4.990196935 | BJ176: -0.003577280499 | BK176: -0.4864731609 | BL176: -0.4864746169 | BM176: -0.009803065329 | BN176: 0.00145603183 | BO176: 19.00000087 | BP176: -0.4957157622 | BQ176: 22.52040044 | BR176: -0.002202790708 | BS176: -0.001911820953 | BT176: -5 | BU176: -22.51819433 | BV176: -22.51819432 | BW176: 0.002202790709 | BX176: 0.004115105393
A177: 0.15 | B177: 7.473711432e-05 | D177: 14 | E177: 1.4e-08 | F177: 19 | G177: 5 | H177: 0 | I177: 13.50311179 | J177: 6.626051434 | K177: 0 | L177: -1.0908e-12 | M177: 19 | N177: 2.625590299 | O177: 1.819946017 | P177: 1.799971858 | Q177: 1.799997386 | R177: 7.553560978 | S177: 5.113234204 | T177: 18.99365546 | U177: 5.113234158 | V177: 7.625590299 | W177: 3.092659803 | X177: 3.092659803 | Y177: 3.092651171 | Z177: 2.632333049 | AA177: 2.629233647 | AB177: 3.0926598 | AC177: 3.099402552 | AD177: 18.99689979 | AE177: 5.109943655 | AF177: 19.97415832 | AG177: -6.488666434 | AH177: -0.09234528346 | AI177: -1.233111019e-05 | AJ177: -13.48550043 | AK177: -13.48550662 | AL177: 6.488666431 | AM177: 6.581004121 | AP177: 14 | AQ177: 19 | AR177: 0 | AS177: 5 | AT177: 22.51803847 | AU177: 0 | AV177: 0 | AW177: -1.0908e-12 | AX177: 19 | AY177: -0.4977320889 | AZ177: 1.827880969 | BA177: 1.805360571 | BB177: 1.802899735 | BC177: -0.4992233312 | BD177: -0.4957135638 | BE177: 18.99999977 | BF177: -0.4957135662 | BG177: -0.4977320889 | BH177: -0.009803124645 | BI177: 4.990196875 | BJ177: -0.003577339649 | BK177: -0.4864729917 | BL177: -0.4864744477 | BM177: -0.009803124484 | BN177: 0.001455972704 | BO177: 19.00000087 | BP177: -0.4957156237 | BQ177: 22.52040044 | BR177: -0.002202731838 | BS177: -0.001911849177 | BT177: -5 | BU177: -22.51819439 | BV177: -22.51819438 | BW177: 0.002202731839 | BX177: 0.004115074743
A178: 0.16 | B178: 0.0001100635257 | D178: 15 | E178: 1.5e-08 | F178: 19 | G178: 5 | H178: 0 | I178: 10.8946467 | J178: 8.882551312 | K178: 0 | L178: -1.0908e-12 | M178: 19 | N178: 2.143001082 | O178: 1.819946375 | P178: 1.799971893 | Q178: 1.799997099 | R178: 7.147734551 | S178: 4.658589484 | T178: 18.99284148 | U178: 4.658589428 | V178: 7.143001082 | W178: 2.603696888 | X178: 2.603696888 | Y178: 2.603688382 | Z178: 2.148439266 | AA178: 2.145830132 | AB178: 2.603696885 | AC178: 2.60913507 | AD178: 18.99739054 | AE178: 4.654043404 | AF178: 19.97448137 | AG178: -9.098122161 | AH178: 0.006068549539 | AI178: -1.215175896e-05 | AJ178: -10.87636634 | AK178: -10.87637155 | AL178: 9.098122159 | AM178: 9.092046442 | AP178: 15 | AQ178: 19 | AR178: 0 | AS178: 0 | AT178: 0.00131127482 | AU178: 11.47700671 | AV178: 0 | AW178: -1.0908e-12 | AX178: 19 | AY178: -2.428198897 | AZ178: 1.827395094 | BA178: 1.804809502 | BB178: 1.802277348 | BC178: -1.765228523 | BD178: -4.303331641 | BE178: 18.9951315 | BF178: -4.303331616 | BG178: -2.428198897 | BH178: -2.197656544 | BI178: -2.197656544 | BJ178: -2.197603555 | BK178: -2.423972303 | BL178: -2.421778874 | BM178: -2.1976558 | BN178: -2.193429207 | BO178: 19.0021977 | BP178: -4.309972836 | BQ178: 22.58559693 | BR178: -14.13239777 | BS178: 0.849962019 | BT178: 7.569841376e-05 | BU178: -8.453188162 | BV178: -8.453183773 | BW178: 14.13239778 | BX178: 13.28244194
A179: 0.17 | B179: 0.000162036885 | D179: 16 | E179: 1.6e-08 | F179: 19 | G179: 5 | H179: 0 | I179: 8.486274165 | J179: 11.3916894 | K179: 0 | L179: -1.0908e-12 | M179: 19 | N179: 1.953886719 | O179: 1.819946359 | P179: 1.799971744 | Q179: 1.799996815 | R179: 6.936311231 | S179: 4.399724089 | T179: 18.99183373 | U179: 4.399724035 | V179: 6.953886719 | W179: 2.407104278 | X179: 2.407104278 | Y179: 2.407095918 | Z179: 1.958119234 | AA179: 1.955707898 | AB179: 2.407104275 | AC179: 2.411336791 | AD179: 18.99758853 | AE179: 4.393957975 | AF179: 19.97461531 | AG179: -11.50959186 | AH179: -0.02253267651 | AI179: -1.194358746e-05 | AJ179: -8.465029941 | AK179: -8.465034757 | AL179: 11.50959186 | AM179: 11.5321177 | AP179: 16 | AQ179: 19 | AR179: 0 | AS179: 0 | AT179: 0.001311274814 | AU179: 11.47700671 | AV179: 0 | AW179: -1.0908e-12 | AX179: 19 | AY179: -2.428198897 | AZ179: 1.827395094 | BA179: 1.804809502 | BB179: 1.802277348 | BC179: -1.765228523 | BD179: -4.303331641 | BE179: 18.9951315 | BF179: -4.303331616 | BG179: -2.428198897 | BH179: -2.197656544 | BI179: -2.197656544 | BJ179: -2.197603555 | BK179: -2.423972303 | BL179: -2.421778874 | BM179: -2.1976558 | BN179: -2.193429207 | BO179: 19.0021977 | BP179: -4.309972836 | BQ179: 22.58559693 | BR179: -14.13239777 | BS179: 0.849962019 | BT179: 7.569841376e-05 | BU179: -8.453188162 | BV179: -8.453183773 | BW179: 14.13239778 | BX179: 13.28244194
A180: 0.18 | B180: 0.0002385017729 | D180: 17 | E180: 1.7e-08 | F180: 19 | G180: 5 | H180: 0 | I180: 6.126953405 | J180: 13.83876241 | K180: 0 | L180: -1.0908e-12 | M180: 19 | N180: 1.919037065 | O180: 1.819946276 | P180: 1.799971561 | Q180: 1.799996531 | R180: 6.887611989 | S180: 4.30957986 | T180: 18.99069646 | U180: 4.309579813 | V180: 6.919037065 | W180: 2.362680379 | X180: 2.362680379 | Y180: 2.362672208 | Z180: 1.922086715 | AA180: 1.919720985 | AB180: 2.362680375 | AC180: 2.365730026 | AD180: 18.99763417 | AE180: 4.302621961 | AF180: 19.9747144 | AG180: -13.87542073 | AH180: -0.04028855842 | AI180: -1.167304585e-05 | AJ180: -6.099300005 | AK180: -6.099304731 | AL180: 13.87542073 | AM180: 13.91570259 | AP180: 17 | AQ180: 19 | AR180: 0 | AS180: 0 | AT180: -2.288998e-07 | AU180: 100 | AV180: 0 | AW180: -1.0908e-12 | AX180: 19 | AY180: 12.36931779 | AZ180: 1.827295037 | BA180: 1.804716767 | BB180: 1.802190906 | BC180: 14.47750118 | BD180: 10.2829983 | BE180: 18.99240782 | BF180: 10.28299652 | BG180: 12.36931779 | BH180: -2.100200784 | BI180: -2.100200784 | BJ180: -2.100078301 | BK180: 12.37092668 | BL180: 12.37302528 | BM180: -2.10020055 | BN180: -2.098591653 | BO180: 19.00208807 | BP180: 10.27466767 | BQ180: 22.57825949 | BR180: -19.36049497 | BS180: 2.702799227 | BT180: 0.0001749761624 | BU180: -3.217796583 | BV180: -3.217792386 | BW180: 19.36049497 | BX180: 16.65768824
A181: 0.19 | B181: 0.0003509993899 | D181: 18 | E181: 1.8e-08 | F181: 19 | G181: 5 | H181: 0 | I181: 3.795620976 | J181: 16.20460629 | K181: 0 | L181: -1.0908e-12 | M181: 19 | N181: 1.912269742 | O181: 1.81994618 | P181: 1.799971373 | Q181: 1.799996248 | R181: 6.880241102 | S181: 4.265504051 | T181: 18.98954579 | U181: 4.265504009 | V181: 6.912269742 | W181: 2.342360228 | X181: 2.342360228 | Y181: 2.342352334 | Z181: 1.914147274 | AA181: 1.911803036 | AB181: 2.342360222 | AC181: 2.344237754 | AD181: 18.99765567 | AE181: 4.257373604 | AF181: 19.97480673 | AG181: -16.21975071 | AH181: -0.04106235939 | AI181: -1.127697386e-05 | AJ181: -3.755062292 | AK181: -3.755066976 | AL181: 16.2197507 | AM181: 16.26080646 | AP181: 18 | AQ181: 19 | AR181: 0 | AS181: 0 | AT181: -2.288998e-07 | AU181: 100 | AV181: 0 | AW181: -1.0908e-12 | AX181: 19 | AY181: 12.86529459 | AZ181: 1.82729603 | BA181: 1.804717264 | BB181: 1.802190911 | BC181: 14.93774284 | BD181: 11.05183977 | BE181: 18.99206745 | BF181: 11.05183834 | BG181: 12.86529459 | BH181: -1.873670305 | BI181: -1.873670305 | BJ181: -1.873547031 | BK181: 12.86679028 | BL181: 12.86866246 | BM181: -1.873670088 | BN181: -1.8721744 | BO181: 19.00186116 | BP181: 11.04337313 | BQ181: 22.57875547 | BR181: -19.58741028 | BS181: 2.656984926 | BT181: 0.00017610567 | BU181: -2.991378877 | BV181: -2.991375133 | BW181: 19.58741028 | BX181: 16.93041689
A182: 0.2 | B182: 0.0005165095239 | D182: 19 | E182: 1.9e-08 | F182: 19 | G182: 5 | H182: 0 | I182: 1.517220305 | J182: 18.52417218 | K182: 0 | L182: -1.0908e-12 | M182: 19 | N182: 1.909321759 | O182: 1.819946079 | P182: 1.799971183 | Q182: 1.799995967 | R182: 6.879422761 | S182: 4.231221571 | T182: 18.98841711 | U182: 4.231221532 | V182: 6.909321759 | W182: 2.314534134 | X182: 2.314534134 | Y182: 2.314526768 | Z182: 1.910041663 | AA182: 1.907726409 | AB182: 2.314534123 | AC182: 2.315254028 | AD182: 18.99768466 | AE182: 4.221934822 | AF182: 19.9748961 | AG182: -18.53509401 | AH182: -0.03833204838 | AI182: -1.052269988e-05 | AJ182: -1.43980832 | AK182: -1.439812948 | AL182: 18.53509401 | AM182: 18.57341952 | AP182: 19 | AQ182: 19 | AR182: 0 | AS182: 0 | AT182: -2.288998e-07 | AU182: 100 | AV182: 0 | AW182: -1.0908e-12 | AX182: 19 | AY182: 13.4400442 | AZ182: 1.827297181 | BA182: 1.804717839 | BB182: 1.802190918 | BC182: 15.4710817 | BD182: 11.94279137 | BE182: 18.99167302 | BF182: 11.94279035 | BG182: 13.4400442 | BH182: -1.611161445 | BI182: -1.611161445 | BJ182: -1.611037255 | BK182: 13.4414087 | BL182: 13.4430185 | BM182: -1.611161247 | BN182: -1.609796747 | BO182: 19.0015982 | BP182: 11.93416712 | BQ182: 22.57933022 | BR182: -19.85036504 | BS182: 2.603894229 | BT182: 0.00017741457 | BU182: -2.7290007 | BV182: -2.728997481 | BW182: 19.85036505 | BX182: 17.24646127
A183: 0.21 | B183: 0.0007600133881 | D183: 20 | E183: 2e-08 | F183: 19 | G183: 5 | H183: 0 | I183: 0.0001071118894 | J183: 20.84317558 | K183: 0 | L183: -1.0908e-12 | M183: 19 | N183: 2.085164664 | O183: 1.819946331 | P183: 1.79997117 | Q183: 1.799995688 | R183: 7.038448528 | S183: 4.358827999 | T183: 18.98736993 | U183: 4.358827963 | V183: 7.085164664 | W183: 2.241819976 | X183: 2.241819976 | Y183: 2.24181806 | Z183: 2.084763859 | AA183: 2.08252244 | AB183: 2.241819863 | AC183: 2.241419059 | AD183: 18.99775832 | AE183: 4.34840963 | AF183: 19.97516132 | AG183: -20.77677862 | AH183: -0.05989248239 | AI183: -2.737456193e-06 | AJ183: 0.8016105916 | AK183: 0.8016061106 | AL183: 20.77677862 | AM183: 20.83666448 | AP183: 20 | AQ183: 19 | AR183: 0 | AS183: 0 | AT183: -2.288998e-07 | AU183: 63.32855352 | AV183: 0 | AW183: -1.0908e-12 | AX183: 19 | AY183: 14.14881209 | AZ183: 1.8272986 | BA183: 1.804718549 | BB183: 1.802190926 | BC183: 16.12878282 | BD183: 13.0414922 | BE183: 18.99118661 | BF183: 13.04149168 | BG183: 14.14881209 | BH183: -1.287441597 | BI183: -1.287441597 | BJ183: -1.287316277 | BK183: 14.15001481 | BL183: 14.15130105 | BM183: -1.287441422 | BN183: -1.286238702 | BO183: 19.00127393 | BP183: 13.03267358 | BQ183: 22.58003898 | BR183: -20.17463468 | BS183: 2.538424006 | BT183: 0.000179028675 | BU183: -2.405442007 | BV183: -2.405439435 | BW183: 20.17463469 | BX183: 17.63619985
A184: 0.22 | B184: 0.001118264152 | D184: 21 | E184: 2.1e-08 | F184: 19 | G184: 5 | H184: 0 | I184: -2.288998e-07 | J184: 23.19927098 | K184: 0 | L184: -1.0908e-12 | M184: 19 | N184: 2.875663221 | O184: 1.819948169 | P184: 1.799971951 | Q184: 1.799995421 | R184: 7.763585493 | S184: 5.053787149 | T184: 18.98648737 | U184: 5.053787114 | V184: 7.875663221 | W184: 2.083210345 | X184: 2.083210345 | Y184: 2.083227398 | Z184: 2.874221531 | AA184: 2.872139763 | AB184: 2.08320995 | AC184: 2.081768262 | AD184: 18.99791717 | AE184: 5.04228547 | AF184: 19.97621704 | AG184: -22.85960456 | AH184: -0.1436893949 | AI184: 2.43613133e-05 | AJ184: 2.883378536 | AK184: 2.883374373 | AL184: 22.85960456 | AM184: 23.00328673 | AP184: 21 | AQ184: 19 | AR184: 0 | AS184: 0 | AT184: -2.288998e-07 | AU184: 24.80115755 | AV184: 0 | AW184: -1.0908e-12 | AX184: 19 | AY184: 14.7239318 | AZ184: 1.827299752 | BA184: 1.804719125 | BB184: 1.802190932 | BC184: 16.66246515 | BD184: 13.93301761 | BE184: 18.99079193 | BF184: 13.9330175 | BG184: 14.7239318 | BH184: -1.024763761 | BI184: -1.024763761 | BJ184: -1.024637524 | BK184: 14.72500325 | BL184: 14.72602694 | BM184: -1.024763606 | BN184: -1.023692159 | BO184: 19.00101081 | BP184: 13.92404128 | BQ184: 22.5806141 | BR184: -20.43775925 | BS184: 2.485299169 | BT184: 0.000180338418 | BU184: -2.14289494 | BV184: -2.142892892 | BW184: 20.43775925 | BX184: 17.95244784
A185: 0.23 | B185: 0.001645334266 | D185: 22 | E185: 2.2e-08 | F185: 19 | G185: 5 | H185: 0 | I185: -2.288998e-07 | J185: 25.53802168 | K185: 0 | L185: -1.0908e-12 | M185: 19 | N185: 4.603682742 | O185: 1.819953477 | P185: 1.799974473 | Q185: 1.799995186 | R185: 9.383580194 | S185: 6.645307524 | T185: 18.98573427 | U185: 6.645307491 | V185: 9.603682742 | W185: 1.890214421 | X185: 1.890214421 | Y185: 1.890258479 | Z185: 4.601297139 | AA185: 4.599409311 | AB185: 1.890213859 | AC185: 1.887828257 | AD185: 18.99810938 | AE185: 6.632791293 | AF185: 19.97900076 | AG185: -24.75022121 | AH185: -0.282182753 | AI185: 6.29405561e-05 | AJ185: 4.771206406 | AK185: 4.771202629 | AL185: 24.7502212 | AM185: 25.03239528 | AP185: 22 | AQ185: 19 | AR185: 0 | AS185: 0 | AT185: -2.288998e-07 | AU185: 17.02838038 | AV185: 0 | AW185: -1.0908e-12 | AX185: 19 | AY185: 14.88877618 | AZ185: 1.827300082 | BA185: 1.80471929 | BB185: 1.802190934 | BC185: 16.81543256 | BD185: 14.18855234 | BE185: 18.9906788 | BF185: 14.18855235 | BG185: 14.88877618 | BH185: -0.9494735192 | BI185: -0.9494735192 | BJ185: -0.9493470195 | BK185: 14.88981 | BL185: 14.89075844 | BM185: -0.949473369 | BN185: -0.9484395484 | BO185: 19.00093539 | BP185: 14.17953081 | BQ185: 22.58077895 | BR185: -20.51317848 | BS185: 2.470072279 | BT185: 0.0001807138252 | BU185: -2.067642178 | BV185: -2.067640282 | BW185: 20.51317848 | BX185: 18.04309298
A186: 0.24 | B186: 0.002420776871 | D186: 23 | E186: 2.3e-08 | F186: 19 | G186: 5 | H186: 0 | I186: -2.288998e-07 | J186: 27.84977571 | K186: 0 | L186: -1.0908e-12 | M186: 19 | N186: 7.67786908 | O186: 1.819964966 | P186: 1.799980102 | Q186: 1.799995016 | R186: 12.28403512 | S186: 9.51887203 | T186: 18.98521762 | U186: 9.518872 | V186: 12.67786908 | W186: 1.602162406 | X186: 1.602162406 | Y186: 1.602236997 | Z186: 7.674683988 | AA186: 7.673085012 | AB186: 1.602161771 | AC186: 1.59897668 | AD186: 18.99839516 | AE186: 9.505442015 | AF186: 19.98485867 | AG186: -26.35506424 | AH186: -0.5049153309 | AI186: 0.0001065590156 | AJ186: 6.370182509 | AK186: 6.37017931 | AL186: 26.35506424 | AM186: 26.85996822 | AP186: 23 | AQ186: 19 | AR186: 0 | AS186: 0 | AT186: -2.288998e-07 | AU186: 16.34291613 | AV186: 0 | AW186: -1.0908e-12 | AX186: 19 | AY186: 14.90498159 | AZ186: 1.827300114 | BA186: 1.804719306 | BB186: 1.802190934 | BC186: 16.83047039 | BD186: 14.21367332 | BE186: 18.99066768 | BF186: 14.21367335 | BG186: 14.90498159 | BH186: -0.9420719705 | BI186: -0.9420719705 | BJ186: -0.941945445 | BK186: 14.90601171 | BL186: 14.90695275 | BM186: -0.9420718209 | BN186: -0.9410416992 | BO186: 19.00092797 | BP186: 14.20464734 | BQ186: 22.58079515 | BR186: -20.52059299 | BS186: 2.468575388 | BT186: 0.0001807507306 | BU186: -2.060244315 | BV186: -2.060242432 | BW186: 20.52059299 | BX186: 18.05200411
A187: 0.25 | B187: 0.003561633121 | D187: 24 | E187: 2.4e-08 | F187: 19 | G187: 5 | H187: 0 | I187: -2.288998e-07 | J187: 30.11745372 | K187: 0 | L187: -1.0908e-12 | M187: 19 | N187: 12.50529254 | O187: 1.81998618 | P187: 1.799990626 | Q187: 1.799994967 | R187: 16.82016983 | S187: 14.02969347 | T187: 18.98511731 | U187: 14.02969344 | V187: 17.50529254 | W187: 1.129823135 | X187: 1.129823135 | Y187: 1.129928923 | Z187: 12.50154441 | AA187: 12.50041834 | AB187: 1.129822486 | AC187: 1.126074359 | AD187: 18.99886323 | AE187: 14.01550834 | AF187: 19.99554398 | AG187: -27.49183712 | AH187: -0.8783624435 | AI187: 0.0001511252064 | AJ187: 7.496255923 | AK187: 7.496253668 | AL187: 27.49183712 | AM187: 28.37018402 | AP187: 24 | AQ187: 19 | AR187: 0 | AS187: 0 | AT187: -2.288998e-07 | AU187: 16.33623105 | AV187: 0 | AW187: -1.0908e-12 | AX187: 19 | AY187: 14.90514128 | AZ187: 1.827300114 | BA187: 1.804719306 | BB187: 1.802190934 | BC187: 16.83061858 | BD187: 14.21392088 | BE187: 18.99066757 | BF187: 14.21392091 | BG187: 14.90514128 | BH187: -0.9419990372 | BI187: -0.9419990372 | BJ187: -0.9418725114 | BK187: 14.90617137 | BL187: 14.90711234 | BM187: -0.9419988875 | BN187: -0.9409688023 | BO187: 19.0009279 | BP187: 14.20489486 | BQ187: 22.58079531 | BR187: -20.52066609 | BS187: 2.468560641 | BT187: 0.0001807510943 | BU187: -2.060171417 | BV187: -2.060169536 | BW187: 20.52066609 | BX187: 18.05209194
A188: 0.26 | B188: 0.005240097749 | D188: 25 | E188: 2.5e-08 | F188: 19 | G188: 5 | H188: 0 | I188: -2.288998e-07 | J188: 31.00034855 | K188: 0 | L188: -1.09078487e-12 | M188: 19 | N188: 18.05198319 | O188: 1.820018609 | P188: 1.800006817 | Q188: 1.7999951 | R188: 21.74524684 | S188: 18.69679431 | T188: 18.98650402 | U188: 18.69679402 | V188: 23.05198319 | W188: -0.1792140485 | X188: -0.1792140485 | Y188: -0.1790809101 | Z188: 18.0483265 | AA188: 18.04850937 | AB188: -0.1792146175 | AC188: -0.1828713086 | AD188: 19.00016663 | AE188: 18.68229377 | AF188: 20.01177594 | AG188: -27.32521091 | AH188: -1.675303014 | AI188: 0.0001901977524 | AJ188: 7.313381998 | AK188: 7.31338236 | AL188: 27.32521091 | AM188: 29.00049461 | AP188: 25 | AQ188: 19 | AR188: 0 | AS188: 0 | AT188: -2.288998e-07 | AU188: 16.3362304 | AV188: 0 | AW188: -1.0908e-12 | AX188: 19 | AY188: 14.9051413 | AZ188: 1.827300114 | BA188: 1.804719306 | BB188: 1.802190934 | BC188: 16.8306186 | BD188: 14.21392091 | BE188: 18.99066757 | BF188: 14.21392093 | BG188: 14.9051413 | BH188: -0.9419990299 | BI188: -0.9419990299 | BJ188: -0.9418725042 | BK188: 14.90617138 | BL188: 14.90711235 | BM188: -0.9419988803 | BN188: -0.9409687951 | BO188: 19.0009279 | BP188: 14.20489488 | BQ188: 22.58079531 | BR188: -20.5206661 | BS188: 2.468560639 | BT188: 0.0001807510943 | BU188: -2.060171411 | BV188: -2.060169528 | BW188: 20.5206661 | BX188: 18.05209194
A189: 0.27 | B189: 0.007709509214 | D189: 26 | E189: 2.6e-08 | F189: 19 | G189: 5 | H189: 0 | I189: -2.288998e-07 | J189: 26.56812255 | K189: 0 | L189: -1.072365555e-12 | M189: 19 | N189: 20.35535237 | O189: 1.820055818 | P189: 1.800025488 | Q189: 1.799995442 | R189: 22.88407542 | S189: 18.88512043 | T189: 18.99080289 | U189: 18.88511934 | V189: 25.35535237 | W189: -2.993369193 | X189: -2.993369193 | Y189: -2.993220979 | Z189: 20.35319345 | AA189: 20.35618898 | AB189: -2.993369507 | AC189: -2.995528433 | AD189: 19.00297699 | AE189: 18.87136109 | AF189: 20.03031124 | AG189: -24.34821695 | AH189: -3.168303777 | AI189: 0.0002117353135 | AJ189: 4.317847941 | AK189: 4.317853927 | AL189: 24.34821695 | AM189: 27.51650333 | AP189: 26 | AQ189: 19 | AR189: 0 | AS189: 0 | AT189: -2.288998e-07 | AU189: 81.21659141 | AV189: 0 | AW189: -1.0908e-12 | AX189: 19 | AY189: 16.91463619 | AZ189: 1.827244415 | BA189: 1.80467732 | BB189: 1.802162196 | BC189: 19.14569245 | BD189: 15.93173227 | BE189: 18.99043227 | BF189: 15.93173167 | BG189: 16.91463619 | BH189: -1.029425264 | BI189: -1.029425264 | BJ189: -1.029292521 | BK189: 16.91533838 | BL189: 16.9163671 | BM189: -1.029425162 | BN189: -1.028722977 | BO189: 19.00101364 | BP189: 15.92258046 | BQ189: 22.56707981 | BR189: -21.16275528 | BS189: 2.860328538 | BT189: 0.0001896319105 | BU189: -1.404371251 | BV189: -1.404369194 | BW189: 21.16275528 | BX189: 18.30241257
A190: 0.28 | B190: 0.01134258726 | D190: 27 | E190: 2.7e-08 | F190: 19 | G190: 5 | H190: 0 | I190: -2.288998e-07 | J190: 23.65065078 | K190: 0 | L190: -9.852187287e-13 | M190: 19 | N190: 21.69304515 | O190: 1.820095907 | P190: 1.800045703 | Q190: 1.799996006 | R190: 23.91673124 | S190: 18.93209231 | T190: 18.99257249 | U190: 18.93209118 | V190: 26.69304515 | W190: -3.183708258 | X190: -3.183708258 | Y190: -3.183556208 | Z190: 21.69247836 | AA190: 21.69566264 | AB190: -3.183708338 | AC190: -3.184275126 | AD190: 19.0031644 | AE190: 18.9197196 | AF190: 20.05018419 | AG190: -21.18381711 | AH190: -3.559376813 | AI190: 0.0002172153438 | AJ190: 1.133572436 | AK190: 1.133578801 | AL190: 21.18381712 | AM190: 24.74317777 | AP190: 27 | AQ190: 19 | AR190: 0 | AS190: 0 | AT190: -2.288998e-07 | AU190: 29.78136836 | AV190: 0 | AW190: -1.0908e-12 | AX190: 19 | AY190: 17.38576744 | AZ190: 1.827245359 | BA190: 1.804677792 | BB190: 1.802162201 | BC190: 19.5222423 | BD190: 16.73545585 | BE190: 18.99011551 | BF190: 16.73545574 | BG190: 17.38576744 | BH190: -0.8186236266 | BI190: -0.8186236266 | BJ190: -0.8184901552 | BK190: 17.38636428 | BL190: 17.3871823 | BM190: -0.8186235407 | BN190: -0.8180267038 | BO190: 19.00080247 | BP190: 16.72613833 | BQ190: 22.56755094 | BR190: -21.37392479 | BS190: 2.739070335 | BT190: 0.0001906734506 | BU190: -1.193674556 | BV190: -1.193672921 | BW190: 21.37392479 | BX190: 18.63483919
A191: 0.29 | B191: 0.01668768923 | D191: 28 | E191: 2.8e-08 | F191: 19 | G191: 5 | H191: 0 | I191: -2.288998e-07 | J191: 21.19614112 | K191: 0 | L191: -8.887941104e-13 | M191: 19 | N191: 21.72896047 | O191: 1.820136285 | P191: 1.800066172 | Q191: 1.799996795 | R191: 24.6054241 | S191: 18.94866345 | T191: 18.99233966 | U191: 18.94866268 | V191: 26.72896047 | W191: -1.974711194 | X191: -1.974711194 | Y191: -1.974561987 | Z191: 21.72938082 | AA191: 21.73135511 | AB191: -1.974711135 | AC191: -1.974290778 | AD191: 19.00195438 | AE191: 18.93768673 | AF191: 20.07009301 | AG191: -19.22943767 | AH191: -2.722482523 | AI191: 0.0002131521949 | AJ191: -0.840715924 | AK191: -0.840711977 | AL191: 19.22943767 | AM191: 21.95190404 | AP191: 28 | AQ191: 19 | AR191: 0 | AS191: 0 | AT191: -2.288998e-07 | AU191: 18.83820158 | AV191: 0 | AW191: -1.0908e-12 | AX191: 19 | AY191: 17.53379871 | AZ191: 1.827245655 | BA191: 1.80467794 | BB191: 1.802162203 | BC191: 19.64055577 | BD191: 16.9879891 | BE191: 18.99001599 | BF191: 16.98798915 | BG191: 17.53379871 | BH191: -0.7523890322 | BI191: -0.7523890322 | BJ191: -0.7522553317 | BK191: 17.53436245 | BL191: 17.53511427 | BM191: -0.7523889511 | BN191: -0.751825215 | BO191: 19.00073612 | BP191: 16.9786195 | BQ191: 22.56769898 | BR191: -21.44027587 | BS191: 2.700970595 | BT191: 0.0001910007069 | BU191: -1.127472935 | BV191: -1.127471432 | BW191: 21.44027587 | BX191: 18.73928909
A192: 0.3 | B192: 0.02455157618 | D192: 29 | E192: 2.9e-08 | F192: 19 | G192: 5 | H192: 0 | I192: -2.288998e-07 | J192: 19.57618375 | K192: 0 | L192: -8.297781862e-13 | M192: 19 | N192: 20.97192695 | O192: 1.820175369 | P192: 1.800086105 | Q192: 1.799997798 | R192: 24.91997924 | S192: 18.95432761 | T192: 18.99136588 | U192: 18.95432725 | V192: 25.97192695 | W192: -0.673639223 | X192: -0.673639223 | Y192: -0.6734951541 | Z192: 20.97268374 | AA192: 20.97335662 | AB192: -0.6736391164 | AC192: -0.6728823189 | AD192: 19.00065373 | AE192: 18.94436508 | AF192: 20.08924476 | AG192: -18.5757082 | AH192: -1.348650903 | AI192: 0.0002058127776 | AJ192: -1.513595642 | AK192: -1.513594296 | AL192: 18.5757082 | AM192: 19.92434217 | AP192: 29 | AQ192: 19 | AR192: 0 | AS192: 0 | AT192: -2.288998e-07 | AU192: 17.66439092 | AV192: 0 | AW192: -1.0908e-12 | AX192: 19 | AY192: 17.55200844 | AZ192: 1.827245691 | BA192: 1.804677958 | BB192: 1.802162203 | BC192: 19.65510985 | BD192: 17.01905396 | BE192: 18.99000374 | BF192: 17.01905402 | BG192: 17.55200844 | BH192: -0.7442413608 | BI192: -0.7442413608 | BJ192: -0.7441076322 | BK192: 17.55256811 | BL192: 17.55331179 | BM192: -0.7442412803 | BN192: -0.743681616 | BO192: 19.00072796 | BP192: 17.00967795 | BQ192: 22.56771719 | BR192: -21.44843811 | BS192: 2.696283859 | BT192: 0.0001910409637 | BU192: -1.11932932 | BV192: -1.119327833 | BW192: 21.44843811 | BX192: 18.75213781
A193: 0.31 | B193: 0.0361211811 | D193: 30 | E193: 3e-08 | F193: 19 | G193: 5 | H193: 0 | I193: -2.288998e-07 | J193: 18.82214128 | K193: 0 | L193: -8.127197661e-13 | M193: 19 | N193: 20.02381423 | O193: 1.820212769 | P193: 1.800105303 | Q193: 1.799999006 | R193: 24.94285178 | S193: 18.95506315 | T193: 18.99046213 | U193: 18.95506312 | V193: 25.02381423 | W193: 0.1477936417 | X193: 0.1477936417 | Y193: 0.1479330299 | Z193: 20.02449679 | AA193: 20.02434831 | AB193: 0.1477937388 | AC193: 0.1484762978 | AD193: 18.99983332 | AE193: 18.94564004 | AF193: 20.10744836 | AG193: -18.74238784 | AH193: -0.1037980153 | AI193: 0.0001991260748 | AJ193: -1.365117702 | AK193: -1.365117998 | AL193: 18.74238784 | AM193: 18.84616798 | AP193: 30 | AQ193: 19 | AR193: 0 | AS193: 0 | AT193: -2.288998e-07 | AU193: 17.64637345 | AV193: 0 | AW193: -1.0908e-12 | AX193: 19 | AY193: 17.55229259 | AZ193: 1.827245692 | BA193: 1.804677959 | BB193: 1.802162203 | BC193: 19.65533696 | BD193: 17.0195387 | BE193: 18.99000355 | BF193: 17.01953877 | BG193: 17.55229259 | BH193: -0.7441142287 | BI193: -0.7441142287 | BJ193: -0.7439804996 | BK193: 17.55285219 | BL193: 17.55359574 | BM193: -0.7441141482 | BN193: -0.7435545474 | BO193: 19.00072783 | BP193: 17.0101626 | BQ193: 22.56771747 | BR193: -21.44856551 | BS193: 2.696210729 | BT193: 0.0001910415919 | BU193: -1.119202251 | BV193: -1.119200764 | BW193: 21.44856551 | BX193: 18.75233831
A194: 0.32 | B194: =$O$60*(EXP(A194/$B$46)-1) -> 0.05314275819 | D194: 31 | E194: 3.1e-08 | F194: 19 | G194: 5 | H194: 0 | I194: -2.288998e-07 | J194: 18.71858768 | K194: 0 | L194: -8.261905632e-13 | M194: 19 | N194: 19.24706408 | O194: 1.820248818 | P194: 1.800123925 | Q194: 1.80000041 | R194: 24.78666957 | S194: 18.95320486 | T194: 18.9898901 | U194: 18.95320504 | V194: 24.24706408 | W194: 0.4745991286 | X194: 0.4745991286 | Y194: 0.474735431 | Z194: 19.24750911 | AA194: 19.24703407 | AB194: 0.4745991925 | AC194: 0.4750442292 | AD194: 18.99950753 | AE194: 18.94393352 | AF194: 20.12487518 | AG194: -19.23485798 | AH194: 0.6918019128 | AI194: 0.0001947178437 | AJ194: -0.8900728198 | AK194: -0.890073769 | AL194: 19.23485798 | AM194: 18.54303742 | AP194: 31 | AQ194: 19 | AR194: 0 | AS194: 0 | AT194: -2.288998e-07 | AU194: 17.64636906 | AV194: 0 | AW194: -1.0908e-12 | AX194: 19 | AY194: 17.55229266 | AZ194: 1.827245692 | BA194: 1.804677959 | BB194: 1.802162203 | BC194: 19.65533701 | BD194: 17.01953882 | BE194: 18.99000355 | BF194: 17.01953888 | BG194: 17.55229266 | BH194: -0.7441141979 | BI194: -0.7441141979 | BJ194: -0.7439804688 | BK194: 17.55285226 | BL194: 17.55359581 | BM194: -0.7441141174 | BN194: -0.7435545166 | BO194: 19.00072783 | BP194: 17.01016271 | BQ194: 22.56771747 | BR194: -21.44856554 | BS194: 2.696210712 | BT194: 0.0001910415921 | BU194: -1.11920222 | BV194: -1.119200733 | BW194: 21.44856554 | BX194: 18.75233836
A195: 0.33 | B195: 0.07818545313 | D195: 32 | E195: 3.2e-08 | F195: 19 | G195: 5 | H195: 0 | I195: -2.288998e-07 | J195: 18.97986487 | K195: 0 | L195: -8.550924757e-13 | M195: 19 | N195: 18.76350985 | O195: 1.820284094 | P195: 1.800142258 | Q195: 1.800002003 | R195: 24.55432594 | S195: 18.94995285 | T195: 18.98963385 | U195: 18.94995311 | V195: 23.76350985 | W195: 0.4820023089 | X195: 0.4820023089 | Y195: 0.4821371824 | Z195: 18.76371379 | AA195: 18.76323158 | AB195: 0.4820023385 | AC195: 0.482206272 | AD195: 18.99950085 | AE195: 18.94059305 | AF195: 20.1418184 | AG195: -19.73400652 | AH195: 1.013866783 | AI195: 0.0001926764039 | AJ195: -0.4078665333 | AK195: -0.407867497 | AL195: 19.73400652 | AM195: 18.72012062 | AP195: 32 | AQ195: 19 | AR195: 0 | AS195: 0 | AT195: -2.288998e-07 | AU195: 100 | AV195: 0 | AW195: -1.0908e-12 | AX195: 19 | AY195: 17.52961162 | AZ195: 1.827183132 | BA195: 1.804632628 | BB195: 1.802133598 | BC195: 20.17289775 | BD195: 15.90942824 | BE195: 18.99054309 | BF195: 15.90942727 | BG195: 17.52961162 | BH195: -1.31263017 | BI195: -1.31263017 | BJ195: -1.312494864 | BK195: 17.53013356 | BL195: 17.53144567 | BM195: -1.312630095 | BN195: -1.312108152 | BO195: 19.00129642 | BP195: 15.90036836 | BQ195: 22.55048805 | BR195: -21.50665014 | BS195: 3.388828375 | BT195: 0.0001932937828 | BU195: -1.04388636 | BV195: -1.043883736 | BW195: 21.50665015 | BX195: 18.11780793
A196: 0.34 | B196: 0.1150290762 | D196: 33 | E196: 3.3e-08 | F196: 19 | G196: 5 | H196: 0 | I196: -2.288998e-07 | J196: 19.36478996 | K196: 0 | L196: -8.864641248e-13 | M196: 19 | N196: 18.55059973 | O196: 1.820319132 | P196: 1.800160566 | Q196: 1.800003785 | R196: 24.32200238 | S196: 18.94621103 | T196: 18.98959124 | U196: 18.94621129 | V196: 23.55059973 | W196: 0.3444083625 | X196: 0.3444083625 | Y196: 0.3445430052 | Z196: 18.55063144 | AA196: 18.550287 | AB196: 0.3444083671 | AC196: 0.3444400806 | AD196: 18.99963883 | AE196: 18.9366582 | AF196: 20.15854868 | AG196: -20.09517619 | AH196: 0.9889777587 | AI196: 0.000192346721 | AJ196: -0.0634267278 | AK196: -0.06342741639 | AL196: 20.09517619 | AM196: 19.10617909 | AP196: 33 | AQ196: 19 | AR196: 0 | AS196: 0 | AT196: -2.288998e-07 | AU196: 100 | AV196: 0 | AW196: -1.0908e-12 | AX196: 19 | AY196: 17.80244004 | AZ196: 1.827183678 | BA196: 1.804632901 | BB196: 1.802133601 | BC196: 20.374019 | BD196: 16.39575781 | BE196: 18.9903609 | BF196: 16.39575716 | BG196: 17.80244004 | BH196: -1.191380438 | BI196: -1.191380438 | BJ196: -1.191244714 | BK196: 17.80290139 | BL196: 17.80409231 | BM196: -1.191380371 | BN196: -1.190919024 | BO196: 19.00117495 | BP196: 16.38659155 | BQ196: 22.55076088 | BR196: -21.6281133 | BS196: 3.296896106 | BT196: 0.0001938911492 | BU196: -0.9226969887 | BV196: -0.9226946077 | BW196: 21.6281133 | BX196: 18.3312027
A197: 0.35 | B197: 0.1692346065 | D197: 34 | E197: 3.4e-08 | F197: 19 | G197: 5 | H197: 0 | I197: -2.288998e-07 | J197: 19.72140565 | K197: 0 | L197: -9.123463296e-13 | M197: 19 | N197: 18.52607239 | O197: 1.820354307 | P197: 1.800179036 | Q197: 1.800005754 | R197: 24.13409992 | S197: 18.94276823 | T197: 18.98965619 | U197: 18.94276844 | V197: 23.52607239 | W197: 0.1808375613 | X197: 0.1808375613 | Y197: 0.1809726048 | Z197: 18.52601372 | AA197: 18.52583294 | AB197: 0.1808375528 | AC197: 0.180778877 | AD197: 18.99980252 | AE197: 18.93301188 | AF197: 20.1752544 | AG197: -20.2926604 | AH197: 0.7795224674 | AI197: 0.000192919308 | AJ197: 0.117351822 | AK197: 0.1173514606 | AL197: 20.2926604 | AM197: 19.51311858 | AP197: 34 | AQ197: 19 | AR197: 0 | AS197: 0 | AT197: -2.288998e-07 | AU197: 100 | AV197: 0 | AW197: -1.0908e-12 | AX197: 19 | AY197: 18.1134859 | AZ197: 1.827184301 | BA197: 1.804633212 | BB197: 1.802133604 | BC197: 20.60331305 | BD197: 16.95021177 | BE197: 18.99015318 | BF197: 16.95021149 | BG197: 18.1134859 | BH197: -1.053146201 | BI197: -1.053146201 | BJ197: -1.053010001 | BK197: 18.11387817 | BL197: 18.11493092 | BM197: -1.053146145 | BN197: -1.05275388 | BO197: 19.00103648 | BP197: 16.94092424 | BQ197: 22.55107192 | BR197: -21.76659084 | BS197: 3.192086084 | BT197: 0.0001945721939 | BU197: -0.7845315683 | BV197: -0.7845294637 | BW197: 21.76659084 | BX197: 18.57448953
A198: 0.36 | B198: 0.2489835364 | D198: 35 | E198: 3.5e-08 | F198: 19 | G198: 5 | H198: 0 | I198: -2.288998e-07 | J198: 19.98397586 | K198: 0 | L198: -9.299719924e-13 | M198: 19 | N198: 18.60074199 | O198: 1.820389817 | P198: 1.800197766 | Q198: 1.800007912 | R198: 24.00610789 | S198: 18.94016783 | T198: 18.98974915 | U198: 18.94016797 | V198: 23.60074199 | W198: 0.05298689837 | X198: 0.05298689837 | Y198: 0.05312252694 | Z198: 18.60065686 | AA198: 18.60060396 | AB198: 0.05298688601 | AC198: 0.05290175937 | AD198: 18.99993032 | AE198: 18.93024666 | AF198: 20.19203475 | AG198: -20.3623424 | AH198: 0.5196998777 | AI198: 0.0001937551011 | AJ198: 0.1702533258 | AK198: 0.17025322 | AL198: 20.3623424 | AM198: 19.84262325 | AP198: 35 | AQ198: 19 | AR198: 0 | AS198: 0 | AT198: -2.288998e-07 | AU198: 88.9586616 | AV198: 0 | AW198: -1.0908e-12 | AX198: 19 | AY198: 18.48531247 | AZ198: 1.827185045 | BA198: 1.804633585 | BB198: 1.802133609 | BC198: 20.87741287 | BD198: 17.6130102 | BE198: 18.98990487 | BF198: 17.61301037 | BG198: 18.48531247 | BH198: -0.8878999489 | BI198: -0.8878999489 | BJ198: -0.8877631784 | BK198: 18.48562215 | BL198: 18.48650974 | BM198: -0.8878999044 | BN198: -0.8875902211 | BO198: 19.00087094 | BP198: 17.60357771 | BQ198: 22.55144375 | BR198: -21.93212789 | BS198: 3.066795393 | BT198: 0.0001953863198 | BU198: -0.6193675799 | BV198: -0.6193658052 | BW198: 21.93212789 | BX198: 18.86531643
A199: 0.37 | B199: 0.3663127424 | D199: 36 | E199: 3.6e-08 | F199: 19 | G199: 5 | H199: 0 | I199: -2.288998e-07 | J199: 20.14639088 | K199: 0 | L199: -9.400492384e-13 | M199: 19 | N199: 18.70519166 | O199: 1.820425723 | P199: 1.800216786 | Q199: 1.800010259 | R199: 23.93307251 | S199: 18.93856795 | T199: 18.98982513 | U199: 18.93856803 | V199: 23.70519166 | W199: -0.02101188983 | X199: -0.02101188983 | Y199: -0.02087575058 | Z199: 18.70511708 | AA199: 18.70513816 | AB199: -0.02101190064 | AC199: -0.021086484 | AD199: 19.0000042 | AE199: 18.92853504 | AF199: 20.20891952 | AG199: -20.35814075 | AH199: 0.2921549418 | AI199: 0.0001944846367 | AJ199: 0.1491666939 | AK199: 0.149166736 | AL199: 20.35814075 | AM199: 20.06596664 | AP199: 36 | AQ199: 19 | AR199: 0 | AS199: 0 | AT199: -2.288998e-07 | AU199: 32.71732337 | AV199: 0 | AW199: -1.0908e-12 | AX199: 19 | AY199: 18.90870635 | AZ199: 1.827185893 | BA199: 1.804634009 | BB199: 1.802133613 | BC199: 21.18952664 | BD199: 18.36772982 | BE199: 18.98962213 | BF199: 18.36773049 | BG199: 18.90870635 | BH199: -0.6997362833 | BI199: -0.6997362833 | BJ199: -0.6995988639 | BK199: 18.90892199 | BL199: 18.90962152 | BM199: -0.6997362523 | BN199: -0.6995206039 | BO199: 19.00068244 | BP199: 18.35813225 | BQ199: 22.55186714 | BR199: -22.12062274 | BS199: 2.924128581 | BT199: 0.000196313354 | BU199: -0.4312975866 | BV199: -0.431296188 | BW199: 22.12062274 | BX199: 19.19647709
A200: 0.38 | B200: 0.5389312665 | D200: 37 | E200: 3.7e-08 | F200: 19 | G200: 5 | H200: 0 | I200: -2.288998e-07 | J200: 20.23176228 | K200: 0 | L200: -9.447221625e-13 | M200: 19 | N200: 18.79811615 | O200: 1.820462001 | P200: 1.800236087 | Q200: 1.800012796 | R200: 23.90009966 | S200: 18.93779598 | T200: 18.98986867 | U200: 18.93779602 | V200: 23.79811615 | W200: -0.04875244063 | X200: -0.04875244063 | Y200: -0.0486159613 | Z200: 18.79806596 | AA200: 18.79811477 | AB200: -0.0487524479 | AC200: -0.04880262993 | AD200: 19.00003182 | AE200: 18.92769824 | AF200: 20.22589717 | AG200: -20.3263159 | AH200: 0.1307480949 | AI200: 0.0001949704798 | AJ200: 0.1003640085 | AK200: 0.100364106 | AL200: 20.3263159 | AM200: 20.19554873 | AP200: 37 | AQ200: 19 | AR200: 0 | AS200: 0 | AT200: -2.288998e-07 | AU200: 20.42850525 | AV200: 0 | AW200: -1.090799844e-12 | AX200: 19 | AY200: 19.02859087 | AZ200: 1.827186133 | BA200: 1.804634129 | BB200: 1.802133615 | BC200: 21.2779021 | BD200: 18.58142982 | BE200: 18.98954207 | BF200: 18.58143063 | BG200: 19.02859087 | BH200: -0.6464575972 | BI200: -0.6464575972 | BJ200: -0.6463199941 | BK200: 19.02877989 | BL200: 19.02942616 | BM200: -0.6464575701 | BN200: -0.6462685477 | BO200: 19.00062907 | BP200: 18.57178551 | BQ200: 22.55198702 | BR200: -22.17399607 | BS200: 2.883732343 | BT200: 0.0001965758453 | BU200: -0.3780454239 | BV200: -0.3780441318 | BW200: 22.17399607 | BX200: 19.29024582
A201: 0.39 | B201: 0.7928932241 | D201: 38 | E201: 3.8e-08 | F201: 19 | G201: 5 | H201: 0 | I201: -2.288998e-07 | J201: 20.26983914 | K201: 0 | L201: -9.462111674e-13 | M201: 19 | N201: 18.86304065 | O201: 1.820498598 | P201: 1.800255641 | Q201: 1.800015525 | R201: 23.89101079 | S201: 18.93754459 | T201: 18.98988261 | U201: 18.9375446 | V201: 23.86304065 | W201: -0.04753128759 | X201: -0.04753128759 | Y201: -0.04739463392 | Z201: 18.86301425 | AA201: 18.86306181 | AB201: -0.04753129141 | AC201: -0.04755769459 | AD201: 19.00003052 | AE201: 18.92741464 | AF201: 20.24293972 | AG201: -20.29580087 | AH201: 0.03585914751 | AI201: 0.0001952195284 | AJ201: 0.05280631638 | AK201: 0.05280641143 | AL201: 20.29580087 | AM201: 20.25992273 | AP201: 38 | AQ201: 19 | AR201: 0 | AS201: 0 | AT201: -2.288998e-07 | AU201: 19.90188502 | AV201: 0 | AW201: -1.090799773e-12 | AX201: 19 | AY201: 19.03397836 | AZ201: 1.827186144 | BA201: 1.804634134 | BB201: 1.802133615 | BC201: 21.28187362 | BD201: 18.59103334 | BE201: 18.98953847 | BF201: 18.59103416 | BG201: 19.03397836 | BH201: -0.6440633355 | BI201: -0.6440633355 | BJ201: -0.6439257241 | BK201: 19.03416619 | BL201: 19.03481006 | BM201: -0.6440633085 | BN201: -0.6438754827 | BO201: 19.00062667 | BP201: 18.58138693 | BQ201: 22.55199241 | BR201: -22.17639488 | BS201: 2.881916992 | BT201: 0.0001965876416 | BU201: -0.3756523541 | BV201: -0.3756510668 | BW201: 22.17639488 | BX201: 19.29445975
A202: 0.4 | B202: 1.166530273 | D202: 39 | E202: 3.9e-08 | F202: 19 | G202: 5 | H202: 0 | I202: -2.288998e-07 | J202: 20.28512389 | K202: 0 | L202: -9.462081599e-13 | M202: 19 | N202: 18.89976428 | O202: 1.820535457 | P202: 1.800275421 | Q202: 1.800018445 | R202: 23.89314302 | S202: 18.93753971 | T202: 18.98987717 | U202: 18.9375397 | V202: 23.89976428 | W202: -0.03378616171 | X202: -0.03378616171 | Y202: -0.03364945132 | Z202: 18.89975478 | AA202: 18.89978857 | AB202: -0.03378616309 | AC202: -0.03379566844 | AD202: 19.00001672 | AE202: 18.92739593 | AF202: 20.26001895 | AG202: -20.27908454 | AH202: -0.008488798811 | AI202: 0.0001953005591 | AJ202: 0.01901067544 | AK202: 0.01901074299 | AL202: 20.27908454 | AM202: 20.28755437 | AP202: 39 | AQ202: 19 | AR202: 0 | AS202: 0 | AT202: -2.288998e-07 | AU202: 19.90081942 | AV202: 0 | AW202: -1.090799773e-12 | AX202: 19 | AY202: 19.03398928 | AZ202: 1.827186144 | BA202: 1.804634134 | BB202: 1.802133615 | BC202: 21.28188167 | BD202: 18.59105281 | BE202: 18.98953847 | BF202: 18.59105363 | BG202: 19.03398928 | BH202: -0.644058483 | BI202: -0.644058483 | BJ202: -0.6439208716 | BK202: 19.03417711 | BL202: 19.03482098 | BM202: -0.644058456 | BN202: -0.6438706326 | BO202: 19.00062667 | BP202: 18.5814064 | BQ202: 22.55199242 | BR202: -22.17639975 | BS202: 2.881913313 | BT202: 0.0001965876655 | BU202: -0.375647504 | BV202: -0.3756462167 | BW202: 22.17639975 | BX202: 19.2944683
A203: 0.41 | B203: 1.716237188 | D203: 40 | E203: 4e-08 | F203: 19 | G203: 5 | H203: 0 | I203: -2.288998e-07 | J203: 20.29327165 | K203: 0 | L203: -9.457551552e-13 | M203: 19 | N203: 18.91561157 | O203: 1.820572537 | P203: 1.800295405 | Q203: 1.800021557 | R203: 23.89863338 | S203: 18.93760616 | T203: 18.98986261 | U203: 18.93760615 | V203: 23.91561157 | W203: -0.01852809819 | X203: -0.01852809819 | Y203: -0.01839139551 | Z203: 18.91561133 | AA203: 18.91562986 | AB203: -0.01852809822 | AC203: -0.01852833942 | AD203: 19.00000143 | AE203: 18.92745645 | AF203: 20.27711398 | AG203: -20.2776513 | AH203: -0.02176690744 | AI203: 0.0001952895393 | AJ203: 0.0004823665427 | AK203: 0.0004824035738 | AL203: 20.2776513 | AM203: 20.29939926 | AP203: 40 | AQ203: 19 | AR203: 0 | AS203: 0 | AT203: -2.288998e-07 | AU203: 19.90081941 | AV203: 0 | AW203: -1.090799773e-12 | AX203: 19 | AY203: 19.03398928 | AZ203: 1.827186144 | BA203: 1.804634134 | BB203: 1.802133615 | BC203: 21.28188167 | BD203: 18.59105281 | BE203: 18.98953847 | BF203: 18.59105363 | BG203: 19.03398928 | BH203: -0.644058483 | BI203: -0.644058483 | BJ203: -0.6439208716 | BK203: 19.03417711 | BL203: 19.03482098 | BM203: -0.644058456 | BN203: -0.6438706326 | BO203: 19.00062667 | BP203: 18.5814064 | BQ203: 22.55199242 | BR203: -22.17639975 | BS203: 2.881913313 | BT203: 0.0001965876655 | BU203: -0.3756475039 | BV203: -0.3756462167 | BW203: 22.17639975 | BX203: 19.2944683
A204: 0.42 | B204: 2.524983787 | D204: 41 | E204: 4.1e-08 | F204: 19 | G204: 5 | H204: 0 | I204: -2.288998e-07 | J204: 20.30205687 | K204: 0 | L204: -9.453593023e-13 | M204: 19 | N204: 18.91922891 | O204: 1.820609813 | P204: 1.800315584 | Q204: 1.80002486 | R204: 23.9036603 | S204: 18.93766019 | T204: 18.98984605 | U204: 18.93766018 | V204: 23.91922891 | W204: -0.007017317368 | X204: -0.007017317368 | Y204: -0.006880646791 | Z204: 18.91923217 | AA204: 18.91923919 | AB204: -0.007017316895 | AC204: -0.007014051068 | AD204: 18.99998992 | AE204: 18.92750635 | AF204: 20.2942126 | AG204: -20.2877359 | AH204: -0.0199597454 | AI204: 0.0001952436815 | AJ204: -0.006531661519 | AK204: -0.006531647494 | AL204: 20.2877359 | AM204: 20.3076767 | AP204: 41 | AQ204: 19 | AR204: 0 | AS204: 0 | AT204: -2.288998e-07 | AU204: 100 | AV204: 0 | AW204: -1.0908e-12 | AX204: 19 | AY204: 18.39494159 | AZ204: 1.827120825 | BA204: 1.804587518 | BB204: 1.802105183 | BC204: 21.23985364 | BD204: 16.11034653 | BE204: 18.98984174 | BF204: 16.11034549 | BG204: 18.39494159 | BH204: -0.9256259856 | BI204: -0.9256259856 | BJ204: -0.9254893757 | BK204: 18.39514113 | BL204: 18.39606656 | BM204: -0.9256259569 | BN204: -0.9254264172 | BO204: 19.00090887 | BP204: 16.10110203 | BQ204: 22.53329052 | BR204: -22.13426083 | BS204: 3.647323143 | BT204: 0.0001951570371 | BU204: -0.399080284 | BV204: -0.3990784339 | BW204: 22.13426083 | BX204: 18.48692418
A205: 0.43 | B205: 3.714837951 | D205: 42 | E205: 4.2e-08 | F205: 19 | G205: 5 | H205: 0 | I205: -2.288998e-07 | J205: 20.31398051 | K205: 0 | L205: -9.45181693e-13 | M205: 19 | N205: 18.91743496 | O205: 1.820647276 | P205: 1.800335949 | Q205: 1.800028356 | R205: 23.90701427 | S205: 18.93767686 | T205: 18.98983111 | U205: 18.93767685 | V205: 23.91743496 | W205: -0.000417362381 | X205: -0.000417362381 | Y205: -0.0002807253424 | Z205: 18.91743843 | AA205: 18.91743885 | AB205: -0.0004173618787 | AC205: -0.0004138891102 | AD205: 18.99998332 | AE205: 18.92751797 | AF205: 20.31130939 | AG205: -20.30441881 | AH205: -0.01335985378 | AI205: 0.0001951957693 | AJ205: -0.006945537435 | AK205: -0.006945536604 | AL205: 20.30441881 | AM205: 20.31775971 | AP205: 42 | AQ205: 19 | AR205: 0 | AS205: 0 | AT205: -2.288998e-07 | AU205: 100 | AV205: 0 | AW205: -1.0908e-12 | AX205: 19 | AY205: 18.56671687 | AZ205: 1.827121169 | BA205: 1.80458769 | BB205: 1.802105185 | BC205: 21.35863693 | BD205: 16.42697212 | BE205: 18.98972648 | BF205: 16.42697131 | BG205: 18.56671687 | BH205: -0.848920064 | BI205: -0.848920064 | BJ205: -0.848783189 | BK205: 18.56687807 | BL205: 18.56772684 | BM205: -0.8489200408 | BN205: -0.848758835 | BO205: 19.00083203 | BP205: 16.41765546 | BQ205: 22.53346229 | BR205: -22.21110099 | BS205: 3.579384696 | BT205: 0.0001955357089 | BU205: -0.3224125485 | BV205: -0.3224108517 | BW205: 22.21110099 | BX205: 18.63170233
A206: 0.44 | B206: 5.465389893 | D206: 43 | E206: 4.3e-08 | F206: 19 | G206: 5 | H206: 0 | I206: -2.288998e-07 | J206: 20.32882544 | K206: 0 | L206: -9.45208401e-13 | M206: 19 | N206: 18.91437832 | O206: 1.820684922 | P206: 1.800356502 | Q206: 1.800032043 | R206: 23.90879839 | S206: 18.9376598 | T206: 18.98981881 | U206: 18.9376598 | V206: 23.91437832 | W206: 0.002226097433 | X206: 0.002226097433 | Y206: 0.002362708683 | Z206: 18.91438067 | AA206: 18.91437845 | AB206: 0.002226097774 | AC206: 0.002228456313 | AD206: 18.99998068 | AE206: 18.92749436 | AF206: 20.32840308 | AG206: -20.32374095 | AH206: -0.007153756202 | AI206: 0.0001951589285 | AJ206: -0.004717075839 | AK206: -0.004717080291 | AL206: 20.32374095 | AM206: 20.33087576 | AP206: 43 | AQ206: 19 | AR206: 0 | AS206: 0 | AT206: -2.288998e-07 | AU206: 100 | AV206: 0 | AW206: -1.0908e-12 | AX206: 19 | AY206: 18.744505 | AZ206: 1.827121525 | BA206: 1.804587868 | BB206: 1.802105187 | BC206: 21.48157813 | BD206: 16.75468093 | BE206: 18.98960718 | BF206: 16.75468035 | BG206: 18.744505 | BH206: -0.7695291133 | BI206: -0.7695291133 | BJ206: -0.7693919639 | BK206: 18.74462653 | BL206: 18.74539594 | BM206: -0.7695290958 | BN206: -0.7694075656 | BO206: 19.0007525 | BP206: 16.74528958 | BQ206: 22.53364008 | BR206: -22.29063087 | BS206: 3.509068119 | BT206: 0.0001959276358 | BU206: -0.2430611205 | BV206: -0.2430595823 | BW206: 22.29063087 | BX206: 18.78154832
A207: 0.45 | B207: 8.04085855 | D207: 44 | E207: 4.4e-08 | F207: 19 | G207: 5 | H207: 0 | I207: -2.288998e-07 | J207: 20.34546186 | K207: 0 | L207: -9.453672195e-13 | M207: 19 | N207: 18.9119485 | O207: 1.820722753 | P207: 1.800377241 | Q207: 1.800035921 | R207: 23.90955159 | S207: 18.93762149 | T207: 18.98980876 | U207: 18.93762148 | V207: 23.9119485 | W207: 0.00248824622 | X207: 0.00248824622 | Y207: 0.002624840339 | Z207: 18.91194962 | AA207: 18.91194713 | AB207: 0.002488246381 | AC207: 0.00248936024 | AD207: 18.99998042 | AE207: 18.9274483 | AF207: 20.34549431 | AG207: -20.34332153 | AH207: -0.003072970224 | AI207: 0.0001951344558 | AJ207: -0.002227715076 | AK207: -0.002227720051 | AL207: 20.34332153 | AM207: 20.34637555 | AP207: 44 | AQ207: 19 | AR207: 0 | AS207: 0 | AT207: -2.288998e-07 | AU207: 100 | AV207: 0 | AW207: -1.0908e-12 | AX207: 19 | AY207: 18.92908098 | AZ207: 1.827121894 | BA207: 1.804588052 | BB207: 1.802105189 | BC207: 21.60921316 | BD207: 17.09490148 | BE207: 18.98948333 | BF207: 17.09490114 | BG207: 18.92908098 | BH207: -0.687107062 | BI207: -0.687107062 | BJ207: -0.6869696278 | BK207: 18.92916132 | BL207: 18.92984835 | BM207: -0.6871070505 | BN207: -0.6870267107 | BO207: 19.00066993 | BP207: 17.08543258 | BQ207: 22.53382466 | BR207: -22.37319716 | BS207: 3.436066895 | BT207: 0.0001963345262 | BU207: -0.160680101 | BV207: -0.1606787274 | BW207: 22.37319716 | BX207: 18.93711535
A208: 0.46 | B208: 11.82997137 | D208: 45 | E208: 4.5e-08 | F208: 19 | G208: 5 | H208: 0 | I208: -2.288998e-07 | J208: 20.3628199 | K208: 0 | L208: -9.455891271e-13 | M208: 19 | N208: 18.91060097 | O208: 1.82076077 | P208: 1.800398169 | Q208: 1.800039992 | R208: 23.90979128 | S208: 18.93757328 | T208: 18.9898001 | U208: 18.93757328 | V208: 23.91060097 | W208: 0.001735545316 | X208: 0.001735545316 | Y208: 0.001872128341 | Z208: 18.91060122 | AA208: 18.91059948 | AB208: 0.001735545351 | AC208: 0.001735791315 | AD208: 18.99998117 | AE208: 18.92739169 | AF208: 20.36258415 | AG208: -20.36214716 | AH208: -0.001038066527 | AI208: 0.0001951186076 | AJ208: -0.0004919252673 | AK208: -0.0004919287365 | AL208: 20.36214716 | AM208: 20.36316628 | AP208: 45 | AQ208: 19 | AR208: 0 | AS208: 0 | AT208: -2.288998e-07 | AU208: 100 | AV208: 0 | AW208: -1.0908e-12 | AX208: 19 | AY208: 19.12139994 | AZ208: 1.827122279 | BA208: 1.804588245 | BB208: 1.802105191 | BC208: 21.74220248 | BD208: 17.4493943 | BE208: 18.98935429 | BF208: 17.44939422 | BG208: 19.12139994 | BH208: -0.6012273982 | BI208: -0.6012273982 | BJ208: -0.6010896672 | BK208: 19.12143736 | BL208: 19.12203855 | BM208: -0.6012273928 | BN208: -0.6011899715 | BO208: 19.0005839 | BP208: 17.43984462 | BQ208: 22.53401697 | BR208: -22.4592271 | BS208: 3.360003263 | BT208: 0.0001967584858 | BU208: -0.07484318998 | BV208: -0.07484198819 | BW208: 22.45922711 | BX208: 19.09920842
A209: 0.47 | B209: 17.40463674 | D209: 46 | E209: 4.6e-08 | F209: 19 | G209: 5 | H209: 0 | I209: -2.288998e-07 | J209: 20.38023599 | K209: 0 | L209: -9.458298294e-13 | M209: 19 | N209: 18.91011324 | O209: 1.820798976 | P209: 1.800419285 | Q209: 1.800044253 | R209: 23.90985337 | S209: 18.93752225 | T209: 18.98979204 | U209: 18.93752225 | V209: 23.91011324 | W209: 0.000834575891 | X209: 0.000834575891 | Y209: 0.000971150725 | Z209: 18.91011307 | AA209: 18.91011224 | AB209: 0.0008345758662 | AC209: 0.0008344046279 | AD209: 18.99998208 | AE209: 18.92733206 | AF209: 20.37967347 | AG209: -20.38007088 | AH209: -0.0003331673425 | AI209: 0.0001951069058 | AJ209: 0.0003424775595 | AK209: 0.0003424758913 | AL209: 20.38007088 | AM209: 20.38038509 | AP209: 46 | AQ209: 19 | AR209: 0 | AS209: 0 | AT209: -2.288998e-07 | AU209: 100 | AV209: 0 | AW209: -1.0908e-12 | AX209: 19 | AY209: 19.32266128 | AZ209: 1.827122682 | BA209: 1.804588446 | BB209: 1.802105193 | BC209: 21.8813755 | BD209: 17.82037022 | BE209: 18.98921924 | BF209: 17.8203704 | BG209: 19.32266128 | BH209: -0.5113545302 | BI209: -0.5113545302 | BJ209: -0.5112164887 | BK209: 19.32265378 | BL209: 19.32316515 | BM209: -0.5113545313 | BN209: -0.511362024 | BO209: 19.00049387 | BP209: 17.81073598 | BQ209: 22.53421823 | BR209: -22.54925724 | BS209: 3.280402851 | BT209: 0.0001972021584 | BU209: 0.01498493712 | BV209: 0.01498595931 | BW209: 22.54925724 | BX209: 19.26883845
A210: 0.48 | B210: 25.6062648 | D210: 47 | E210: 4.7e-08 | F210: 19 | G210: 5 | H210: 0 | I210: -2.288998e-07 | J210: 20.39744475 | K210: 0 | L210: -9.460693521e-13 | M210: 19 | N210: 18.9100884 | O210: 1.820837371 | P210: 1.800440591 | Q210: 1.800048707 | R210: 23.90989436 | S210: 18.93747144 | T210: 18.98978406 | U210: 18.93747144 | V210: 23.9100884 | W210: 0.0001796796252 | X210: 0.0001796796252 | Y210: 0.0003162468923 | Z210: 18.91008813 | AA210: 18.91008796 | AB210: 0.0001796795874 | AC210: 0.0001794186401 | AD210: 18.99998273 | AE210: 18.92727266 | AF210: 20.39676272 | AG210: -20.39733955 | AH210: -0.0002487614932 | AI210: 0.000195096096 | AJ210: 0.0005218948903 | AK210: 0.0005218945314 | AL210: 20.39733955 | AM210: 20.39756935 | AP210: 47 | AQ210: 19 | AR210: 0 | AS210: 0 | AT210: -2.288998e-07 | AU210: 100 | AV210: 0 | AW210: -1.0908e-12 | AX210: 19 | AY210: 19.53440527 | AZ210: 1.827123106 | BA210: 1.804588658 | BB210: 1.802105196 | BC210: 22.02779731 | BD210: 18.21066834 | BE210: 18.98907716 | BF210: 18.2106688 | BG210: 19.53440527 | BH210: -0.4168006524 | BI210: -0.4168006524 | BJ210: -0.4166622841 | BK210: 19.53435052 | BL210: 19.53476738 | BM210: -0.4168006603 | BN210: -0.4168554063 | BO210: 19.00039915 | BP210: 18.20094515 | BQ210: 22.53442998 | BR210: -22.64397657 | BS210: 3.196656467 | BT210: 0.0001976689397 | BU210: 0.1094917437 | BV210: 0.109492577 | BW210: 22.64397657 | BX210: 19.44730362
A211: 0.49 | B211: 37.67276536 | D211: 48 | E211: 4.8e-08 | F211: 19 | G211: 5 | H211: 0 | I211: -2.288998e-07 | J211: 20.41443537 | K211: 0 | L211: -9.463034792e-13 | M211: 19 | N211: 18.91020409 | O211: 1.820875955 | P211: 1.800462086 | Q211: 1.800053351 | R211: 23.90995364 | S211: 18.93742137 | T211: 18.98977592 | U211: 18.93742137 | V211: 23.91020409 | W211: -0.0001514883787 | X211: -0.0001514883787 | Y211: -1.49292053e-05 | Z211: 18.91020391 | AA211: 18.91020406 | AB211: -0.0001514884055 | AC211: -0.0001516735159 | AD211: 18.99998306 | AE211: 18.92721408 | AF211: 20.41385204 | AG211: -20.4142772 | AH211: -0.0003210977303 | AI211: 0.0001950845335 | AJ211: 0.0003702207124 | AK211: 0.0003702210155 | AL211: 20.4142772 | AM211: 20.41457935 | AP211: 48 | AQ211: 19 | AR211: 0 | AS211: 0 | AT211: -2.288998e-07 | AU211: 62.93883608 | AV211: 0 | AW211: -1.09079917e-12 | AX211: 19 | AY211: 19.75866461 | AZ211: 1.827123555 | BA211: 1.804588883 | BB211: 1.802105198 | BC211: 22.18287354 | BD211: 18.62403543 | BE211: 18.98892669 | BF211: 18.62403618 | BG211: 19.75866461 | BH211: -0.3166580694 | BI211: -0.3166580694 | BJ211: -0.3165193551 | BK211: 19.75855982 | BL211: 19.75887658 | BM211: -0.3166580845 | BN211: -0.3167628769 | BO211: 19.00029883 | BP211: 18.61421802 | BQ211: 22.53465424 | BR211: -22.74429439 | BS211: 3.107960166 | BT211: 0.0001981633106 | BU211: 0.2095844734 | BV211: 0.2095851064 | BW211: 22.74429439 | BX211: 19.63631716
A212: 0.5 | B212: 55.42539139 | D212: 49 | E212: 4.9e-08 | F212: 19 | G212: 5 | H212: 0 | I212: -2.288998e-07 | J212: 20.43130352 | K212: 0 | L212: -9.465349786e-13 | M212: 19 | N212: 18.91028282 | O212: 1.820914729 | P212: 1.800483771 | Q212: 1.800058187 | R212: 23.91001759 | S212: 18.9373715 | T212: 18.98976758 | U212: 18.9373715 | V212: 23.91028282 | W212: -0.0002353002879 | X212: -0.0002353002879 | Y212: -9.875002618e-05 | Z212: 18.91028276 | AA212: 18.91028299 | AB212: -0.0002353002976 | AC212: -0.0002353677242 | AD212: 18.99998315 | AE212: 18.92715578 | AF212: 20.43094141 | AG212: -20.4311312 | AH212: -0.0003400488705 | AI212: 0.0001950718025 | AJ212: 0.0001348528209 | AK212: 0.0001348532913 | AL212: 20.4311312 | AM212: 20.4314523 | AP212: 49 | AQ212: 19 | AR212: 0 | AS212: 0 | AT212: -2.288998e-07 | AU212: 21.59505653 | AV212: 0 | AW212: -1.083082336e-12 | AX212: 19 | AY212: 19.88700783 | AZ212: 1.827123812 | BA212: 1.804589011 | BB212: 1.8021052 | BC212: 22.2716234 | BD212: 18.86060473 | BE212: 18.98884057 | BF212: 18.86060566 | BG212: 19.88700783 | BH212: -0.259346679 | BI212: -0.259346679 | BJ212: -0.2592077667 | BK212: 19.8868744 | BL212: 19.88713388 | BM212: -0.2593466982 | BN212: -0.259480132 | BO212: 19.00024142 | BP212: 18.85073341 | BQ212: 22.53478258 | BR212: -22.80170636 | BS212: 3.057199447 | BT212: 0.0001984462382 | BU212: 0.2668673327 | BV212: 0.2668678513 | BW212: 22.80170636 | BX212: 19.74448932
A213: 0.51 | B213: 81.5436292 | D213: 50 | E213: 5e-08 | F213: 19 | G213: 5 | H213: 0 | I213: -2.288998e-07 | J213: 20.44815252 | K213: 0 | L213: -9.467677663e-13 | M213: 19 | N213: 18.91026913 | O213: 1.820953692 | P213: 1.800505645 | Q213: 1.800063215 | R213: 23.91006243 | S213: 18.93732118 | T213: 18.98975908 | U213: 18.93732118 | V213: 23.91026913 | W213: -0.0001863944877 | X213: -0.0001863944877 | Y213: -4.985378512e-05 | Z213: 18.91026916 | AA213: 18.91026934 | AB213: -0.0001863944839 | AC213: -0.0001863687261 | AD213: 18.9999831 | AE213: 18.92709704 | AF213: 20.44803073 | AG213: -20.44803415 | AH213: -0.0002650058693 | AI213: 0.0001950581465 | AJ213: -5.151580737e-05 | AK213: -5.151543482e-05 | AL213: 20.44803415 | AM213: 20.4482802 | AQ213: 19 | AR213: 0 | AS213: 0 | AT213: -2.288998e-07 | AU213: 20.63988757 | AV213: 0 | AW213: -1.081218947e-12 | AX213: 19 | AY213: 19.89004563 | AZ213: 1.827123818 | BA213: 1.804589014 | BB213: 1.8021052 | BC213: 22.27372407 | BD213: 18.86620423 | BE213: 18.98883853 | BF213: 18.86620516 | BG213: 19.89004563 | BH213: -0.2579901956 | BI213: -0.2579901956 | BJ213: -0.2578512785 | BK213: 19.88991152 | BL213: 19.89016964 | BM213: -0.2579902149 | BN213: -0.2581243266 | BO213: 19.00024006 | BP213: 18.85633163 | BQ213: 22.53478562 | BR213: -22.80306557 | BS213: 3.055997995 | BT213: 0.0001984529351 | BU213: 0.2682231409 | BV213: 0.2682236567 | BW213: 22.80306557 | BX213: 19.74704975
A214: 0.52 | B214: 119.9696257 | D214: 51 | E214: 5.1e-08 | F214: 19 | G214: 5 | H214: 0 | I214: -2.288998e-07 | J214: 20.46504911 | K214: 0 | L214: -9.470042586e-13 | M214: 19 | N214: 18.91017764 | O214: 1.820992845 | P214: 1.800527708 | Q214: 1.800068434 | R214: 23.91007381 | S214: 18.93727003 | T214: 18.9897505 | U214: 18.93727003 | V214: 23.91017764 | W214: -9.754319351e-05 | X214: -9.754319351e-05 | Y214: 3.89876116e-05 | Z214: 18.91017771 | AA214: 18.91017781 | AB214: -9.754318271e-05 | AC214: -9.74686906e-05 | AD214: 18.99998301 | AE214: 18.92703746 | AF214: 20.46511991 | AG214: -20.46502587 | AH214: -0.0001331095696 | AI214: 0.0001950440073 | AJ214: -0.0001489843203 | AK214: -0.0001489841254 | AL214: 20.46502587 | AM214: 20.46514002 | AQ214: 19 | AR214: 0 | AS214: 0 | AT214: -2.288998e-07 | AU214: 20.63935214 | AV214: 0 | AW214: -1.081217785e-12 | AX214: 19 | AY214: 19.89004733 | AZ214: 1.827123818 | BA214: 1.804589014 | BB214: 1.8021052 | BC214: 22.27372524 | BD214: 18.86620737 | BE214: 18.98883853 | BF214: 18.8662083 | BG214: 19.89004733 | BH214: -0.2579894361 | BI214: -0.2579894361 | BJ214: -0.257850519 | BK214: 19.88991322 | BL214: 19.89017135 | BM214: -0.2579894554 | BN214: -0.2581235675 | BO214: 19.00024006 | BP214: 18.85633477 | BQ214: 22.53478562 | BR214: -22.80306633 | BS214: 3.055997322 | BT214: 0.0001984529388 | BU214: 0.2682239 | BV214: 0.2682244159 | BW214: 22.80306633 | BX214: 19.74705118
A215: 0.53 | B215: 176.503195 | D215: 52 | E215: 5.2e-08 | F215: 19 | G215: 5 | H215: 0 | I215: -2.288998e-07 | J215: 20.48201728 | K215: 0 | L215: -9.472449273e-13 | M215: 19 | N215: 18.91004703 | O215: 1.821032186 | P215: 1.80054996 | Q215: 1.800073844 | R215: 23.91005039 | S215: 18.93721804 | T215: 18.98974189 | U215: 18.93721804 | V215: 23.91004703 | W215: -2.170370176e-05 | X215: -2.170370176e-05 | Y215: 0.0001148171314 | Z215: 18.91004711 | AA215: 18.91004713 | AB215: -2.170368941e-05 | AC215: -2.161838814e-05 | AD215: 18.99998293 | AE215: 18.926977 | AF215: 20.48220893 | AG215: -20.48209326 | AH215: 4.314338918e-06 | AI215: 0.0001950297616 | AJ215: -0.0001706025569 | AK215: -0.0001706025136 | AL215: 20.48209326 | AM215: 20.48206999 | AQ215: 19 | AR215: 1.25 | AS215: 0 | AT215: -2.288998e-07 | AU215: 100 | AV215: 0 | AW215: -1.0908e-12 | AX215: 19 | AY215: 18.6262577 | AZ215: 1.82705699 | BA215: 1.804541742 | BB215: 1.802076958 | BC215: 22.14207136 | BD215: 16.10455035 | BE215: 18.98916937 | BF215: 16.10454893 | BG215: 19.8762577 | BH215: -0.3710580486 | BI215: -0.3710580486 | BJ215: -0.3709223821 | BK215: 18.62633052 | BL215: 18.6267015 | BM215: -0.3710580381 | BN215: -0.3709852239 | BO215: 19.00035419 | BP215: 16.09481655 | BQ215: 22.51523118 | BR215: -22.36965371 | BS215: 2.904889304 | BT215: 0.0001938092441 | BU215: -0.1456286834 | BV215: -0.1456279417 | BW215: 22.36965371 | BX215: 19.46475104
A216: 0.54 | B216: 259.6772113 | D216: 53 | E216: 5.3e-08 | F216: 19 | G216: 5 | H216: 0 | I216: -2.288998e-07 | J216: 20.49905086 | K216: 0 | L216: -9.47488906e-13 | M216: 19 | N216: 18.9099122 | O216: 1.821071716 | P216: 1.800572401 | Q216: 1.800079446 | R216: 23.90999968 | S216: 18.93716538 | T216: 18.98973329 | U216: 18.93716538 | V216: 23.9099122 | W216: 2.256355619e-05 | X216: 2.256355619e-05 | Y216: 0.0001590744968 | Z216: 18.90991228 | AA216: 18.90991225 | AB216: 2.256356691e-05 | AC216: 2.263754938e-05 | AD216: 18.99998289 | AE216: 18.92691584 | AF216: 20.49929777 | AG216: -20.49920474 | AH216: 0.0001121510332 | AI216: 0.0001950156294 | AJ216: -0.000147964919 | AK216: -0.0001479649642 | AL216: 20.49920474 | AM216: 20.49907363 | AQ216: 19 | AR216: 1.25 | AS216: 0 | AT216: -2.288998e-07 | AU216: 100 | AV216: 0 | AW216: -1.0908e-12 | AX216: 19 | AY216: 18.7374072 | AZ216: 1.827057212 | BA216: 1.804541853 | BB216: 1.802076959 | BC216: 22.21587226 | BD216: 16.31381917 | BE216: 18.98909408 | BF216: 16.3138179 | BG216: 19.9874072 | BH216: -0.3209567593 | BI216: -0.3209567593 | BJ216: -0.320820919 | BK216: 18.73745498 | BL216: 18.73777589 | BM216: -0.3209567524 | BN216: -0.3209089764 | BO216: 19.000304 | BP216: 16.30403649 | BQ216: 22.51534233 | BR216: -22.41984163 | BS216: 2.857006489 | BT216: 0.0001940575808 | BU216: -0.09555233569 | BV216: -0.09555169416 | BW216: 22.41984163 | BX216: 19.56282147
A217: 0.55 | B217: 382.0455152 | D217: 54 | E217: 5.4e-08 | F217: 19 | G217: 5 | H217: 0 | I217: -2.288998e-07 | J217: 20.51612972 | K217: 0 | L217: -9.477348103e-13 | M217: 19 | N217: 18.90979363 | O217: 1.821111435 | P217: 1.800595031 | Q217: 1.800085239 | R217: 23.90993235 | S217: 18.93711232 | T217: 18.98972471 | U217: 18.93711232 | V217: 23.90979363 | W217: 3.759170803e-05 | X217: 3.759170803e-05 | Y217: 0.0001740928877 | Z217: 18.90979368 | AA217: 18.90979364 | AB217: 3.759171603e-05 | AC217: 3.764687505e-05 | AD217: 18.99998287 | AE217: 18.92685426 | AF217: 20.51638645 | AG217: -20.51633107 | AH217: 0.0001778507364 | AI217: 0.0001950016852 | AJ217: -0.0001103180139 | AK217: -0.0001103180891 | AL217: 20.51633107 | AM217: 20.51613426 | AQ217: 19 | AR217: 1.25 | AS217: 0 | AT217: -2.288998e-07 | AU217: 100 | AV217: 0 | AW217: -1.0908e-12 | AX217: 19 | AY217: 18.85040394 | AZ217: 1.827057439 | BA217: 1.804541966 | BB217: 1.80207696 | BC217: 22.29089969 | BD217: 16.52656591 | BE217: 18.98901755 | BF217: 16.52656479 | BG217: 20.10040394 | BH217: -0.2700228153 | BI217: -0.2700228153 | BJ217: -0.2698867983 | BK217: 18.85042626 | BL217: 18.85069626 | BM217: -0.2700228121 | BN217: -0.2700004903 | BO217: 19.00025298 | BP217: 16.51673353 | BQ217: 22.51545532 | BR217: -22.47086365 | BS217: 2.80832789 | BT217: 0.0001943100447 | BU217: -0.04464374787 | BV217: -0.04464320814 | BW217: 22.47086365 | BX217: 19.66252178
A218: 0.56 | B218: 562.077723 | D218: 55 | E218: 5.5e-08 | F218: 19 | G218: 5 | H218: 0 | I218: -2.288998e-07 | J218: 20.53323224 | K218: 0 | L218: -9.479813495e-13 | M218: 19 | N218: 18.90969763 | O218: 1.821151343 | P218: 1.800617851 | Q218: 1.800091224 | R218: 23.90985801 | S218: 18.93705909 | T218: 18.98971615 | U218: 18.93705909 | V218: 23.90969763 | W218: 3.40310327e-05 | X218: 3.40310327e-05 | Y218: 0.0001705225705 | Z218: 18.90969766 | AA218: 18.90969763 | AB218: 3.403103823e-05 | AC218: 3.406916267e-05 | AD218: 18.99998288 | AE218: 18.92679248 | AF218: 20.533475 | AG218: -20.53345368 | AH218: 0.0002056135194 | AI218: 0.0001949879112 | AJ218: -7.62488584e-05 | AK218: -7.624892645e-05 | AL218: 20.53345368 | AM218: 20.53322912 | AQ218: 19 | AR218: 1.25 | AS218: 0 | AT218: -2.288998e-07 | AU218: 100 | AV218: 0 | AW218: -1.0908e-12 | AX218: 19 | AY218: 18.96536256 | AZ218: 1.827057669 | BA218: 1.804542081 | BB218: 1.802076962 | BC218: 22.36722977 | BD218: 16.74300642 | BE218: 18.98893969 | BF218: 16.74300547 | BG218: 20.21536256 | BH218: -0.2182045408 | BI218: -0.2182045408 | BJ218: -0.2180683439 | BK218: 18.96535899 | BL218: 18.9655772 | BM218: -0.2182045413 | BN218: -0.2182081158 | BO218: 19.00020107 | BP218: 16.73312349 | BQ218: 22.51557028 | BR218: -22.52277152 | BS218: 2.758804119 | BT218: 0.000194566892 | BU218: 0.007148730181 | BV218: 0.007149166445 | BW218: 22.52277152 | BX218: 19.76395311
A219: 0.57 | B219: 826.946932 | D219: 56 | E219: 5.6e-08 | F219: 19 | G219: 5 | H219: 0 | I219: -2.288998e-07 | J219: 20.55034205 | K219: 0 | L219: -9.482276218e-13 | M219: 19 | N219: 18.90962137 | O219: 1.82119144 | P219: 1.800640859 | Q219: 1.800097399 | R219: 23.9097832 | S219: 18.93700585 | T219: 18.98970761 | U219: 18.93700585 | V219: 23.90962137 | W219: 2.27217576e-05 | X219: 2.27217576e-05 | Y219: 0.0001592037334 | Z219: 18.90962139 | AA219: 18.90962137 | AB219: 2.272176149e-05 | AC219: 2.274851169e-05 | AD219: 18.99998289 | AE219: 18.92673068 | AF219: 20.55056343 | AG219: -20.55056486 | AH219: 0.0002074766045 | AI219: 0.0001949742511 | AJ219: -5.350036932e-05 | AK219: -5.350041477e-05 | AL219: 20.55056486 | AM219: 20.55033843 | AQ219: 19 | AR219: 1.25 | AS219: 0 | AT219: -2.288998e-07 | AU219: 100 | AV219: 0 | AW219: -1.0908e-12 | AX219: 19 | AY219: 19.08240999 | AZ219: 1.827057903 | BA219: 1.804542199 | BB219: 1.802076963 | BC219: 22.44494678 | BD219: 16.96337967 | BE219: 18.98886041 | BF219: 16.96337888 | BG219: 20.33240999 | BH219: -0.1654447236 | BI219: -0.1654447236 | BJ219: -0.1653083437 | BK219: 19.08238005 | BL219: 19.08254553 | BM219: -0.1654447279 | BN219: -0.1654746691 | BO219: 19.00014822 | BP219: 16.95344527 | BQ219: 22.51568733 | BR219: -22.57562258 | BS219: 2.708380496 | BT219: 0.0001948284062 | BU219: 0.05988228235 | BV219: 0.05988261307 | BW219: 22.57562258 | BX219: 19.86722747
A220: 0.58 | B220: 1216.631082 | D220: 57 | E220: 5.7e-08 | F220: 19 | G220: 5 | H220: 0 | I220: -2.288998e-07 | J220: 20.56744963 | K220: 0 | L220: -9.48473155e-13 | M220: 19 | N220: 18.90955822 | O220: 1.821231726 | P220: 1.800664057 | Q220: 1.800103766 | R220: 23.90971125 | S220: 18.93695267 | T220: 18.98969907 | U220: 18.93695267 | V220: 23.90955822 | W220: 1.109477763e-05 | X220: 1.109477763e-05 | Y220: 0.0001475672307 | Z220: 18.90955824 | AA220: 18.90955823 | AB220: 1.109478071e-05 | AC220: 1.111597293e-05 | AD220: 18.9999829 | AE220: 18.92666894 | AF220: 20.56765175 | AG220: -20.56766431 | AH220: 0.000196192271 | AI220: 0.0001949606472 | AJ220: -4.238441963e-05 | AK220: -4.238444184e-05 | AL220: 20.56766431 | AM220: 20.56744916 | AQ220: 19 | AR220: 1.25 | AS220: 0 | AT220: -2.288998e-07 | AU220: 100 | AV220: 0 | AW220: -1.0908e-12 | AX220: 19 | AY220: 19.20168736 | AZ220: 1.827058142 | BA220: 1.804542318 | BB220: 1.802076964 | BC220: 22.52414441 | BD220: 17.18795138 | BE220: 18.98877962 | BF220: 17.18795076 | BG220: 20.45168736 | BH220: -0.1116797504 | BI220: -0.1116797504 | BJ220: -0.1115431839 | BK220: 19.20163055 | BL220: 19.20174228 | BM220: -0.1116797586 | BN220: -0.1117365689 | BO220: 19.00009437 | BP220: 17.17796452 | BQ220: 22.51580661 | BR220: -22.62948052 | BS220: 2.656996225 | BT220: 0.0001950949027 | BU220: 0.11362049 | BV220: 0.1136207133 | BW220: 22.62948052 | BX220: 19.97246935
A221: 0.59 | B221: 1789.947012 | D221: 58 | E221: 5.8e-08 | F221: 19 | G221: 5 | H221: 0 | I221: -2.288998e-07 | J221: 20.58455124 | K221: 0 | L221: -9.487178076e-13 | M221: 19 | N221: 18.90950156 | O221: 1.8212722 | P221: 1.800687443 | Q221: 1.800110324 | R221: 23.90964304 | S221: 18.93689957 | T221: 18.98969053 | U221: 18.93689957 | V221: 23.90950156 | W221: 2.686193904e-06 | X221: 2.686193904e-06 | Y221: 0.0001391491343 | Z221: 18.90950158 | AA221: 18.90950158 | AB221: 2.68619679e-06 | AC221: 2.706035992e-06 | AD221: 18.99998291 | AE221: 18.9266073 | AF221: 20.58473998 | AG221: -20.58475524 | AH221: 0.0001813911075 | AI221: 0.0001949470577 | AJ221: -3.967840046e-05 | AK221: -3.967840585e-05 | AL221: 20.58475524 | AM221: 20.58455489 | AQ221: 19 | AR221: 1.25 | AS221: 0 | AT221: -2.288998e-07 | AU221: 100 | AV221: 0 | AW221: -1.0908e-12 | AX221: 19 | AY221: 19.3233523 | AZ221: 1.827058386 | BA221: 1.80454244 | BB221: 1.802076966 | BC221: 22.60492735 | BD221: 17.41701835 | BE221: 18.98869722 | BF221: 17.41701789 | BG221: 20.5733523 | BH221: -0.05683856157 | BI221: -0.05683856157 | BJ221: -0.05670180486 | BK221: 19.32326809 | BL221: 19.32332501 | BM221: -0.05683857373 | BN221: -0.05692279095 | BO221: 19.00003943 | BP221: 17.40697799 | BQ221: 22.51592827 | BR221: -22.68441653 | BS221: 2.604583393 | BT221: 0.0001953667336 | BU221: 0.1684343775 | BV221: 0.1684344913 | BW221: 22.68441653 | BX221: 20.07981787
A222: 0.6 | B222: 2633.427957 | D222: 59 | E222: 5.9e-08 | F222: 19 | G222: 5 | H222: 0 | I222: -2.288998e-07 | J222: 20.60164681 | K222: 0 | L222: -9.48961632e-13 | M222: 19 | N222: 18.90944659 | O222: 1.821312864 | P222: 1.800711019 | Q222: 1.800117074 | R222: 23.90957808 | S222: 18.93684655 | T222: 18.98968199 | U222: 18.93684655 | V222: 23.90944659 | W222: -1.837207297e-06 | X222: -1.837207297e-06 | Y222: 0.0001346162148 | Z222: 18.90944661 | AA222: 18.90944661 | AB222: -1.83720428e-06 | AC222: -1.816456847e-06 | AD222: 18.99998291 | AE222: 18.92654572 | AF222: 20.60182812 | AG222: -20.60184156 | AH222: 0.0001685769413 | AI222: 0.0001949334601 | AJ222: -4.149486634e-05 | AK222: -4.14948627e-05 | AL222: 20.60184156 | AM222: 20.60165402 | AQ222: 19 | AR222: 1.25 | AS222: 0 | AT222: -2.288998e-07 | AU222: 100 | AV222: 0 | AW222: -1.0908e-12 | AX222: 19 | AY222: 19.44758182 | AZ222: 1.827058634 | BA222: 1.804542564 | BB222: 1.802076967 | BC222: 22.68741311 | BD222: 17.65091382 | BE222: 18.98861308 | BF222: 17.65091353 | BG222: 20.69758182 | BH222: -0.0008413758478 | BI222: -0.0008413758478 | BJ222: -0.0007044248416 | BK222: 19.44746962 | BL222: 19.44747057 | BM222: -0.0008413920495 | BN222: -0.0009535938932 | BO222: 18.99998334 | BP222: 17.64081882 | BQ222: 22.5160525 | BR222: -22.74051055 | BS222: 2.551065751 | BT222: 0.0001956442945 | BU222: 0.2244036865 | BV222: 0.2244036883 | BW222: 22.74051055 | BX222: 20.18942919
A223: 0.61 | B223: 3874.384414 | D223: 60 | E223: 6e-08 | F223: 19 | G223: 5 | H223: 0 | I223: -2.288998e-07 | J223: 20.61873788 | K223: 0 | L223: -9.492047554e-13 | M223: 19 | N223: 18.90939069 | O223: 1.821353717 | P223: 1.800734783 | Q223: 1.800124014 | R223: 23.90951534 | S223: 18.93679358 | T223: 18.98967345 | U223: 18.93679358 | V223: 23.90939069 | W223: -3.316573243e-06 | X223: -3.316573243e-06 | Y223: 0.0001331273197 | Z223: 18.90939071 | AA223: 18.90939071 | AB223: -3.316569988e-06 | AC223: -3.294175467e-06 | AD223: 18.99998292 | AE223: 18.9264842 | AF223: 20.61891615 | AG223: -20.6189263 | AH223: 0.0001598053621 | AI223: 0.0001949198471 | AJ223: -4.478904477e-05 | AK223: -4.478903816e-05 | AL223: 20.6189263 | AM223: 20.61874754 | AQ223: 19 | AR223: 1.25 | AS223: 0 | AT223: -2.288998e-07 | AU223: 100 | AV223: 0 | AW223: -1.0908e-12 | AX223: 19 | AY223: 19.57457574 | AZ223: 1.827058889 | BA223: 1.804542691 | BB223: 1.802076968 | BC223: 22.77173437 | BD223: 17.89001401 | BE223: 18.98852707 | BF223: 17.89001391 | BG223: 20.82457574 | BH223: 0.05640187963 | BI223: 0.05640187963 | BJ223: 0.05653902926 | BK223: 19.57443493 | BL223: 19.57437867 | BM223: 0.0564018593 | BN223: 0.05626105011 | BO223: 18.99992599 | BP223: 17.87986317 | BQ223: 22.51617949 | BR223: -22.79785279 | BS223: 2.496357216 | BT223: 0.0001959280318 | BU223: 0.2816184449 | BV223: 0.2816183323 | BW223: 22.79785278 | BX223: 20.30147961
A224: 0.62 | B224: 5700.119705 | D224: 61 | E224: 6.1e-08 | F224: 19 | G224: 5 | H224: 0 | I224: -2.288998e-07 | J224: 20.63582631 | K224: 0 | L224: -9.494473066e-13 | M224: 19 | N224: 18.90933294 | O224: 1.821394758 | P224: 1.800758737 | Q224: 1.800131146 | R224: 23.90945381 | S224: 18.93674063 | T224: 18.98966491 | U224: 18.93674063 | V224: 23.90933294 | W224: -3.022301231e-06 | X224: -3.022301231e-06 | Y224: 0.0001334120528 | Z224: 18.90933296 | AA224: 18.90933296 | AB224: -3.022297758e-06 | AC224: -2.998404036e-06 | AD224: 18.99998292 | AE224: 18.92642271 | AF224: 20.63600409 | AG224: -20.63601124 | AH224: 0.0001549703448 | AI224: 0.0001949062201 | AJ224: -4.778744821e-05 | AK224: -4.77874422e-05 | AL224: 20.63601124 | AM224: 20.63583731 | AQ224: 19 | AR224: 1.25 | AS224: 0 | AT224: -2.288998e-07 | AU224: 100 | AV224: 0 | AW224: -1.0908e-12 | AX224: 19 | AY224: 19.70456105 | AZ224: 1.827059149 | BA224: 1.804542821 | BB224: 1.80207697 | BC224: 22.85804185 | BD224: 18.13474629 | BE224: 18.98843903 | BF224: 18.13474637 | BG224: 20.95456105 | BH224: 0.1149935204 | BI224: 0.1149935204 | BJ224: 0.1151308733 | BK224: 19.70439096 | BL224: 19.70427613 | BM224: 0.1149934959 | BN224: 0.1148234055 | BO224: 18.9998673 | BP224: 18.12453829 | BQ224: 22.51630948 | BR224: -22.85654574 | BS224: 2.440360001 | BT224: 0.0001962184525 | BU224: 0.3401809174 | BV224: 0.3401806877 | BW224: 22.85654574 | BX224: 20.41616943
A225: 0.63 | B225: 8386.200535 | D225: 62 | E225: 6.2e-08 | F225: 19 | G225: 5 | H225: 0 | I225: -2.288998e-07 | J225: 20.65291355 | K225: 0 | L225: -9.496893806e-13 | M225: 19 | N225: 18.90927344 | O225: 1.821435988 | P225: 1.800782879 | Q225: 1.800138469 | R225: 23.90939278 | S225: 18.93668769 | T225: 18.98965637 | U225: 18.93668769 | V225: 23.90927344 | W225: -2.038241453e-06 | X225: -2.038241453e-06 | Y225: 0.0001343865673 | Z225: 18.90927347 | AA225: 18.90927347 | AB225: -2.038237835e-06 | AC225: -2.013337444e-06 | AD225: 18.99998291 | AE225: 18.92636123 | AF225: 20.65309193 | AG225: -20.65309706 | AH225: 0.0001530053018 | AI225: 0.000194892584 | AJ225: -4.980078369e-05 | AK225: -4.980077964e-05 | AL225: 20.65309706 | AM225: 20.6529251 | AQ225: 19 | AR225: 1.25 | AS225: 0 | AT225: -2.288998e-07 | AU225: 100 | AV225: 0 | AW225: -1.0908e-12 | AX225: 19 | AY225: 19.83779733 | AZ225: 1.827059416 | BA225: 1.804542955 | BB225: 1.802076971 | BC225: 22.94650791 | BD225: 18.38559941 | BE225: 18.98834879 | BF225: 18.38559968 | BG225: 21.08779733 | BH225: 0.1750505574 | BI225: 0.1750505574 | BJ225: 0.1751881187 | BK225: 19.83759722 | BL225: 19.83742237 | BM225: 0.1750505285 | BN225: 0.1748504246 | BO225: 18.99980714 | BP225: 18.37533281 | BQ225: 22.51644272 | BR225: -22.91670662 | BS225: 2.382962278 | BT225: 0.0001965161368 | BU225: 0.4002080565 | BV225: 0.4002077068 | BW225: 22.91670662 | BX225: 20.53372767
A226: 0.64 | B226: =$O$60*(EXP(A226/$B$46)-1) -> 12338.04956 | D226: 63 | E226: 6.3e-08 | F226: 19 | G226: 5 | H226: 0 | I226: -2.288998e-07 | J226: 20.67000048 | K226: 0 | L226: -9.499310332e-13 | M226: 19 | N226: 18.90921273 | O226: 1.821477407 | P226: 1.800807211 | Q226: 1.800145983 | R226: 23.90933183 | S226: 18.93663476 | T226: 18.98964782 | U226: 18.93663476 | V226: 23.90921273 | W226: -1.042980935e-06 | X226: -1.042980935e-06 | Y226: 0.0001353722797 | Z226: 18.90921275 | AA226: 18.90921275 | AB226: -1.042977244e-06 | AC226: -1.017568069e-06 | AD226: 18.99998291 | AE226: 18.92629975 | AF226: 20.67017966 | AG226: -20.67018378 | AH226: 0.000152700039 | AI226: 0.0001948789438 | AJ226: -5.081834977e-05 | AK226: -5.081834771e-05 | AL226: 20.67018378 | AM226: 20.67001213 | AQ226: 19 | AR226: 1.25 | AS226: 0 | AT226: -2.288998e-07 | AU226: 99.93027187 | AV226: 0 | AW226: -1.090798219e-12 | AX226: 19 | AY226: 19.9745837 | AZ226: 1.827059689 | BA226: 1.804543092 | BB226: 1.802076973 | BC226: 23.03733115 | BD226: 18.64313653 | BE226: 18.98825614 | BF226: 18.64313698 | BG226: 21.2245837 | BH226: 0.2367078172 | BI226: 0.2367078172 | BJ226: 0.2368455924 | BK226: 19.97435278 | BL226: 19.9741163 | BM226: 0.2367077839 | BN226: 0.2364768667 | BO226: 18.99974538 | BP226: 18.63280977 | BQ226: 22.5165795 | BR226: -22.9784705 | BS226: 2.32403519 | BT226: 0.000196821753 | BU226: 0.4618346218 | BV226: 0.4618341489 | BW226: 22.9784705 | BX226: 20.65441826
A227: 0.65 | B227: 18152.13771 | D227: 64 | E227: 6.4e-08 | F227: 19 | G227: 5 | H227: 0 | I227: -2.288998e-07 | J227: 20.68708751 | K227: 0 | L227: -9.501722889e-13 | M227: 19 | N227: 18.90915135 | O227: 1.821519015 | P227: 1.800831731 | Q227: 1.800153688 | R227: 23.90927078 | S227: 18.93658182 | T227: 18.98963928 | U227: 18.93658182 | V227: 23.90915135 | W227: -3.348196883e-07 | X227: -3.348196883e-07 | Y227: 0.0001360708924 | Z227: 18.90915138 | AA227: 18.90915138 | AB227: -3.348159744e-07 | AC227: -3.092521743e-07 | AD227: 18.99998291 | AE227: 18.92623827 | AF227: 20.6872673 | AG227: -20.6872711 | AH227: 0.0001531086175 | AI227: 0.000194865303 | AJ227: -5.112760053e-05 | AK227: -5.112759989e-05 | AL227: 20.6872711 | AM227: 20.68709904 | AQ227: 19 | AR227: 1.25 | AS227: 0 | AT227: -2.288998e-07 | AU227: 22.84120323 | AV227: 0 | AW227: -1.041834056e-12 | AX227: 19 | AY227: 20.11514372 | AZ227: 1.827059971 | BA227: 1.804543233 | BB227: 1.802076975 | BC227: 23.13066001 | BD227: 18.90777856 | BE227: 18.98816094 | BF227: 18.90777921 | BG227: 21.36514372 | BH227: 0.3000660746 | BI227: 0.3000660746 | BJ227: 0.3002040696 | BK227: 20.11488114 | BL227: 20.11458134 | BM227: 0.3000660367 | BN227: 0.2998034561 | BO227: 18.99968191 | BP227: 18.89738999 | BQ227: 22.51672006 | BR227: -23.04193831 | BS227: 2.263482423 | BT227: 0.0001971358004 | BU227: 0.5251613379 | BV227: 0.5251607383 | BW227: 23.04193831 | BX227: 20.77843846
A228: 0.66 | B228: 26706.0123 | D228: 65 | E228: 6.5e-08 | F228: 19 | G228: 5 | H228: 0 | I228: -2.288998e-07 | J228: 20.70417472 | K228: 0 | L228: -9.504131531e-13 | M228: 19 | N228: 18.90908973 | O228: 1.821560812 | P228: 1.80085644 | Q228: 1.800161584 | R228: 23.90920958 | S228: 18.93652887 | T228: 18.98963073 | U228: 18.93652887 | V228: 23.90908973 | W228: 4.299674764e-08 | X228: 4.299674764e-08 | Y228: 0.0001364391612 | Z228: 18.90908976 | AA228: 18.90908976 | AB228: 4.300045655e-08 | AC228: 6.852999146e-08 | AD228: 18.99998291 | AE228: 18.92617678 | AF228: 20.70435483 | AG228: -20.7043587 | AH228: 0.0001536563698 | AI228: 0.0001948516635 | AJ228: -5.105906978e-05 | AK228: -5.105906989e-05 | AL228: 20.7043587 | AM228: 20.70418609 | AQ228: 19 | AR228: 1.25 | AS228: 0 | AT228: -2.288998e-07 | AU228: 21.42363802 | AV228: 0 | AW228: -1.031494604e-12 | AX228: 19 | AY228: 20.11777811 | AZ228: 1.827059976 | BA228: 1.804543235 | BB228: 1.802076975 | BC228: 23.1324092 | BD228: 18.91273857 | BE228: 18.98815915 | BF228: 18.91273922 | BG228: 21.36777811 | BH228: 0.301253497 | BI228: 0.301253497 | BJ228: 0.3013914962 | BK228: 20.11751493 | BL228: 20.11721394 | BM228: 0.301253459 | BN228: 0.300990285 | BO228: 18.99968072 | BP228: 18.90234884 | BQ228: 22.5167227 | BR228: -23.04312818 | BS228: 2.262347561 | BT228: 0.0001971416865 | BU228: 0.5263481692 | BV228: 0.5263475672 | BW228: 23.04312818 | BX228: 20.78076292
A229: 0.67 | B229: 39290.74936 | D229: 66 | E229: 6.6e-08 | F229: 19 | G229: 5 | H229: 0 | I229: -2.288998e-07 | J229: 20.72126202 | K229: 0 | L229: -9.506536222e-13 | M229: 19 | N229: 18.9090281 | O229: 1.821602797 | P229: 1.800881338 | Q229: 1.800169671 | R229: 23.90914828 | S229: 18.93647593 | T229: 18.98962219 | U229: 18.93647593 | V229: 23.9090281 | W229: 1.706003894e-07 | X229: 1.706003894e-07 | Y229: 0.0001365572185 | Z229: 18.90902812 | AA229: 18.90902812 | AB229: 1.706040841e-07 | AC229: 1.960356012e-07 | AD229: 18.99998291 | AE229: 18.92611529 | AF229: 20.72144225 | AG229: -20.72144632 | AH229: 0.0001540825605 | AI229: 0.0001948380259 | AJ229: -5.086303392e-05 | AK229: -5.086303429e-05 | AL229: 20.72144632 | AM229: 20.72127328 | AQ229: 19 | AR229: 1.25 | AS229: 0 | AT229: -2.288998e-07 | AU229: 21.42313988 | AV229: 0 | AW229: -1.03149061e-12 | AX229: 19 | AY229: 20.11777903 | AZ229: 1.827059976 | BA229: 1.804543235 | BB229: 1.802076975 | BC229: 23.13240982 | BD229: 18.91274031 | BE229: 18.98815915 | BF229: 18.91274097 | BG229: 21.36777903 | BH229: 0.3012539133 | BI229: 0.3012539133 | BJ229: 0.3013919124 | BK229: 20.11751586 | BL229: 20.11721487 | BM229: 0.3012538753 | BN229: 0.3009907011 | BO229: 18.99968072 | BP229: 18.90235059 | BQ229: 22.5167227 | BR229: -23.0431286 | BS229: 2.262347163 | BT229: 0.0001971416885 | BU229: 0.5263485852 | BV229: 0.5263479833 | BW229: 23.0431286 | BX229: 20.78076374
A230: 0.68 | B230: 57805.8217 | D230: 67 | E230: 6.7e-08 | F230: 19 | G230: 5 | H230: 0 | I230: -2.288998e-07 | J230: 20.73834935 | K230: 0 | L230: -9.508936913e-13 | M230: 19 | N230: 18.90896654 | O230: 1.821644971 | P230: 1.800906425 | Q230: 1.800177949 | R230: 23.90908692 | S230: 18.93642298 | T230: 18.98961365 | U230: 18.93642298 | V230: 23.90896654 | W230: 1.570466867e-07 | X230: 1.570466867e-07 | Y230: 0.0001365341198 | Z230: 18.90896657 | AA230: 18.90896657 | AB230: 1.570503682e-07 | AC230: 1.823906899e-07 | AD230: 18.99998291 | AE230: 18.9260538 | AF230: 20.73852957 | AG230: -20.73853382 | AH230: 0.000154327243 | AI230: 0.0001948243902 | AJ230: -5.068064326e-05 | AK230: -5.06806436e-05 | AL230: 20.73853382 | AM230: 20.73836054 | AQ230: 19 | AR230: 0 | AS230: 0 | AT230: -2.288998e-07 | AU230: 100 | AV230: 0 | AW230: -1.0908e-12 | AX230: 19 | AY230: 18.37151128 | AZ230: 1.832503099 | BA230: 1.80486006 | BB230: 1.802284522 | BC230: 21.395016 | BD230: 15.25676028 | BE230: 18.98702001 | BF230: 15.25675853 | BG230: 18.37151128 | BH230: -0.7222330961 | BI230: -0.7222330961 | BJ230: -0.7220973235 | BK230: 18.37164726 | BL230: 18.37236936 | BM230: -0.7222330765 | BN230: -0.7220971003 | BO230: 19.00070557 | BP230: 15.24501112 | BQ230: 27.643022 | BR230: -27.3711187 | BS230: 3.876288097 | BT230: 0.0001939607857 | BU230: -0.2719531381 | BV230: -0.2719516945 | BW230: 27.3711187 | BX230: 23.49481869
A231: 0.69 | B231: 85045.79518 | D231: 68 | E231: 6.8e-08 | F231: 19 | G231: 5 | H231: 0 | I231: -2.288998e-07 | J231: 20.75543661 | K231: 0 | L231: -9.511333559e-13 | M231: 19 | N231: 18.90890507 | O231: 1.821687334 | P231: 1.8009317 | Q231: 1.800186418 | R231: 23.90902552 | S231: 18.93637003 | T231: 18.9896051 | U231: 18.93637003 | V231: 23.90890507 | W231: 9.087025185e-08 | X231: 9.087025185e-08 | Y231: 0.0001364583994 | Z231: 18.9089051 | AA231: 18.9089051 | AB231: 9.087392499e-08 | AC231: 1.161561687e-07 | AD231: 18.99998291 | AE231: 18.92599231 | AF231: 20.75561679 | AG231: -20.75562115 | AH231: 0.0001544266326 | AI231: 0.0001948107559 | AJ231: -5.056448722e-05 | AK231: -5.056448743e-05 | AL231: 20.75562115 | AM231: 20.75544778 | AQ231: 19 | AR231: 0 | AS231: 0 | AT231: -2.288998e-07 | AU231: 100 | AV231: 0 | AW231: -1.0908e-12 | AX231: 19 | AY231: 18.48846311 | AZ231: 1.832503333 | BA231: 1.804860177 | BB231: 1.802284524 | BC231: 21.47374109 | BD231: 15.47538302 | BE231: 18.98694109 | BF231: 15.47538143 | BG231: 18.48846311 | BH231: -0.6697124017 | BI231: -0.6697124017 | BJ231: -0.6695764472 | BK231: 18.48857284 | BL231: 18.48924245 | BM231: -0.6697123859 | BN231: -0.6696026569 | BO231: 19.00065296 | BP231: 15.46358321 | BQ231: 27.64313896 | BR231: -27.42373065 | BS231: 3.827279463 | BT231: 0.0001942206922 | BU231: -0.2194585899 | BV231: -0.2194572512 | BW231: 27.42373065 | BX231: 23.59643895
A232: 0.7 | B232: 125122.1255 | D232: 69 | E232: 6.9e-08 | F232: 19 | G232: 5 | H232: 0 | I232: -2.288998e-07 | J232: 20.77252377 | K232: 0 | L232: -9.513726141e-13 | M232: 19 | N232: 18.90884366 | O232: 1.821729885 | P232: 1.800957164 | Q232: 1.800195078 | R232: 23.90896413 | S232: 18.93631708 | T232: 18.98959656 | U232: 18.93631708 | V232: 23.90884366 | W232: 2.487444097e-08 | X232: 2.487444097e-08 | Y232: 0.0001363828604 | Z232: 18.90884369 | AA232: 18.90884369 | AB232: 2.487811049e-08 | AC232: 5.013528654e-08 | AD232: 18.99998291 | AE232: 18.92593081 | AF232: 20.7727039 | AG232: -20.77270832 | AH232: 0.0001544423383 | AI232: 0.0001947971229 | AJ232: -5.051435207e-05 | AK232: -5.051435215e-05 | AL232: 20.77270832 | AM232: 20.77253493 | AQ232: 19 | AR232: 0 | AS232: 0 | AT232: -2.288998e-07 | AU232: 100 | AV232: 0 | AW232: -1.0908e-12 | AX232: 19 | AY232: 18.60750823 | AZ232: 1.832503571 | BA232: 1.804860296 | BB232: 1.802284525 | BC232: 21.55387527 | BD232: 15.69791884 | BE232: 18.98686076 | BF232: 15.69791741 | BG232: 18.60750823 | BH232: -0.6162516516 | BI232: -0.6162516516 | BJ232: -0.616115512 | BK232: 18.60759124 | BL232: 18.60820742 | BM232: -0.6162516397 | BN232: -0.6161686278 | BO232: 19.0005994 | BP232: 15.68606747 | BQ232: 27.643258 | BR232: -27.47728428 | BS232: 3.777393634 | BT232: 0.0001944852507 | BU232: -0.1660244539 | BV232: -0.166023222 | BW232: 27.47728428 | BX232: 23.6998781
A233: 0.71 | B233: 184083.7193 | D233: 70 | E233: 7e-08 | F233: 19 | G233: 5 | H233: 0 | I233: -2.288998e-07 | J233: 20.78961079 | K233: 0 | L233: -9.516114655e-13 | M233: 19 | N233: 18.90878229 | O233: 1.821772625 | P233: 1.800982817 | Q233: 1.800203929 | R233: 23.90890274 | S233: 18.93626413 | T233: 18.98958802 | U233: 18.93626413 | V233: 23.90878229 | W233: -1.930966365e-08 | X233: -1.930966365e-08 | Y233: 0.0001363291339 | Z233: 18.90878231 | AA233: 18.90878231 | AB233: -1.930599457e-08 | AC233: 5.948207399e-09 | AD233: 18.99998291 | AE233: 18.92586932 | AF233: 20.78979091 | AG233: -20.78979533 | AH233: 0.000154425588 | AI233: 0.0001947834908 | AJ233: -5.050840395e-05 | AK233: -5.050840394e-05 | AL233: 20.78979533 | AM233: 20.78962196 | AQ233: 19 | AR233: 0 | AS233: 0 | AT233: -2.288998e-07 | AU233: 100 | AV233: 0 | AW233: -1.0908e-12 | AX233: 19 | AY233: 18.72878696 | AZ233: 1.832503813 | BA233: 1.804860417 | BB233: 1.802284526 | BC233: 21.63551297 | BD233: 15.92463003 | BE233: 18.98677892 | BF233: 15.92462877 | BG233: 18.72878696 | BH233: -0.561787834 | BI233: -0.561787834 | BJ233: -0.5616515056 | BK233: 18.72884275 | BL233: 18.72940449 | BM233: -0.5617878259 | BN233: -0.5617320323 | BO233: 19.00054484 | BP233: 15.91272614 | BQ233: 27.64337928 | BR233: -27.53184273 | BS233: 3.726571813 | BT233: 0.0001947547731 | BU233: -0.1115877497 | BV233: -0.1115866266 | BW233: 27.53184273 | BX233: 23.80525804
A234: 0.72 | B234: 270829.9238 | D234: 71 | E234: 7.1e-08 | F234: 19 | G234: 5 | H234: 0 | I234: -2.288998e-07 | J234: 20.8066977 | K234: 0 | L234: -9.518499107e-13 | M234: 19 | N234: 18.90872091 | O234: 1.821815554 | P234: 1.801008659 | Q234: 1.800212971 | R234: 23.90884135 | S234: 18.93621118 | T234: 18.98957947 | U234: 18.93621118 | V234: 23.90872091 | W234: -3.983355002e-08 | X234: -3.983355002e-08 | Y234: 0.0001362990681 | Z234: 18.90872094 | AA234: 18.90872094 | AB234: -3.982987987e-08 | AC234: -1.45683937e-08 | AD234: 18.99998291 | AE234: 18.92580782 | AF234: 20.80687782 | AG234: -20.80688223 | AH234: 0.0001544064954 | AI234: 0.0001947698595 | AJ234: -5.052297239e-05 | AK234: -5.052297233e-05 | AL234: 20.80688223 | AM234: 20.80670887 | AQ234: 19 | AR234: 0 | AS234: 0 | AT234: -2.288998e-07 | AU234: 100 | AV234: 0 | AW234: -1.0908e-12 | AX234: 19 | AY234: 18.8524559 | AZ234: 1.83250406 | BA234: 1.80486054 | BB234: 1.802284528 | BC234: 21.71875963 | BD234: 16.15580933 | BE234: 18.98669547 | BF234: 16.15580824 | BG234: 18.8524559 | BH234: -0.5062506231 | BI234: -0.5062506231 | BJ234: -0.5061141024 | BK234: 18.85248393 | BL234: 18.85299016 | BM234: -0.5062506191 | BN234: -0.5062225802 | BO234: 19.00048921 | BP234: 16.14385188 | BQ234: 27.64350295 | BR234: -27.58747644 | BS234: 3.674748376 | BT234: 0.0001950296073 | BU234: -0.0560781864 | BV234: -0.05607717446 | BW234: 27.58747644 | BX234: 23.91271484
A235: 0.73 | B235: 398453.7466 | D235: 72 | E235: 7.2e-08 | F235: 19 | G235: 5 | H235: 0 | I235: -2.288998e-07 | J235: 20.82378449 | K235: 0 | L235: -9.520879509e-13 | M235: 19 | N235: 18.90865954 | O235: 1.821858671 | P235: 1.801034689 | Q235: 1.800222204 | R235: 23.90877997 | S235: 18.93615823 | T235: 18.98957093 | U235: 18.93615823 | V235: 23.90865954 | W235: -4.362867879e-08 | X235: -4.362867879e-08 | Y235: 0.0001362857317 | Z235: 18.90865956 | AA235: 18.90865956 | AB235: -4.362500732e-08 | AC235: -1.835434397e-08 | AD235: 18.99998291 | AE235: 18.92574633 | AF235: 20.82396462 | AG235: -20.82396901 | AH235: 0.0001543967943 | AI235: 0.0001947562292 | AJ235: -5.054132674e-05 | AK235: -5.054132668e-05 | AL235: 20.82396901 | AM235: 20.82379566 | AQ235: 19 | AR235: 0 | AS235: 0 | AT235: -2.288998e-07 | AU235: 100 | AV235: 0 | AW235: -1.0908e-12 | AX235: 19 | AY235: 18.97869069 | AZ235: 1.832504313 | BA235: 1.804860666 | BB235: 1.802284529 | BC235: 21.80373347 | BD235: 16.39178509 | BE235: 18.98661029 | BF235: 16.39178417 | BG235: 18.97869069 | BH235: -0.4495611375 | BI235: -0.4495611375 | BJ235: -0.4494244204 | BK235: 18.9786904 | BL235: 18.97913996 | BM235: -0.4495611375 | BN235: -0.4495614293 | BO235: 19.00043242 | BP235: 16.37977297 | BQ235: 27.64362918 | BR235: -27.64426441 | BS235: 3.621849717 | BT235: 0.0001953101437 | BU235: 0.0005830778437 | BV235: 0.0005839764691 | BW235: 27.64426441 | BX235: 24.02240114
A236: 0.74 | B236: 586218.0438 | D236: 73 | E236: 7.3e-08 | F236: 19 | G236: 5 | H236: 0 | I236: -2.288998e-07 | J236: 20.84087116 | K236: 0 | L236: -9.523255868e-13 | M236: 19 | N236: 18.90859815 | O236: 1.821901977 | P236: 1.801060908 | Q236: 1.800231628 | R236: 23.90871858 | S236: 18.93610528 | T236: 18.98956239 | U236: 18.93610528 | V236: 23.90859815 | W236: -3.907850795e-08 | X236: -3.907850795e-08 | Y236: 0.0001362807412 | Z236: 18.90859818 | AA236: 18.90859818 | AB236: -3.907483548e-08 | AC236: -1.37972735e-08 | AD236: 18.99998291 | AE236: 18.92568483 | AF236: 20.84105132 | AG236: -20.84105569 | AH236: 0.0001543969724 | AI236: 0.0001947425996 | AJ236: -5.0555124e-05 | AK236: -5.055512395e-05 | AL236: 20.84105569 | AM236: 20.84088234 | AQ236: 19 | AR236: 0 | AS236: 0 | AT236: -2.288998e-07 | AU236: 100 | AV236: 0 | AW236: -1.0908e-12 | AX236: 19 | AY236: 19.10768944 | AZ236: 1.832504571 | BA236: 1.804860795 | BB236: 1.802284531 | BC236: 21.89056784 | BD236: 16.63292762 | BE236: 18.98652324 | BF236: 16.63292688 | BG236: 19.10768944 | BH236: -0.3916304149 | BI236: -0.3916304149 | BJ236: -0.3914934971 | BK236: 19.10766019 | BL236: 19.10805185 | BM236: -0.3916304191 | BN236: -0.3916596618 | BO236: 19.00037439 | BP236: 16.62085964 | BQ236: 27.64375818 | BR236: -27.70229579 | BS236: 3.567792823 | BT236: 0.0001955968225 | BU236: 0.05848496101 | BV236: 0.05848574396 | BW236: 27.70229579 | BX236: 24.13448906
A237: 0.75 | B237: 862462.9529 | D237: 74 | E237: 7.4e-08 | F237: 19 | G237: 5 | H237: 0 | I237: -2.288998e-07 | J237: 20.85795775 | K237: 0 | L237: -9.525628197e-13 | M237: 19 | N237: 18.90853676 | O237: 1.821945471 | P237: 1.801087316 | Q237: 1.800241242 | R237: 23.90865719 | S237: 18.93605232 | T237: 18.98955384 | U237: 18.93605232 | V237: 23.90853676 | W237: -3.249245258e-08 | X237: -3.249245258e-08 | Y237: 0.0001362777873 | Z237: 18.90853679 | AA237: 18.90853679 | AB237: -3.248877959e-08 | AC237: -7.207613802e-09 | AD237: 18.99998291 | AE237: 18.92562334 | AF237: 20.85813791 | AG237: -20.85814227 | AH237: 0.0001544029804 | AI237: 0.000194728971 | AJ237: -5.056233161e-05 | AK237: -5.056233157e-05 | AL237: 20.85814227 | AM237: 20.85796892 | AQ237: 19 | AR237: 0 | AS237: 0 | AT237: -2.288998e-07 | AU237: 100 | AV237: 0 | AW237: -1.0908e-12 | AX237: 19 | AY237: 19.2396769 | AZ237: 1.832504834 | BA237: 1.804860927 | BB237: 1.802284532 | BC237: 21.97941404 | BD237: 16.87965709 | BE237: 18.98643418 | BF237: 16.87965653 | BG237: 19.2396769 | BH237: -0.3323575196 | BI237: -0.3323575196 | BJ237: -0.3322203965 | BK237: 19.23961804 | BL237: 19.23995046 | BM237: -0.3323575281 | BN237: -0.3324163925 | BO237: 19.00031501 | BP237: 16.86753194 | BQ237: 27.64389017 | BR237: -27.76167167 | BS237: 3.512483508 | BT237: 0.0001958901433 | BU237: 0.1177283489 | BV237: 0.1177290133 | BW237: 27.76167167 | BX237: 24.2491739
A238: 0.76 | B238: 1268883.401 | D238: 75 | E238: 7.5e-08 | F238: 19 | G238: 5 | H238: 0 | I238: -2.288998e-07 | J238: 20.87504422 | K238: 0 | L238: -9.527996502e-13 | M238: 19 | N238: 18.90847536 | O238: 1.821989154 | P238: 1.801113912 | Q238: 1.800251048 | R238: 23.9085958 | S238: 18.93599937 | T238: 18.9895453 | U238: 18.93599937 | V238: 23.90847536 | W238: -2.719974776e-08 | X238: -2.719974776e-08 | Y238: 0.0001362735406 | Z238: 18.90847539 | AA238: 18.90847539 | AB238: -2.719607462e-08 | AC238: -1.913951865e-09 | AD238: 18.99998291 | AE238: 18.92556184 | AF238: 20.87522439 | AG238: -20.87522876 | AH238: 0.0001544104616 | AI238: 0.0001947153433 | AJ238: -5.056424555e-05 | AK238: -5.056424552e-05 | AL238: 20.87522876 | AM238: 20.8750554 | AQ238: 19 | AR238: 0 | AS238: 0 | AT238: -2.288998e-07 | AU238: 100 | AV238: 0 | AW238: -1.0908e-12 | AX238: 19 | AY238: 19.3749098 | AZ238: 1.832505105 | BA238: 1.804861062 | BB238: 1.802284534 | BC238: 22.07044487 | BD238: 17.13245337 | BE238: 18.98634292 | BF238: 17.13245299 | BG238: 19.3749098 | BH238: -0.2716271677 | BI238: -0.2716271677 | BJ238: -0.2714898343 | BK238: 19.37482058 | BL238: 19.3750923 | BM238: -0.2716271806 | BN238: -0.271716395 | BO238: 19.00025418 | BP238: 17.12026965 | BQ238: 27.6440254 | BR238: -27.82250753 | BS238: 3.455814196 | BT238: 0.0001961906766 | BU238: 0.1784284677 | BV238: 0.1784290108 | BW238: 27.82250753 | BX238: 24.36667871
A239: 0.77 | B239: 1866822.314 | D239: 76 | E239: 7.6e-08 | F239: 19 | G239: 5 | H239: 0 | I239: -2.288998e-07 | J239: 20.8921306 | K239: 0 | L239: -9.530360788e-13 | M239: 19 | N239: 18.90841397 | O239: 1.822033025 | P239: 1.801140697 | Q239: 1.800261044 | R239: 23.90853441 | S239: 18.93594641 | T239: 18.98953676 | U239: 18.93594641 | V239: 23.90841397 | W239: -2.423364967e-08 | X239: -2.423364967e-08 | Y239: 0.000136266968 | Z239: 18.90841399 | AA239: 18.90841399 | AB239: -2.422997661e-08 | AC239: 1.051620341e-09 | AD239: 18.99998291 | AE239: 18.92550034 | AF239: 20.89231077 | AG239: -20.89231514 | AH239: 0.000154416572 | AI239: 0.0001947017166 | AJ239: -5.056319392e-05 | AK239: -5.05631939e-05 | AL239: 20.89231514 | AM239: 20.89214177 | AQ239: 19 | AR239: 0 | AS239: 0 | AT239: -2.288998e-07 | AU239: 100 | AV239: 0 | AW239: -1.0908e-12 | AX239: 19 | AY239: 19.51368349 | AZ239: 1.832505382 | BA239: 1.8048612 | BB239: 1.802284535 | BC239: 22.16385916 | BD239: 17.3918686 | BE239: 18.98624928 | BF239: 17.39186842 | BG239: 19.51368349 | BH239: -0.2093067147 | BI239: -0.2093067147 | BJ239: -0.2091691653 | BK239: 19.51356314 | BL239: 19.51377256 | BM239: -0.209306732 | BN239: -0.2094270911 | BO239: 19.00019175 | BP239: 17.37962479 | BQ239: 27.64416417 | BR239: -27.88493626 | BS239: 3.397661113 | BT239: 0.0001964990787 | BU239: 0.2407178961 | BV239: 0.2407183147 | BW239: 27.88493626 | BX239: 24.48726015
A240: 0.78 | B240: 2746529.389 | D240: 77 | E240: 7.7e-08 | F240: 19 | G240: 5 | H240: 0 | I240: -2.288998e-07 | J240: 20.90921688 | K240: 0 | L240: -9.532721062e-13 | M240: 19 | N240: 18.90835257 | O240: 1.822077085 | P240: 1.80116767 | Q240: 1.80027123 | R240: 23.90847302 | S240: 18.93589346 | T240: 18.98952821 | U240: 18.93589346 | V240: 23.90835257 | W240: -2.32849805e-08 | X240: -2.32849805e-08 | Y240: 0.0001362583786 | Z240: 18.9083526 | AA240: 18.9083526 | AB240: -2.328130758e-08 | AC240: 1.99928972e-09 | AD240: 18.99998291 | AE240: 18.92543885 | AF240: 20.90939705 | AG240: -20.90940142 | AH240: 0.0001544202387 | AI240: 0.0001946880908 | AJ240: -5.056119463e-05 | AK240: -5.056119461e-05 | AL240: 20.90940142 | AM240: 20.90922805 | AQ240: 19 | AR240: 0 | AS240: 0 | AT240: -2.288998e-07 | AU240: 100 | AV240: 0 | AW240: -1.0908e-12 | AX240: 19 | AY240: 19.65634065 | AZ240: 1.832505667 | BA240: 1.804861343 | BB240: 1.802284537 | BC240: 22.25988757 | BD240: 17.65854334 | BE240: 18.98615302 | BF240: 17.65854335 | BG240: 19.65634065 | BH240: -0.1452422794 | BI240: -0.1452422794 | BJ240: -0.1451045081 | BK240: 19.65618827 | BL240: 19.65633367 | BM240: -0.1452423014 | BN240: -0.1453946766 | BO240: 19.00012757 | BP240: 17.64623774 | BQ240: 27.64430683 | BR240: -27.949112 | BS240: 3.337880667 | BT240: 0.0001968161111 | BU240: 0.3047504386 | BV240: 0.3047507291 | BW240: 27.949112 | BX240: 24.61121595
A241: 0.79 | B241: 4040782.9 | D241: 78 | E241: 7.8e-08 | F241: 19 | G241: 5 | H241: 0 | I241: -2.288998e-07 | J241: 20.92630305 | K241: 0 | L241: -9.53507733e-13 | M241: 19 | N241: 18.90829118 | O241: 1.822121333 | P241: 1.801194832 | Q241: 1.800281608 | R241: 23.90841163 | S241: 18.9358405 | T241: 18.98951967 | U241: 18.9358405 | V241: 23.90829118 | W241: -2.355741823e-08 | X241: -2.355741823e-08 | Y241: 0.0001362485687 | Z241: 18.9082912 | AA241: 18.9082912 | AB241: -2.355374543e-08 | AC241: 1.725988875e-09 | AD241: 18.99998291 | AE241: 18.92537735 | AF241: 20.92648322 | AG241: -20.92648759 | AH241: 0.0001544216272 | AI241: 0.0001946744659 | AJ241: -5.055946864e-05 | AK241: -5.055946862e-05 | AL241: 20.92648759 | AM241: 20.92631422 | AQ241: 19 | AR241: 0 | AS241: 0 | AT241: -2.288998e-07 | AU241: 100 | AV241: 0 | AW241: -1.0908e-12 | AX241: 19 | AY241: 19.80328247 | AZ241: 1.832505961 | BA241: 1.80486149 | BB241: 1.802284538 | BC241: 22.35880016 | BD241: 17.93322759 | BE241: 18.98605386 | BF241: 17.9332278 | BG241: 19.80328247 | BH241: -0.07925368491 | BI241: -0.07925368491 | BJ241: -0.07911568504 | BK241: 19.80309712 | BL241: 19.80317656 | BM241: -0.07925371163 | BN241: -0.07943906476 | BO241: 19.00006147 | BP241: 17.92085835 | BQ241: 27.64445377 | BR241: -28.01521525 | BS241: 3.276304732 | BT241: 0.0001971426656 | BU241: 0.3707061824 | BV241: 0.370706341 | BW241: 28.01521525 | BX241: 24.73889473
A242: 0.8 | B242: 5944930.54 | D242: 79 | E242: 7.9e-08 | F242: 19 | G242: 5 | H242: 0 | I242: -2.288998e-07 | J242: 20.94338911 | K242: 0 | L242: -9.537429597e-13 | M242: 19 | N242: 18.90822978 | O242: 1.822165769 | P242: 1.801222183 | Q242: 1.800292176 | R242: 23.90835023 | S242: 18.93578755 | T242: 18.98951113 | U242: 18.93578755 | V242: 23.90822978 | W242: -2.430498661e-08 | X242: -2.430498661e-08 | Y242: 0.0001362382844 | Z242: 18.90822981 | AA242: 18.90822981 | AB242: -2.430131388e-08 | AC242: 9.779314598e-10 | AD242: 18.99998291 | AE242: 18.92531585 | AF242: 20.94356928 | AG242: -20.94357365 | AH242: 0.0001544214425 | AI242: 0.000194660842 | AJ242: -5.055849071e-05 | AK242: -5.055849069e-05 | AL242: 20.94357365 | AM242: 20.94340028 | AQ242: 19 | AR242: 0 | AS242: 0 | AT242: -2.288998e-07 | AU242: 100 | AV242: 0 | AW242: -1.0908e-12 | AX242: 19 | AY242: 19.95498369 | AZ242: 1.832506265 | BA242: 1.804861641 | BB242: 1.80228454 | BC242: 22.4609165 | BD242: 18.21680875 | BE242: 18.9859515 | BF242: 18.21680917 | BG242: 19.95498369 | BH242: -0.01112774416 | BI242: -0.01112774416 | BJ242: -0.0109895083 | BK242: 19.95476429 | BL242: 19.95477564 | BM242: -0.01112777579 | BN242: -0.0113471749 | BO242: 18.99999323 | BP242: 18.20437382 | BQ242: 27.64460547 | BR242: -28.08345954 | BS242: 3.212734374 | BT242: 0.000197479797 | BU242: 0.4387982084 | BV242: 0.4387982309 | BW242: 28.08345954 | BX242: 24.87070898
A243: 0.81 | B243: 8746374.157 | D243: 80 | E243: 8e-08 | F243: 19 | G243: 5 | H243: 0 | I243: -2.288998e-07 | J243: 20.96047507 | K243: 0 | L243: -9.539777872e-13 | M243: 19 | N243: 18.90816839 | O243: 1.822210394 | P243: 1.801249722 | Q243: 1.800302935 | R243: 23.90828884 | S243: 18.93573459 | T243: 18.98950258 | U243: 18.93573459 | V243: 23.90816839 | W243: -2.505599805e-08 | X243: -2.505599805e-08 | Y243: 0.0001362279973 | Z243: 18.90816841 | AA243: 18.90816841 | AB243: -2.505232535e-08 | AC243: 2.268065936e-10 | AD243: 18.99998291 | AE243: 18.92525435 | AF243: 20.96065524 | AG243: -20.96065961 | AH243: 0.0001544204765 | AI243: 0.0001946472191 | AJ243: -5.055826391e-05 | AK243: -5.055826388e-05 | AL243: 20.96065961 | AM243: 20.96048624 | AQ243: 19 | AR243: 0 | AS243: 0 | AT243: -2.288998e-07 | AU243: 100 | AV243: 0 | AW243: -1.090799988e-12 | AX243: 19 | AY243: 20.11201275 | AZ243: 1.832506579 | BA243: 1.804861798 | BB243: 1.802284542 | BC243: 22.56661923 | BD243: 18.51034947 | BE243: 18.98584554 | BF243: 18.5103501 | BG243: 20.11201275 | BH243: 0.05939082221 | BI243: 0.05939082221 | BJ243: 0.05952930235 | BK243: 20.11175811 | BL243: 20.11169897 | BM243: 0.0593907855 | BN243: 0.05913614469 | BO243: 18.99992259 | BP243: 18.49784652 | BQ243: 27.6447625 | BR243: -28.15410062 | BS243: 3.146931386 | BT243: 0.0001978287687 | BU243: 0.5092816689 | BV243: 0.5092815504 | BW243: 28.15410062 | BX243: 25.00715263
A244: 0.82 | B244: 12867948.65 | D244: 81 | E244: 8.1e-08 | F244: 19 | G244: 5 | H244: 0 | I244: -2.288998e-07 | J244: 20.97756093 | K244: 0 | L244: -9.54212216e-13 | M244: 19 | N244: 18.908107 | O244: 1.822255207 | P244: 1.801277449 | Q244: 1.800313885 | R244: 23.90822744 | S244: 18.93568163 | T244: 18.98949404 | U244: 18.93568163 | V244: 23.908107 | W244: -2.55873214e-08 | X244: -2.55873214e-08 | Y244: 0.0001362179306 | Z244: 18.90810702 | AA244: 18.90810702 | AB244: -2.558364867e-08 | AC244: -3.043645455e-10 | AD244: 18.99998291 | AE244: 18.92519285 | AF244: 20.97774109 | AG244: -20.97774547 | AH244: 0.0001544193243 | AI244: 0.000194633597 | AJ244: -5.055856827e-05 | AK244: -5.055856825e-05 | AL244: 20.97774547 | AM244: 20.97757209 | AQ244: 19 | AR244: 0 | AS244: 0 | AT244: -2.288998e-07 | AU244: 38.86552954 | AV244: 0 | AW244: -1.089296203e-12 | AX244: 19 | AY244: 20.27505977 | AZ244: 1.832506905 | BA244: 1.804861961 | BB244: 1.802284544 | BC244: 22.6763729 | BD244: 18.81513981 | BE244: 18.98573551 | BF244: 18.81514067 | BG244: 20.27505977 | BH244: 0.1326119369 | BI244: 0.1326119369 | BJ244: 0.1327506707 | BK244: 20.27476854 | BL244: 20.27463622 | BM244: 0.1326118949 | BN244: 0.1323206618 | BO244: 18.99984924 | BP244: 18.80256626 | BQ244: 27.64492555 | BR244: -28.22744895 | BS244: 3.078606569 | BT244: 0.0001981911143 | BU244: 0.5824663324 | BV244: 0.5824660676 | BW244: 28.22744895 | BX244: 25.14882534
A245: 0.83 | B245: 18931742.39 | D245: 82 | E245: 8.2e-08 | F245: 19 | G245: 5 | H245: 0 | I245: -2.288998e-07 | J245: 20.99464667 | K245: 0 | L245: -9.544462467e-13 | M245: 19 | N245: 18.9080456 | O245: 1.822300209 | P245: 1.801305365 | Q245: 1.800325025 | R245: 23.90816605 | S245: 18.93562868 | T245: 18.9894855 | U245: 18.93562868 | V245: 23.9080456 | W245: -2.584807259e-08 | X245: -2.584807259e-08 | Y245: 0.0001362081351 | Z245: 18.90804563 | AA245: 18.90804563 | AB245: -2.584439982e-08 | AC245: -5.648332799e-10 | AD245: 18.99998291 | AE245: 18.92513135 | AF245: 20.99482684 | AG245: -20.99483121 | AH245: 0.0001544183163 | AI245: 0.0001946199759 | AJ245: -5.05591331e-05 | AK245: -5.055913308e-05 | AL245: 20.99483121 | AM245: 20.99465784 | AQ245: 19 | AR245: 0 | AS245: 0 | AT245: -2.288998e-07 | AU245: 26.10265815 | AV245: 0 | AW245: -1.077992604e-12 | AX245: 19 | AY245: 20.30472716 | AZ245: 1.832506964 | BA245: 1.80486199 | BB245: 1.802284544 | BC245: 22.69634325 | BD245: 18.87059832 | BE245: 18.98571549 | BF245: 18.87059922 | BG245: 20.30472716 | BH245: 0.1459349179 | BI245: 0.1459349179 | BJ245: 0.1460736978 | BK245: 20.30442927 | BL245: 20.30428363 | BM245: 0.145934875 | BN245: 0.1456369837 | BO245: 18.99983589 | BP245: 18.85801192 | BQ245: 27.64495522 | BR245: -28.24079546 | BS245: 3.066174479 | BT245: 0.0001982570454 | BU245: 0.5957826809 | BV245: 0.5957823894 | BW245: 28.24079546 | BX245: 25.17460361
A246: 0.84 | B246: 27852991.93 | D246: 83 | E246: 8.3e-08 | F246: 19 | G246: 5 | H246: 0 | I246: -2.288998e-07 | J246: 21.0117323 | K246: 0 | L246: -9.546798799e-13 | M246: 19 | N246: 18.90798421 | O246: 1.822345399 | P246: 1.801333469 | Q246: 1.800336356 | R246: 23.90810465 | S246: 18.93557572 | T246: 18.98947696 | U246: 18.93557572 | V246: 23.90798421 | W246: -2.591160405e-08 | X246: -2.591160405e-08 | Y246: 0.0001361985374 | Z246: 18.90798423 | AA246: 18.90798423 | AB246: -2.590793122e-08 | AC246: -6.280506595e-10 | AD246: 18.99998291 | AE246: 18.92506985 | AF246: 21.01191248 | AG246: -21.01191684 | AH246: 0.0001544175607 | AI246: 0.0001946063557 | AJ246: -5.055976116e-05 | AK246: -5.055976113e-05 | AL246: 21.01191684 | AM246: 21.01174348 | AQ246: 19 | AR246: 0 | AS246: 0 | AT246: -2.288998e-07 | AU246: 26.04362823 | AV246: 0 | AW246: -1.077864485e-12 | AX246: 19 | AY246: 20.30486501 | AZ246: 1.832506964 | BA246: 1.80486199 | BB246: 1.802284544 | BC246: 22.69643605 | BD246: 18.87085603 | BE246: 18.9857154 | BF246: 18.87085693 | BG246: 20.30486501 | BH246: 0.145996816 | BI246: 0.145996816 | BJ246: 0.1461355961 | BK246: 20.30456709 | BL246: 20.30442139 | BM246: 0.145996773 | BN246: 0.1456988508 | BO246: 18.99983583 | BP246: 18.85826957 | BQ246: 27.64495535 | BR246: -28.24085755 | BS246: 3.066116716 | BT246: 0.0001982573518 | BU246: 0.5958445481 | BV246: 0.5958442566 | BW246: 28.24085755 | BX246: 25.17472341
A247: 0.85 | B247: 40978222.9 | D247: 84 | E247: 8.4e-08 | F247: 19 | G247: 5 | H247: 0 | I247: -2.288998e-07 | J247: 21.02881783 | K247: 0 | L247: -9.549131166e-13 | M247: 19 | N247: 18.90792281 | O247: 1.822390777 | P247: 1.801361762 | Q247: 1.800347877 | R247: 23.90804326 | S247: 18.93552276 | T247: 18.98946841 | U247: 18.93552276 | V247: 23.90792281 | W247: -2.589018137e-08 | X247: -2.589018137e-08 | Y247: 0.0001361890253 | Z247: 18.90792284 | AA247: 18.90792284 | AB247: -2.588650851e-08 | AC247: -6.063247785e-10 | AD247: 18.99998291 | AE247: 18.92500834 | AF247: 21.02899801 | AG247: -21.02900238 | AH247: 0.0001544170291 | AI247: 0.0001945927365 | AJ247: -5.056036748e-05 | AK247: -5.056036745e-05 | AL247: 21.02900238 | AM247: 21.02882901 | AQ247: 19 | AR247: 0 | AS247: 0 | AT247: -2.288998e-07 | AU247: 26.04362695 | AV247: 0 | AW247: -1.077864482e-12 | AX247: 19 | AY247: 20.30486502 | AZ247: 1.832506964 | BA247: 1.80486199 | BB247: 1.802284544 | BC247: 22.69643605 | BD247: 18.87085604 | BE247: 18.9857154 | BF247: 18.87085693 | BG247: 20.30486502 | BH247: 0.1459968173 | BI247: 0.1459968173 | BJ247: 0.1461355974 | BK247: 20.30456709 | BL247: 20.30442139 | BM247: 0.1459967743 | BN247: 0.1456988521 | BO247: 18.99983583 | BP247: 18.85826957 | BQ247: 27.64495535 | BR247: -28.24085756 | BS247: 3.066116715 | BT247: 0.0001982573518 | BU247: 0.5958445494 | BV247: 0.5958442579 | BW247: 28.24085756 | BX247: 25.17472341
A248: 0.86 | B248: 60288487.37 | D248: 85 | E248: 8.5e-08 | F248: 19 | G248: 5 | H248: 0 | I248: -2.288998e-07 | J248: 21.04590326 | K248: 0 | L248: -9.551459573e-13 | M248: 19 | N248: 18.90786142 | O248: 1.822436343 | P248: 1.801390243 | Q248: 1.800359589 | R248: 23.90798186 | S248: 18.9354698 | T248: 18.98945987 | U248: 18.9354698 | V248: 23.90786142 | W248: -2.582576595e-08 | X248: -2.582576595e-08 | Y248: 0.0001361795569 | Z248: 18.90786144 | AA248: 18.90786144 | AB248: -2.582209305e-08 | AC248: -5.416384998e-10 | AD248: 18.99998291 | AE248: 18.92494684 | AF248: 21.04608343 | AG248: -21.0460878 | AH248: 0.0001544166726 | AI248: 0.0001945791182 | AJ248: -5.056090912e-05 | AK248: -5.056090909e-05 | AL248: 21.0460878 | AM248: 21.04591443 | AQ248: 19 | AR248: 0 | AS248: 0 | AT248: 7.239204071 | AU248: 100 | AV248: 0 | AW248: -1.75826e-13 | AX248: 19 | AY248: -1.94989552 | AZ248: 1.040592897 | BA248: 1.009847859 | BB248: 1.004349017 | BC248: 2.298244955 | BD248: -15.10400754 | BE248: 18.97427654 | BF248: -15.10400757 | BG248: -1.94989552 | BH248: -1.114571739 | BI248: -1.114571739 | BJ248: -1.552897014 | BK248: -1.937524744 | BL248: -1.926502759 | BM248: -1.114569026 | BN248: -1.102198251 | BO248: 19.01102503 | BP248: -15.13225981 | BQ248: 30.74504149 | BR248: -18.37424482 | BS248: 4.248140475 | BT248: -0.4383252745 | BU248: -12.37077649 | BV248: -12.37077428 | BW248: 18.37424483 | BX248: 14.12613275
A249: 0.87 | B249: 88698373.23 | D249: 86 | E249: 8.6e-08 | F249: 19 | G249: 5 | H249: 0 | I249: -2.288998e-07 | J249: 21.06298858 | K249: 0 | L249: -9.553784026e-13 | M249: 19 | N249: 18.90780002 | O249: 1.822482098 | P249: 1.801418912 | Q249: 1.800371492 | R249: 23.90792046 | S249: 18.93541684 | T249: 18.98945133 | U249: 18.93541684 | V249: 23.90780002 | W249: -2.575430164e-08 | X249: -2.575430164e-08 | Y249: 0.0001361700962 | Z249: 18.90780004 | AA249: 18.90780004 | AB249: -2.57506287e-08 | AC249: -4.699391804e-10 | AD249: 18.99998291 | AE249: 18.92488534 | AF249: 21.06316875 | AG249: -21.06317312 | AH249: 0.0001544164091 | AI249: 0.0001945655008 | AJ249: -5.056137906e-05 | AK249: -5.056137903e-05 | AL249: 21.06317312 | AM249: 21.06299975 | AQ249: 19 | AR249: 0 | AS249: 0 | AT249: 7.136919666 | AU249: 100 | AV249: 0 | AW249: -1.75826e-13 | AX249: 19 | AY249: -1.938976363 | AZ249: 1.040592919 | BA249: 1.00984787 | BB249: 1.004349017 | BC249: 2.306589185 | BD249: -14.98785956 | BE249: 18.97396921 | BF249: -14.98785958 | BG249: -1.938976363 | BH249: -1.104226005 | BI249: -1.104226005 | BJ249: -1.542542414 | BK249: -1.92670802 | BL249: -1.915788468 | BM249: -1.104223292 | BN249: -1.09195495 | BO249: 19.01092259 | BP249: -15.01632186 | BQ249: 30.74505241 | BR249: -18.4766889 | BS249: 4.245565548 | BT249: -0.4383164081 | BU249: -12.26834346 | BV249: -12.26834127 | BW249: 18.47668892 | BX249: 14.23115154
A250: 0.88 | B250: 130495916.5 | D250: 87 | E250: 8.7e-08 | F250: 19 | G250: 5 | H250: 0 | I250: -2.288998e-07 | J250: 21.08007379 | K250: 0 | L250: -9.556104533e-13 | M250: 19 | N250: 18.90773862 | O250: 1.82252804 | P250: 1.801447769 | Q250: 1.800383585 | R250: 23.90785907 | S250: 18.93536388 | T250: 18.98944279 | U250: 18.93536388 | V250: 23.90773862 | W250: -2.571353045e-08 | X250: -2.571353045e-08 | Y250: 0.0001361606055 | Z250: 18.90773865 | AA250: 18.90773865 | AB250: -2.570985748e-08 | AC250: -4.289534864e-10 | AD250: 18.99998291 | AE250: 18.92482383 | AF250: 21.08025396 | AG250: -21.08025833 | AH250: 0.0001544161713 | AI250: 0.0001945518843 | AJ250: -5.056180801e-05 | AK250: -5.056180799e-05 | AL250: 21.08025833 | AM250: 21.08008496 | AQ250: 19 | AR250: 0 | AS250: 0 | AT250: 7.034052655 | AU250: 100 | AV250: 0 | AW250: -1.75826e-13 | AX250: 19 | AY250: -1.927989378 | AZ250: 1.040592941 | BA250: 1.009847881 | BB250: 1.004349017 | BC250: 2.314985221 | BD250: -14.8710404 | BE250: 18.97366012 | BF250: -14.87104043 | BG250: -1.927989378 | BH250: -1.093821081 | BI250: -1.093821081 | BJ250: -1.532128443 | BK250: -1.915824054 | BL250: -1.905007521 | BM250: -1.093818367 | BN250: -1.081653044 | BO250: 19.01081956 | BP250: -14.89971394 | BQ250: 30.7450634 | BR250: -18.57971911 | BS250: 4.242974599 | BT250: -0.4383073621 | BU250: -12.16532438 | BV250: -12.16532222 | BW250: 18.57971912 | BX250: 14.33677247
A251: 0.89 | B251: 191989814.5 | D251: 88 | E251: 8.8e-08 | F251: 19 | G251: 5 | H251: 0 | I251: -2.288998e-07 | J251: 21.09715888 | K251: 0 | L251: -9.558421099e-13 | M251: 19 | N251: 18.90767723 | O251: 1.822574171 | P251: 1.801476815 | Q251: 1.800395868 | R251: 23.90779767 | S251: 18.93531091 | T251: 18.98943424 | U251: 18.93531091 | V251: 23.90767723 | W251: -2.567831768e-08 | X251: -2.567831768e-08 | Y251: 0.0001361511098 | Z251: 18.90767725 | AA251: 18.90767725 | AB251: -2.567464468e-08 | AC251: -3.935439138e-10 | AD251: 18.99998291 | AE251: 18.92476233 | AF251: 21.09733907 | AG251: -21.09734343 | AH251: 0.0001544159268 | AI251: 0.0001945382688 | AJ251: -5.056220156e-05 | AK251: -5.056220153e-05 | AL251: 21.09734343 | AM251: 21.09717006 | AQ251: 19 | AR251: 0 | AS251: 0 | AT251: 6.93059134 | AU251: 100 | AV251: 0 | AW251: -1.75826e-13 | AX251: 19 | AY251: -1.916933049 | AZ251: 1.040592963 | BA251: 1.009847891 | BB251: 1.004349017 | BC251: 2.323434219 | BD251: -14.75353633 | BE251: 18.97334924 | BF251: -14.75353635 | BG251: -1.916933049 | BH251: -1.083355768 | BI251: -1.083355768 | BJ251: -1.521653898 | BK251: -1.904871341 | BL251: -1.894158426 | BM251: -1.083353055 | BN251: -1.071291349 | BO251: 19.01071593 | BP251: -14.78242234 | BQ251: 30.74507445 | BR251: -18.68334727 | BS251: 4.240367268 | BT251: -0.4382981294 | BU251: -12.06170741 | BV251: -12.06170527 | BW251: 18.68334728 | BX251: 14.44300775
A252: 0.9 | B252: 282461626.9 | D252: 89 | E252: 8.9e-08 | F252: 19 | G252: 5 | H252: 0 | I252: -2.288998e-07 | J252: 21.11424388 | K252: 0 | L252: -9.560733732e-13 | M252: 19 | N252: 18.90761583 | O252: 1.822620491 | P252: 1.801506049 | Q252: 1.800408342 | R252: 23.90773627 | S252: 18.93525795 | T252: 18.9894257 | U252: 18.93525795 | V252: 23.90761583 | W252: -2.569056118e-08 | X252: -2.569056118e-08 | Y252: 0.0001361415674 | Z252: 18.90761585 | AA252: 18.90761585 | AB252: -2.568688815e-08 | AC252: -4.055845909e-10 | AD252: 18.99998292 | AE252: 18.92470082 | AF252: 21.11442406 | AG252: -21.11442843 | AH252: 0.0001544156784 | AI252: 0.0001945246542 | AJ252: -5.056260714e-05 | AK252: -5.056260711e-05 | AL252: 21.11442843 | AM252: 21.11425506 | AQ252: 19 | AR252: 0 | AS252: 0 | AT252: 6.826523632 | AU252: 100 | AV252: 0 | AW252: -1.75826e-13 | AX252: 19 | AY252: -1.905805801 | AZ252: 1.040592985 | BA252: 1.009847902 | BB252: 1.004349017 | BC252: 2.331937382 | BD252: -14.6353331 | BE252: 18.97303652 | BF252: -14.63533312 | BG252: -1.905805801 | BH252: -1.072828831 | BI252: -1.072828831 | BJ252: -1.511117533 | BK252: -1.89384832 | BL252: -1.883239632 | BM252: -1.072826118 | BN252: -1.060868638 | BO252: 19.01061169 | BP252: -14.66443284 | BQ252: 30.74508558 | BR252: -18.78758567 | BS252: 4.237743183 | BT252: -0.4382887025 | BU252: -11.95748029 | BV252: -11.95747816 | BW252: 18.78758568 | BX252: 14.54987
A253: 0.91 | B253: 415566684.4 | D253: 90 | E253: 9e-08 | F253: 19 | G253: 5 | H253: 0 | I253: -2.288998e-07 | J253: 21.13132877 | K253: 0 | L253: -9.563042438e-13 | M253: 19 | N253: 18.90755443 | O253: 1.822666998 | P253: 1.801535472 | Q253: 1.800421007 | R253: 23.90767487 | S253: 18.93520499 | T253: 18.98941716 | U253: 18.93520499 | V253: 23.90755443 | W253: -2.568625187e-08 | X253: -2.568625187e-08 | Y253: 0.0001361320422 | Z253: 18.90755446 | AA253: 18.90755446 | AB253: -2.56825788e-08 | AC253: -4.010747097e-10 | AD253: 18.99998292 | AE253: 18.92463932 | AF253: 21.13150895 | AG253: -21.13151331 | AH253: 0.0001544154126 | AI253: 0.0001945110406 | AJ253: -5.056300821e-05 | AK253: -5.056300819e-05 | AL253: 21.13151331 | AM253: 21.13133995 | AQ253: 19 | AR253: 0 | AS253: 0 | AT253: 6.721837033 | AU253: 100 | AV253: 0 | AW253: -1.75826e-13 | AX253: 19 | AY253: -1.894605997 | AZ253: 1.040593007 | BA253: 1.009847913 | BB253: 1.004349017 | BC253: 2.340495959 | BD253: -14.516416 | BE253: 18.97272194 | BF253: -14.51641602 | BG253: -1.894605997 | BH253: -1.062238988 | BI253: -1.062238988 | BJ253: -1.500518061 | BK253: -1.882753367 | BL253: -1.872249529 | BM253: -1.062236275 | BN253: -1.050383645 | BO253: 19.01050683 | BP253: -14.54573074 | BQ253: 30.74509678 | BR253: -18.89244696 | BS253: 4.235101956 | BT253: -0.4382790734 | BU253: -11.85263033 | BV253: -11.85262823 | BW253: 18.89244697 | BX253: 14.65737229
A254: 0.92 | B254: 611395151.7 | D254: 91 | E254: 9.1e-08 | F254: 19 | G254: 5 | H254: 0 | I254: -2.288998e-07 | J254: 21.14841355 | K254: 0 | L254: -9.565347224e-13 | M254: 19 | N254: 18.90749303 | O254: 1.822713693 | P254: 1.801565082 | Q254: 1.800433861 | R254: 23.90761348 | S254: 18.93515202 | T254: 18.98940862 | U254: 18.93515202 | V254: 23.90749303 | W254: -2.569487856e-08 | X254: -2.569487856e-08 | Y254: 0.0001361225046 | Z254: 18.90749306 | AA254: 18.90749306 | AB254: -2.569120547e-08 | AC254: -4.094966227e-10 | AD254: 18.99998292 | AE254: 18.92457781 | AF254: 21.14859373 | AG254: -21.1485981 | AH254: 0.000154415134 | AI254: 0.0001944974279 | AJ254: -5.056341771e-05 | AK254: -5.056341768e-05 | AL254: 21.1485981 | AM254: 21.14842472 | AQ254: 19 | AR254: 0 | AS254: 0 | AT254: 6.616518612 | AU254: 100 | AV254: 0 | AW254: -1.75826e-13 | AX254: 19 | AY254: -1.883331936 | AZ254: 1.04059303 | BA254: 1.009847925 | BB254: 1.004349018 | BC254: 2.349111249 | BD254: -14.39676977 | BE254: 18.97240545 | BF254: -14.39676979 | BG254: -1.883331936 | BH254: -1.051584914 | BI254: -1.051584914 | BJ254: -1.489854148 | BK254: -1.871584791 | BL254: -1.861186439 | BM254: -1.051582201 | BN254: -1.039835058 | BO254: 19.01040133 | BP254: -14.42630082 | BQ254: 30.74510806 | BR254: -18.99794427 | BS254: 4.232443185 | BT254: -0.4382692337 | BU254: -11.74714444 | BV254: -11.74714236 | BW254: 18.99794428 | BX254: 14.76552815
A255: 0.93 | B255: 899504328.6 | D255: 92 | E255: 9.2e-08 | F255: 19 | G255: 5 | H255: 0 | I255: -2.288998e-07 | J255: 21.16549822 | K255: 0 | L255: -9.567648095e-13 | M255: 19 | N255: 18.90743163 | O255: 1.822760577 | P255: 1.801594881 | Q255: 1.800446906 | R255: 23.90755208 | S255: 18.93509906 | T255: 18.98940007 | U255: 18.93509906 | V255: 23.90743163 | W255: -2.56911837e-08 | X255: -2.56911837e-08 | Y255: 0.0001361129801 | Z255: 18.90743166 | AA255: 18.90743166 | AB255: -2.568751057e-08 | AC255: -4.055989297e-10 | AD255: 18.99998292 | AE255: 18.9245163 | AF255: 21.1656784 | AG255: -21.16568276 | AH255: 0.0001544148572 | AI255: 0.0001944838161 | AJ255: -5.056382331e-05 | AK255: -5.056382328e-05 | AL255: 21.16568276 | AM255: 21.1655094 | AQ255: 19 | AR255: 0 | AS255: 0 | AT255: 6.510554988 | AU255: 100 | AV255: 0 | AW255: -1.75826e-13 | AX255: 19 | AY255: -1.871981843 | AZ255: 1.040593052 | BA255: 1.009847936 | BB255: 1.004349018 | BC255: 2.357784606 | BD255: -14.27637861 | BE255: 18.972087 | BF255: -14.27637863 | BG255: -1.871981843 | BH255: -1.040865239 | BI255: -1.040865239 | BJ255: -1.479124413 | BK255: -1.860340834 | BL255: -1.850048617 | BM255: -1.040862526 | BN255: -1.029221518 | BO255: 19.01029519 | BP255: -14.30612731 | BQ255: 30.74511941 | BR255: -19.10409118 | BS255: 4.229766449 | BT255: -0.4382591744 | BU255: -11.64100902 | BV255: -11.64100696 | BW255: 19.10409119 | BX255: 14.87435157
A256: 0.94 | B256: 1323379871 | D256: 93 | E256: 9.3e-08 | F256: 19 | G256: 5 | H256: 0 | I256: -2.288998e-07 | J256: 21.18258277 | K256: 0 | L256: -9.569945059e-13 | M256: 19 | N256: 18.90737023 | O256: 1.822807648 | P256: 1.801624868 | Q256: 1.800460142 | R256: 23.90749068 | S256: 18.93504609 | T256: 18.98939153 | U256: 18.93504609 | V256: 23.90737023 | W256: -2.569131108e-08 | X256: -2.569131108e-08 | Y256: 0.0001361034523 | Z256: 18.90737026 | AA256: 18.90737026 | AB256: -2.568763792e-08 | AC256: -4.055235173e-10 | AD256: 18.99998292 | AE256: 18.9244548 | AF256: 21.18276296 | AG256: -21.18276732 | AH256: 0.0001544145666 | AI256: 0.0001944702052 | AJ256: -5.056422883e-05 | AK256: -5.056422881e-05 | AL256: 21.18276732 | AM256: 21.18259396 | AQ256: 19 | AR256: 0 | AS256: 0 | AT256: 6.403932309 | AU256: 100 | AV256: 0 | AW256: -1.75826e-13 | AX256: 19 | AY256: -1.860553874 | AZ256: 1.040593075 | BA256: 1.009847947 | BB256: 1.004349018 | BC256: 2.366517438 | BD256: -14.15522614 | BE256: 18.97176657 | BF256: -14.15522616 | BG256: -1.860553874 | BH256: -1.030078541 | BI256: -1.030078541 | BJ256: -1.468327426 | BK256: -1.849019664 | BL256: -1.838834246 | BM256: -1.030075828 | BN256: -1.018541619 | BO256: 19.01018838 | BP256: -14.18519385 | BQ256: 30.74513083 | BR256: -19.21090177 | BS256: 4.227071312 | BT256: -0.4382488858 | BU256: -11.53421 | BV256: -11.53420797 | BW256: 19.21090178 | BX256: 14.98385706
A257: 0.95 | B257: 1946999284 | D257: 94 | E257: 9.4e-08 | F257: 19 | G257: 5 | H257: 0 | I257: -2.288998e-07 | J257: 21.19966723 | K257: 0 | L257: -9.572238123e-13 | M257: 19 | N257: 18.90730884 | O257: 1.822854907 | P257: 1.801655043 | Q257: 1.800473568 | R257: 23.90742928 | S257: 18.93499313 | T257: 18.98938299 | U257: 18.93499313 | V257: 23.90730884 | W257: -2.569623556e-08 | X257: -2.569623556e-08 | Y257: 0.0001360939205 | Z257: 18.90730886 | AA257: 18.90730886 | AB257: -2.569256237e-08 | AC257: -4.102428426e-10 | AD257: 18.99998292 | AE257: 18.92439329 | AF257: 21.19984742 | AG257: -21.19985177 | AH257: 0.0001544142704 | AI257: 0.0001944565953 | AJ257: -5.056463907e-05 | AK257: -5.056463905e-05 | AL257: 21.19985177 | AM257: 21.19967841 | AQ257: 19 | AR257: 0 | AS257: 0 | AT257: 6.296636225 | AU257: 100 | AV257: 0 | AW257: -1.75826e-13 | AX257: 19 | AY257: -1.849046102 | AZ257: 1.040593098 | BA257: 1.009847958 | BB257: 1.004349018 | BC257: 2.375311215 | BD257: -14.03329536 | BE257: 18.97144411 | BF257: -14.03329538 | BG257: -1.849046102 | BH257: -1.019223347 | BI257: -1.019223347 | BJ257: -1.457461705 | BK257: -1.837619369 | BL257: -1.827541428 | BM257: -1.019220634 | BN257: -1.007793902 | BO257: 19.01008089 | BP257: -14.06348347 | BQ257: 30.74514234 | BR257: -19.31839061 | BS257: 4.224357317 | BT257: -0.4382383579 | BU257: -11.42673282 | BV257: -11.4267308 | BW257: 19.31839062 | BX257: 15.09405966
A258: 0.96 | B258: =$O$60*(EXP(A258/$B$46)-1) -> 2864488342 | D258: 95 | E258: 9.5e-08 | F258: 19 | G258: 5 | H258: 0 | I258: -2.288998e-07 | J258: 21.21675158 | K258: 0 | L258: -9.574527293e-13 | M258: 19 | N258: 18.90724744 | O258: 1.822902355 | P258: 1.801685406 | Q258: 1.800487184 | R258: 23.90736788 | S258: 18.93494016 | T258: 18.98937445 | U258: 18.93494016 | V258: 23.90724744 | W258: -2.570056092e-08 | X258: -2.570056092e-08 | Y258: 0.0001360843899 | Z258: 18.90724746 | AA258: 18.90724746 | AB258: -2.569688769e-08 | AC258: -4.143609881e-10 | AD258: 18.99998292 | AE258: 18.92433178 | AF258: 21.21693176 | AG258: -21.21693612 | AH258: 0.0001544139751 | AI258: 0.0001944429863 | AJ258: -5.056505344e-05 | AK258: -5.056505341e-05 | AL258: 21.21693612 | AM258: 21.21676276 | AQ258: 19 | AR258: 0 | AS258: 0 | AT258: 6.188651867 | AU258: 100 | AV258: 0 | AW258: -1.75826e-13 | AX258: 19 | AY258: -1.837456519 | AZ258: 1.040593121 | BA258: 1.00984797 | BB258: 1.004349018 | BC258: 2.38416747 | BD258: -13.91056863 | BE258: 18.97111956 | BF258: -13.91056866 | BG258: -1.837456519 | BH258: -1.00829813 | BI258: -1.00829813 | BJ258: -1.44652571 | BK258: -1.826137957 | BL258: -1.816168186 | BM258: -1.008295417 | BN258: -0.9969768561 | BO258: 19.00997271 | BP258: -13.94097858 | BQ258: 30.74515393 | BR258: -19.42657283 | BS258: 4.221623989 | BT258: -0.4382275797 | BU258: -11.31856233 | BV258: -11.31856034 | BW258: 19.42657284 | BX258: 15.20497497
A259: 0.97 | B259: 4214327928 | D259: 96 | E259: 9.6e-08 | F259: 19 | G259: 5 | H259: 0 | I259: -2.288998e-07 | J259: 21.23383581 | K259: 0 | L259: -9.576812575e-13 | M259: 19 | N259: 18.90718604 | O259: 1.82294999 | P259: 1.801715957 | Q259: 1.80050099 | R259: 23.90730648 | S259: 18.93488719 | T259: 18.98936591 | U259: 18.93488719 | V259: 23.90718604 | W259: -2.569703669e-08 | X259: -2.569703669e-08 | Y259: 0.0001360748678 | Z259: 18.90718606 | AA259: 18.90718606 | AB259: -2.569336343e-08 | AC259: -4.106314134e-10 | AD259: 18.99998292 | AE259: 18.92427027 | AF259: 21.234016 | AG259: -21.23402035 | AH259: 0.0001544136948 | AI259: 0.0001944293783 | AJ259: -5.056546407e-05 | AK259: -5.056546404e-05 | AL259: 21.23402035 | AM259: 21.23384699 | AQ259: 19 | AR259: 0 | AS259: 0 | AT259: 6.079963818 | AU259: 100 | AV259: 0 | AW259: -1.75826e-13 | AX259: 19 | AY259: -1.825783027 | AZ259: 1.040593144 | BA259: 1.009847981 | BB259: 1.004349018 | BC259: 2.393087804 | BD259: -13.78702765 | BE259: 18.97079289 | BF259: -13.78702767 | BG259: -1.825783027 | BH259: -0.9973013071 | BI259: -0.9973013071 | BJ259: -1.435517847 | BK259: -1.814573344 | BL259: -1.804712453 | BM259: -0.9972985945 | BN259: -0.9860889126 | BO259: 19.00986381 | BP259: -13.81766089 | BQ259: 30.7451656 | BR259: -19.5354641 | BS259: 4.218870831 | BT259: -0.4382165397 | BU259: -11.20968288 | BV259: -11.2096809 | BW259: 19.53546411 | BX259: 15.31661917
A260: 0.98 | B260: 6200255601 | D260: 97 | E260: 9.7e-08 | F260: 19 | G260: 5 | H260: 0 | I260: -2.288998e-07 | J260: 21.25091994 | K260: 0 | L260: -9.579093976e-13 | M260: 19 | N260: 18.90712464 | O260: 1.822997814 | P260: 1.801746697 | Q260: 1.800514987 | R260: 23.90724508 | S260: 18.93483423 | T260: 18.98935736 | U260: 18.93483423 | V260: 23.90712464 | W260: -2.570065676e-08 | X260: -2.570065676e-08 | Y260: 0.0001360653392 | Z260: 18.90712466 | AA260: 18.90712466 | AB260: -2.569698348e-08 | AC260: -4.140444353e-10 | AD260: 18.99998292 | AE260: 18.92420876 | AF260: 21.25110012 | AG260: -21.25110448 | AH260: 0.000154413398 | AI260: 0.0001944157712 | AJ260: -5.056587811e-05 | AK260: -5.056587809e-05 | AL260: 21.25110448 | AM260: 21.25093112 | AQ260: 19 | AR260: 0 | AS260: 0 | AT260: 5.970556086 | AU260: 100 | AV260: 0 | AW260: -1.75826e-13 | AX260: 19 | AY260: -1.814023434 | AZ260: 1.040593168 | BA260: 1.009847993 | BB260: 1.004349018 | BC260: 2.40207389 | BD260: -13.66265339 | BE260: 18.97046404 | BF260: -13.66265341 | BG260: -1.814023434 | BH260: -0.9862312332 | BI260: -0.9862312332 | BJ260: -1.424436459 | BK260: -1.802923356 | BL260: -1.79317207 | BM260: -0.9862285206 | BN260: -0.9751284435 | BO260: 19.0097542 | BP260: -13.6935114 | BQ260: 30.74517736 | BR260: -19.64508072 | BS260: 4.216097324 | BT260: -0.4382052255 | BU260: -11.10007816 | BV260: -11.10007621 | BW260: 19.64508073 | BX260: 15.42900906
A261: 0.99 | B261: 9122016647 | D261: 98 | E261: 9.8e-08 | F261: 19 | G261: 5 | H261: 0 | I261: -2.288998e-07 | J261: 21.26800396 | K261: 0 | L261: -9.581371503e-13 | M261: 19 | N261: 18.90706323 | O261: 1.823045825 | P261: 1.801777624 | Q261: 1.800529174 | R261: 23.90718368 | S261: 18.93478126 | T261: 18.98934882 | U261: 18.93478126 | V261: 23.90706323 | W261: -2.56998159e-08 | X261: -2.56998159e-08 | Y261: 0.0001360558157 | Z261: 18.90706326 | AA261: 18.90706326 | AB261: -2.569614259e-08 | AC261: -4.129970455e-10 | AD261: 18.99998292 | AE261: 18.92414725 | AF261: 21.26818414 | AG261: -21.26818851 | AH261: 0.0001544131043 | AI261: 0.000194402165 | AJ261: -5.056629111e-05 | AK261: -5.056629108e-05 | AL261: 21.26818851 | AM261: 21.26801514 | AQ261: 19 | AR261: 0 | AS261: 0 | AT261: 5.860412077 | AU261: 100 | AV261: 0 | AW261: -1.75826e-13 | AX261: 19 | AY261: -1.802175446 | AZ261: 1.040593191 | BA261: 1.009848005 | BB261: 1.004349019 | BC261: 2.411127478 | BD261: -13.53742606 | BE261: 18.97013296 | BF261: -13.53742608 | BG261: -1.802175446 | BH261: -0.9750862006 | BI261: -0.9750862006 | BJ261: -1.413279824 | BK261: -1.791185715 | BL261: -1.781544776 | BM261: -0.9750834881 | BN261: -0.9640937578 | BO261: 19.00964384 | BP261: -13.56851038 | BQ261: 30.74518921 | BR261: -19.7554396 | BS261: 4.213302924 | BT261: -0.4381936237 | BU261: -10.98973129 | BV261: -10.98972936 | BW261: 19.75543961 | BX261: 15.5421621
A262: 1 | B262: 1.342060603e+10 | D262: 99 | E262: 9.9e-08 | F262: 19 | G262: 5 | H262: 0 | I262: -2.288998e-07 | J262: 21.28508786 | K262: 0 | L262: -9.583645161e-13 | M262: 19 | N262: 18.90700183 | O262: 1.823094024 | P262: 1.801808739 | Q262: 1.800543551 | R262: 23.90712227 | S262: 18.93472829 | T262: 18.98934028 | U262: 18.93472829 | V262: 23.90700183 | W262: -2.568946478e-08 | X262: -2.568946478e-08 | Y262: 0.0001360463023 | Z262: 18.90700186 | AA262: 18.90700186 | AB262: -2.568579143e-08 | AC262: -4.024446685e-10 | AD262: 18.99998292 | AE262: 18.92408574 | AF262: 21.28526805 | AG262: -21.28527241 | AH262: 0.0001544128175 | AI262: 0.0001943885597 | AJ262: -5.056669356e-05 | AK262: -5.056669353e-05 | AL262: 21.28527241 | AM262: 21.28509904 | AQ262: 19 | AR262: 0 | AS262: 0 | AT262: 5.749514557 | AU262: 100 | AV262: 0 | AW262: -1.75826e-13 | AX262: 19 | AY262: -1.790236661 | AZ262: 1.040593215 | BA262: 1.009848017 | BB262: 1.004349019 | BC262: 2.420250401 | BD262: -13.41132508 | BE262: 18.9697996 | BF262: -13.4113251 | BG262: -1.790236661 | BH262: -0.9638644348 | BI262: -0.9638644348 | BJ262: -1.402046155 | BK262: -1.779358036 | BL262: -1.769828203 | BM262: -0.9638617224 | BN262: -0.9529830987 | BO262: 19.00953272 | BP262: -13.44263727 | BQ262: 30.74520115 | BR262: -19.8665583 | BS262: 4.210487061 | BT262: -0.4381817201 | BU262: -10.87862467 | BV262: -10.87862277 | BW262: 19.86655831 | BX262: 15.65609643
B263: 0 | D263: 100 | E263: 1e-07 | F263: 19 | G263: 5 | H263: 0 | I263: -2.288998e-07 | J263: 21.30217165 | K263: 0 | L263: -9.585914957e-13 | M263: 19 | N263: 18.90694043 | O263: 1.823142411 | P263: 1.801840043 | Q263: 1.800558119 | R263: 23.90706087 | S263: 18.93467532 | T263: 18.98933174 | U263: 18.93467532 | V263: 23.90694043 | W263: -2.568978159e-08 | X263: -2.568978159e-08 | Y263: 0.000136036779 | Z263: 18.90694046 | AA263: 18.90694046 | AB263: -2.568610821e-08 | AC263: -4.025601671e-10 | AD263: 18.99998292 | AE263: 18.92402423 | AF263: 21.30235185 | AG263: -21.3023562 | AH263: 0.0001544125228 | AI263: 0.0001943749554 | AJ263: -5.056709612e-05 | AK263: -5.056709609e-05 | AL263: 21.3023562 | AM263: 21.30218284 | AQ263: 19 | AR263: 0 | AS263: 0 | AT263: 5.637845625 | AU263: 100 | AV263: 0 | AW263: -1.75826e-13 | AX263: 19 | AY263: -1.77820456 | AZ263: 1.040593239 | BA263: 1.009848028 | BB263: 1.004349019 | BC263: 2.42944458 | BD263: -13.28432903 | BE263: 18.96946391 | BF263: -13.28432905 | BG263: -1.77820456 | BH263: -0.9525640907 | BI263: -0.9525640907 | BJ263: -1.39073359 | BK263: -1.76743782 | BL263: -1.758019872 | BM263: -0.9525613784 | BN263: -0.9417946393 | BO263: 19.00942082 | BP263: -13.31587069 | BQ263: 30.74521318 | BR263: -19.9784551 | BS263: 4.20764914 | BT263: -0.4381694994 | BU263: -10.76674006 | BV263: -10.76673817 | BW263: 19.97845511 | BX263: 15.77083091
B264: 0 | D264: 101 | E264: 1.01e-07 | F264: 19 | G264: 5 | H264: 0 | I264: -2.288998e-07 | J264: 21.31925534 | K264: 0 | L264: -9.588180898e-13 | M264: 19 | N264: 18.90687903 | O264: 1.823190986 | P264: 1.801871534 | Q264: 1.800572876 | R264: 23.90699947 | S264: 18.93462235 | T264: 18.9893232 | U264: 18.93462235 | V264: 23.90687903 | W264: -2.56959004e-08 | X264: -2.56959004e-08 | Y264: 0.0001360272505 | Z264: 18.90687905 | AA264: 18.90687905 | AB264: -2.5692227e-08 | AC264: -4.084747137e-10 | AD264: 18.99998292 | AE264: 18.92396272 | AF264: 21.31943553 | AG264: -21.31943989 | AH264: 0.0001544122187 | AI264: 0.000194361352 | AJ264: -5.056750459e-05 | AK264: -5.056750456e-05 | AL264: 21.31943989 | AM264: 21.31926653 | AQ264: 19 | AR264: 0 | AS264: 0 | AT264: 5.525386673 | AU264: 100 | AV264: 0 | AW264: -1.75826e-13 | AX264: 19 | AY264: -1.766076501 | AZ264: 1.040593263 | BA264: 1.00984804 | BB264: 1.004349019 | BC264: 2.438712032 | BD264: -13.15641559 | BE264: 18.96912583 | BF264: -13.15641561 | BG264: -1.766076501 | BH264: -0.9411832486 | BI264: -0.9411832486 | BJ264: -1.379340194 | BK264: -1.755422443 | BL264: -1.746117177 | BM264: -0.9411805364 | BN264: -0.9305264789 | BO264: 19.00930813 | BP264: -13.18818836 | BQ264: 30.74522531 | BR264: -20.091149 | BS264: 4.204788534 | BT264: -0.4381569452 | BU264: -10.65405843 | BV264: -10.65405657 | BW264: 20.09114901 | BX264: 15.88638518
D265: 102 | E265: 1.02e-07 | F265: 19 | G265: 5 | H265: 0 | I265: -2.288998e-07 | J265: 21.33633892 | K265: 0 | L265: -9.590442992e-13 | M265: 19 | N265: 18.90681763 | O265: 1.823239749 | P265: 1.801903213 | Q265: 1.800587824 | R265: 23.90693807 | S265: 18.93456938 | T265: 18.98931465 | U265: 18.93456938 | V265: 23.90681763 | W265: -2.570271597e-08 | X265: -2.570271597e-08 | Y265: 0.000136017722 | Z265: 18.90681765 | AA265: 18.90681765 | AB265: -2.569904253e-08 | AC265: -4.150827071e-10 | AD265: 18.99998292 | AE265: 18.9239012 | AF265: 21.33651911 | AG265: -21.33652347 | AH265: 0.0001544119184 | AI265: 0.0001943477495 | AJ265: -5.056791967e-05 | AK265: -5.056791965e-05 | AL265: 21.33652347 | AM265: 21.33635011 | AQ265: 19 | AR265: 0 | AS265: 0 | AT265: 5.41211835 | AU265: 100 | AV265: 0 | AW265: -1.75826e-13 | AX265: 19 | AY265: -1.753849709 | AZ265: 1.040593287 | BA265: 1.009848052 | BB265: 1.004349019 | BC265: 2.448054875 | BD265: -13.0275615 | BE265: 18.9687853 | BF265: -13.02756153 | BG265: -1.753849709 | BH265: -0.9297199102 | BI265: -0.9297199102 | BJ265: -1.36786395 | BK265: -1.743309149 | BL265: -1.734117381 | BM265: -0.9297171981 | BN265: -0.919176639 | BO265: 19.00919462 | BP265: -13.05956706 | BQ265: 30.74523754 | BR265: -20.2046598 | BS265: 4.201904584 | BT265: -0.4381440396 | BU265: -10.54056001 | BV265: -10.54055817 | BW265: 20.20465981 | BX265: 16.00277968
D266: 103 | E266: 1.03e-07 | F266: 19 | G266: 5 | H266: 0 | I266: -2.288998e-07 | J266: 21.35342239 | K266: 0 | L266: -9.592701242e-13 | M266: 19 | N266: 18.90675622 | O266: 1.8232887 | P266: 1.80193508 | Q266: 1.800602961 | R266: 23.90687666 | S266: 18.93451641 | T266: 18.98930611 | U266: 18.93451641 | V266: 23.90675622 | W266: -2.568709301e-08 | X266: -2.568709301e-08 | Y266: 0.0001360082165 | Z266: 18.90675625 | AA266: 18.90675625 | AB266: -2.568341954e-08 | AC266: -3.992600883e-10 | AD266: 18.99998292 | AE266: 18.92383969 | AF266: 21.35360258 | AG266: -21.35360694 | AH266: 0.0001544116142 | AI266: 0.000194334148 | AJ266: -5.056831893e-05 | AK266: -5.056831891e-05 | AL266: 21.35360694 | AM266: 21.35343357 | AQ266: 19 | AR266: 0 | AS266: 0 | AT266: 5.298020518 | AU266: 100 | AV266: 0 | AW266: -1.75826e-13 | AX266: 19 | AY266: -1.741521261 | AZ266: 1.040593312 | BA266: 1.009848065 | BB266: 1.004349019 | BC266: 2.457475337 | BD266: -12.8977425 | BE266: 18.96844225 | BF266: -12.89774252 | BG266: -1.741521261 | BH266: -0.9181719939 | BI266: -0.9181719939 | BJ266: -1.356302757 | BK266: -1.731095037 | BL266: -1.722017605 | BM266: -0.9181692819 | BN266: -0.9077430586 | BO266: 19.00908027 | BP266: -12.92998257 | BQ266: 30.74524987 | BR266: -20.31900811 | BS266: 4.198996598 | BT266: -0.4381307635 | BU266: -10.42622418 | BV266: -10.42622236 | BW266: 20.31900812 | BX266: 16.12003573
D267: 104 | E267: 1.04e-07 | F267: 19 | G267: 5 | H267: 0 | I267: -2.288998e-07 | J267: 21.37050574 | K267: 0 | L267: -9.594955656e-13 | M267: 19 | N267: 18.90669482 | O267: 1.823337838 | P267: 1.801967135 | Q267: 1.800618289 | R267: 23.90681526 | S267: 18.93446344 | T267: 18.98929757 | U267: 18.93446344 | V267: 23.90669482 | W267: -2.56883299e-08 | X267: -2.56883299e-08 | Y267: 0.0001359986949 | Z267: 18.90669485 | AA267: 18.90669485 | AB267: -2.56846564e-08 | AC267: -4.002968016e-10 | AD267: 18.99998292 | AE267: 18.92377818 | AF267: 21.37068594 | AG267: -21.37069029 | AH267: 0.0001544113097 | AI267: 0.0001943205474 | AJ267: -5.056871923e-05 | AK267: -5.05687192e-05 | AL267: 21.37069029 | AM267: 21.37051693 | AQ267: 19 | AR267: 0 | AS267: 0 | AT267: 5.183072215 | AU267: 100 | AV267: 0 | AW267: -1.75826e-13 | AX267: 19 | AY267: -1.729088084 | AZ267: 1.040593336 | BA267: 1.009848077 | BB267: 1.004349019 | BC267: 2.466975764 | BD267: -12.76693323 | BE267: 18.96809663 | BF267: -12.76693325 | BG267: -1.729088084 | BH267: -0.9065373298 | BI267: -0.9065373298 | BJ267: -1.344654426 | BK267: -1.718777054 | BL267: -1.709814817 | BM267: -0.906534618 | BN267: -0.8962235894 | BO267: 19.00896506 | BP267: -12.79940958 | BQ267: 30.7452623 | BR267: -20.43421542 | BS267: 4.196063848 | BT267: -0.4381170961 | BU267: -10.31102947 | BV267: -10.31102767 | BW267: 20.43421542 | BX267: 16.23817554
D268: 105 | E268: 1.05e-07 | F268: 19 | G268: 5 | H268: 0 | I268: -2.288998e-07 | J268: 21.38758899 | K268: 0 | L268: -9.597206242e-13 | M268: 19 | N268: 18.90663342 | O268: 1.823387164 | P268: 1.801999378 | Q268: 1.800633807 | R268: 23.90675386 | S268: 18.93441046 | T268: 18.98928903 | U268: 18.93441046 | V268: 23.90663342 | W268: -2.570225691e-08 | X268: -2.570225691e-08 | Y268: 0.0001359891612 | Z268: 18.90663344 | AA268: 18.90663344 | AB268: -2.569858338e-08 | AC268: -4.140167673e-10 | AD268: 18.99998292 | AE268: 18.92371666 | AF268: 21.38776918 | AG268: -21.38777354 | AH268: 0.0001544110089 | AI268: 0.0001943069478 | AJ268: -5.056913324e-05 | AK268: -5.056913322e-05 | AL268: 21.38777354 | AM268: 21.38760018 | AQ268: 19 | AR268: 0 | AS268: 0 | AT268: 5.0672516 | AU268: 100 | AV268: 0 | AW268: -1.75826e-13 | AX268: 19 | AY268: -1.716546933 | AZ268: 1.040593361 | BA268: 1.009848089 | BB268: 1.004349019 | BC268: 2.47655863 | BD268: -12.63510725 | BE268: 18.96774837 | BF268: -12.63510727 | BG268: -1.716546933 | BH268: -0.8948136549 | BI268: -0.8948136549 | BJ268: -1.33291667 | BK268: -1.706351979 | BL268: -1.697505818 | BM268: -0.8948109431 | BN268: -0.8846159906 | BO268: 19.00884897 | BP268: -12.66782169 | BQ268: 30.74527484 | BR268: -20.55030412 | BS268: 4.193105563 | BT268: -0.438103015 | BU268: -10.19495345 | BV268: -10.19495168 | BW268: 20.55030413 | BX268: 16.35722228
D269: 106 | E269: 1.06e-07 | F269: 19 | G269: 5 | H269: 0 | I269: -2.288998e-07 | J269: 21.40467212 | K269: 0 | L269: -9.599453005e-13 | M269: 19 | N269: 18.90657201 | O269: 1.823436678 | P269: 1.802031809 | Q269: 1.800649515 | R269: 23.90669245 | S269: 18.93435749 | T269: 18.98928049 | U269: 18.93435749 | V269: 23.90657201 | W269: -2.569269856e-08 | X269: -2.569269856e-08 | Y269: 0.0001359796516 | Z269: 18.90657204 | AA269: 18.90657204 | AB269: -2.568902499e-08 | AC269: -4.042562565e-10 | AD269: 18.99998292 | AE269: 18.92365515 | AF269: 21.40485232 | AG269: -21.40485667 | AH269: 0.0001544107014 | AI269: 0.000194293349 | AJ269: -5.05695375e-05 | AK269: -5.056953748e-05 | AL269: 21.40485667 | AM269: 21.40468331 | AQ269: 19 | AR269: 0 | AS269: 0 | AT269: 4.950535911 | AU269: 100 | AV269: 0 | AW269: -1.75826e-13 | AX269: 19 | AY269: -1.703894382 | AZ269: 1.040593387 | BA269: 1.009848102 | BB269: 1.00434902 | BC269: 2.486226549 | BD269: -12.50223685 | BE269: 18.96739739 | BF269: -12.50223687 | BG269: -1.703894382 | BH269: -0.8829986068 | BI269: -0.8829986068 | BJ269: -1.321087102 | BK269: -1.69381641 | BL269: -1.685087229 | BM269: -0.8829958952 | BN269: -0.8729179233 | BO269: 19.00873198 | BP269: -12.53519125 | BQ269: 30.74528749 | BR269: -20.66729763 | BS269: 4.190120931 | BT269: -0.4380884955 | BU269: -10.07797276 | BV269: -10.07797101 | BW269: 20.66729764 | BX269: 16.47720016
D270: 107 | E270: 1.07e-07 | F270: 19 | G270: 5 | H270: 0 | I270: -2.288998e-07 | J270: 21.42175515 | K270: 0 | L270: -9.601695951e-13 | M270: 19 | N270: 18.90651061 | O270: 1.82348638 | P270: 1.802064427 | Q270: 1.800665413 | R270: 23.90663105 | S270: 18.93430452 | T270: 18.98927195 | U270: 18.93430452 | V270: 23.90651061 | W270: -2.569180045e-08 | X270: -2.569180045e-08 | Y270: 0.0001359701341 | Z270: 18.90651063 | AA270: 18.90651063 | AB270: -2.568812685e-08 | AC270: -4.031565356e-10 | AD270: 18.99998292 | AE270: 18.92359363 | AF270: 21.42193534 | AG270: -21.4219397 | AH270: 0.0001544103933 | AI270: 0.0001942797512 | AJ270: -5.056994066e-05 | AK270: -5.056994063e-05 | AL270: 21.4219397 | AM270: 21.42176634 | AQ270: 19 | AR270: 0 | AS270: 0 | AT270: 4.832901409 | AU270: 100 | AV270: 0 | AW270: -1.75826e-13 | AX270: 19 | AY270: -1.691126809 | AZ270: 1.040593412 | BA270: 1.009848114 | BB270: 1.00434902 | BC270: 2.495982284 | BD270: -12.36829309 | BE270: 18.96704362 | BF270: -12.36829311 | BG270: -1.691126809 | BH270: -0.8710897183 | BI270: -0.8710897183 | BJ270: -1.30916323 | BK270: -1.681166746 | BL270: -1.672555475 | BM270: -0.8710870068 | BN270: -0.8611269447 | BO270: 19.00861406 | BP270: -12.40148936 | BQ270: 30.74530026 | BR270: -20.78522037 | BS270: 4.187109093 | BT270: -0.4380735113 | BU270: -9.960062949 | BV270: -9.960061225 | BW270: 20.78522037 | BX270: 16.59813448
D271: 108 | E271: 1.08e-07 | F271: 19 | G271: 5 | H271: 0 | I271: -2.288998e-07 | J271: 21.43883805 | K271: 0 | L271: -9.603935086e-13 | M271: 19 | N271: 18.9064492 | O271: 1.823536269 | P271: 1.802097233 | Q271: 1.800681501 | R271: 23.90656964 | S271: 18.93425154 | T271: 18.98926341 | U271: 18.93425154 | V271: 23.9064492 | W271: -2.568735521e-08 | X271: -2.568735521e-08 | Y271: 0.0001359606207 | Z271: 18.90644923 | AA271: 18.90644923 | AB271: -2.568368159e-08 | AC271: -3.985120151e-10 | AD271: 18.99998292 | AE271: 18.92353212 | AF271: 21.43901826 | AG271: -21.43902261 | AH271: 0.0001544100852 | AI271: 0.0001942661544 | AJ271: -5.057033917e-05 | AK271: -5.057033914e-05 | AL271: 21.43902261 | AM271: 21.43884925 | AQ271: 19 | AR271: 0 | AS271: 0 | AT271: 4.71432332 | AU271: 100 | AV271: 0 | AW271: -1.75826e-13 | AX271: 19 | AY271: -1.678240375 | AZ271: 1.040593438 | BA271: 1.009848127 | BB271: 1.00434902 | BC271: 2.505828762 | BD271: -12.23324562 | BE271: 18.96668698 | BF271: -12.23324564 | BG271: -1.678240375 | BH271: -0.8590844103 | BI271: -0.8590844103 | BJ271: -1.297142443 | BK271: -1.668399176 | BL271: -1.65990677 | BM271: -0.8590816988 | BN271: -0.8492405012 | BO271: 19.00849518 | BP271: -12.26668572 | BQ271: 30.74531315 | BR271: -20.90409787 | BS271: 4.184069137 | BT271: -0.438058033 | BU271: -9.84119849 | BV271: -9.84119679 | BW271: 20.90409788 | BX271: 16.72005169
D272: 109 | E272: 1.09e-07 | F272: 19 | G272: 5 | H272: 0 | I272: -2.288998e-07 | J272: 21.45592085 | K272: 0 | L272: -9.606170418e-13 | M272: 19 | N272: 18.9063878 | O272: 1.823586346 | P272: 1.802130227 | Q272: 1.800697778 | R272: 23.90650824 | S272: 18.93419857 | T272: 18.98925486 | U272: 18.93419857 | V272: 23.9063878 | W272: -2.569098996e-08 | X272: -2.569098996e-08 | Y272: 0.0001359510999 | Z272: 18.90638782 | AA272: 18.90638782 | AB272: -2.56873163e-08 | AC272: -4.019457579e-10 | AD272: 18.99998292 | AE272: 18.9234706 | AF272: 21.45610106 | AG272: -21.45610541 | AH272: 0.0001544097685 | AI272: 0.0001942525584 | AJ272: -5.057074112e-05 | AK272: -5.057074109e-05 | AL272: 21.45610541 | AM272: 21.45593205 | AQ272: 19 | AR272: 0 | AS272: 0 | AT272: 4.594775781 | AU272: 100 | AV272: 0 | AW272: -1.75826e-13 | AX272: 19 | AY272: -1.665231005 | AZ272: 1.040593463 | BA272: 1.00984814 | BB272: 1.00434902 | BC272: 2.515769091 | BD272: -12.09706262 | BE272: 18.96632741 | BF272: -12.09706264 | BG272: -1.665231005 | BH272: -0.8469799849 | BI272: -0.8469799849 | BJ272: -1.285022014 | BK272: -1.655509653 | BL272: -1.647137092 | BM272: -0.8469772736 | BN272: -0.8372559218 | BO272: 19.00837532 | BP272: -12.13074858 | BQ272: 30.74532616 | BR272: -21.02395686 | BS272: 4.181000096 | BT272: -0.438042029 | BU272: -9.721352672 | BV272: -9.721350996 | BW272: 21.02395687 | BX272: 16.84297946
D273: 110 | E273: 1.1e-07 | F273: 19 | G273: 5 | H273: 0 | I273: -2.288998e-07 | J273: 21.47300355 | K273: 0 | L273: -9.608401954e-13 | M273: 19 | N273: 18.90632639 | O273: 1.82363661 | P273: 1.802163409 | Q273: 1.800714246 | R273: 23.90644683 | S273: 18.93414559 | T273: 18.98924632 | U273: 18.93414559 | V273: 23.90632639 | W273: -2.570042929e-08 | X273: -2.570042929e-08 | Y273: 0.000135941574 | Z273: 18.90632642 | AA273: 18.90632642 | AB273: -2.56967556e-08 | AC273: -4.111794685e-10 | AD273: 18.99998292 | AE273: 18.92340908 | AF273: 21.47318375 | AG273: -21.4731881 | AH273: 0.0001544094547 | AI273: 0.0001942389634 | AJ273: -5.05711523e-05 | AK273: -5.057115227e-05 | AL273: 21.4731881 | AM273: 21.47301474 | AQ273: 19 | AR273: 0 | AS273: 0 | AT273: 4.47423177 | AU273: 100 | AV273: 0 | AW273: -1.75826e-13 | AX273: 19 | AY273: -1.652094369 | AZ273: 1.04059349 | BA273: 1.009848153 | BB273: 1.00434902 | BC273: 2.525806574 | BD273: -11.95971072 | BE273: 18.9659648 | BF273: -11.95971074 | BG273: -1.652094369 | BH273: -0.834773618 | BI273: -0.834773618 | BJ273: -1.272799082 | BK273: -1.642493872 | BL273: -1.634242166 | BM273: -0.8347709068 | BN273: -0.8251704101 | BO273: 19.00825445 | BP273: -11.99364461 | BQ273: 30.74533929 | BR273: -21.1448253 | BS273: 4.177900943 | BT273: -0.4380254643 | BU273: -9.600497531 | BV273: -9.600495879 | BW273: 21.14482531 | BX273: 16.96694679
D274: 111 | E274: 1.11e-07 | F274: 19 | G274: 5 | H274: 0 | I274: -2.288998e-07 | J274: 21.49008612 | K274: 0 | L274: -9.610629697e-13 | M274: 19 | N274: 18.90626499 | O274: 1.823687062 | P274: 1.802196779 | Q274: 1.800730904 | R274: 23.90638543 | S274: 18.93409261 | T274: 18.98923778 | U274: 18.93409261 | V274: 23.90626499 | W274: -2.568394549e-08 | X274: -2.568394549e-08 | Y274: 0.0001359320746 | Z274: 18.90626501 | AA274: 18.90626501 | AB274: -2.568027178e-08 | AC274: -3.944983936e-10 | AD274: 18.99998292 | AE274: 18.92334756 | AF274: 21.49026633 | AG274: -21.49027067 | AH274: 0.0001544091424 | AI274: 0.0001942253694 | AJ274: -5.05715468e-05 | AK274: -5.057154677e-05 | AL274: 21.49027067 | AM274: 21.49009732 | AQ274: 19 | AR274: 0 | AS274: 0 | AT274: 4.352663045 | AU274: 100 | AV274: 0 | AW274: -1.75826e-13 | AX274: 19 | AY274: -1.638825852 | AZ274: 1.040593516 | BA274: 1.009848166 | BB274: 1.00434902 | BC274: 2.535944728 | BD274: -11.82115484 | BE274: 18.96559908 | BF274: -11.82115486 | BG274: -1.638825852 | BH274: -0.8224623508 | BI274: -0.8224623508 | BJ274: -1.260470651 | BK274: -1.629347248 | BL274: -1.621217437 | BM274: -0.8224596398 | BN274: -0.8129810368 | BO274: 19.00813255 | BP274: -11.8553388 | BQ274: 30.74535256 | BR274: -21.26673249 | BS274: 4.17477058 | BT274: -0.4380083005 | BU274: -9.478603773 | BV274: -9.478602146 | BW274: 21.2667325 | BX274: 17.09198408
D275: 112 | E275: 1.12e-07 | F275: 19 | G275: 5 | H275: 0 | I275: -2.288998e-07 | J275: 21.50716859 | K275: 0 | L275: -9.612853656e-13 | M275: 19 | N275: 18.90620358 | O275: 1.823737702 | P275: 1.802230336 | Q275: 1.800747751 | R275: 23.90632402 | S275: 18.93403964 | T275: 18.98922924 | U275: 18.93403964 | V275: 23.90620358 | W275: -2.569107569e-08 | X275: -2.569107569e-08 | Y275: 0.0001359225523 | Z275: 18.90620361 | AA275: 18.90620361 | AB275: -2.568740195e-08 | AC275: -4.014278484e-10 | AD275: 18.99998292 | AE275: 18.92328605 | AF275: 21.50734879 | AG275: -21.50735314 | AH275: 0.0001544088237 | AI275: 0.0001942117762 | AJ275: -5.057194822e-05 | AK275: -5.05719482e-05 | AL275: 21.50735314 | AM275: 21.50717978 | AQ275: 19 | AR275: 0 | AS275: 0 | AT275: 4.230040065 | AU275: 100 | AV275: 0 | AW275: -1.75826e-13 | AX275: 19 | AY275: -1.625420528 | AZ275: 1.040593543 | BA275: 1.009848179 | BB275: 1.00434902 | BC275: 2.546187311 | BD275: -11.68135809 | BE275: 18.96523015 | BF275: -11.68135811 | BG275: -1.625420528 | BH275: -0.8100430807 | BI275: -0.8100430807 | BJ275: -1.248033576 | BK275: -1.616064887 | BL275: -1.608058038 | BM275: -0.8100403698 | BN275: -0.8006847299 | BO275: 19.00800957 | BP275: -11.71579434 | BQ275: 30.74536597 | BR275: -21.38970915 | BS275: 4.171607839 | BT275: -0.4379904952 | BU275: -9.35564068 | BV275: -9.355639078 | BW275: 21.38970916 | BX275: 17.21812322
D276: 113 | E276: 1.13e-07 | F276: 19 | G276: 5 | H276: 0 | I276: -2.288998e-07 | J276: 21.52425094 | K276: 0 | L276: -9.615073837e-13 | M276: 19 | N276: 18.90614217 | O276: 1.823788529 | P276: 1.802264081 | Q276: 1.800764789 | R276: 23.90626261 | S276: 18.93398666 | T276: 18.9892207 | U276: 18.93398666 | V276: 23.90614217 | W276: -2.569527995e-08 | X276: -2.569527995e-08 | Y276: 0.0001359130335 | Z276: 18.9061422 | AA276: 18.9061422 | AB276: -2.569160617e-08 | AC276: -4.054293587e-10 | AD276: 18.99998292 | AE276: 18.92322453 | AF276: 21.52443114 | AG276: -21.52443549 | AH276: 0.0001544085081 | AI276: 0.000194198184 | AJ276: -5.057235365e-05 | AK276: -5.057235363e-05 | AL276: 21.52443549 | AM276: 21.52426214 | AQ276: 19 | AR276: 0 | AS276: 0 | AT276: 4.106331922 | AU276: 100 | AV276: 0 | AW276: -1.75826e-13 | AX276: 19 | AY276: -1.611873124 | AZ276: 1.04059357 | BA276: 1.009848193 | BB276: 1.004349021 | BC276: 2.556538342 | BD276: -11.54028166 | BE276: 18.96485792 | BF276: -11.54028168 | BG276: -1.611873124 | BH276: -0.7975125521 | BI276: -0.7975125521 | BJ276: -1.235484554 | BK276: -1.602641548 | BL276: -1.594758764 | BM276: -0.7975098414 | BN276: -0.7882782662 | BO276: 19.00788549 | BP276: -11.57497245 | BQ276: 30.74537951 | BR276: -21.51378753 | BS276: 4.168411465 | BT276: -0.4379720015 | BU276: -9.231576018 | BV276: -9.23157444 | BW276: 21.51378753 | BX276: 17.34539771
D277: 114 | E277: 1.14e-07 | F277: 19 | G277: 5 | H277: 0 | I277: -2.288998e-07 | J277: 21.54133318 | K277: 0 | L277: -9.617290246e-13 | M277: 19 | N277: 18.90608077 | O277: 1.823839544 | P277: 1.802298013 | Q277: 1.800782016 | R277: 23.90620121 | S277: 18.93393368 | T277: 18.98921216 | U277: 18.93393368 | V277: 23.90608077 | W277: -2.569179267e-08 | X277: -2.569179267e-08 | Y277: 0.0001359035231 | Z277: 18.90608079 | AA277: 18.90608079 | AB277: -2.568811887e-08 | AC277: -4.01741182e-10 | AD277: 18.99998292 | AE277: 18.92316301 | AF277: 21.54151339 | AG277: -21.54151774 | AH277: 0.0001544081887 | AI277: 0.0001941845927 | AJ277: -5.057275539e-05 | AK277: -5.057275537e-05 | AL277: 21.54151774 | AM277: 21.54134438 | AQ277: 19 | AR277: 0 | AS277: 0 | AT277: 3.98150626 | AU277: 100 | AV277: 0 | AW277: -1.75826e-13 | AX277: 19 | AY277: -1.598177986 | AZ277: 1.040593597 | BA277: 1.009848206 | BB277: 1.004349021 | BC277: 2.567002131 | BD277: -11.3978846 | BE277: 18.96448227 | BF277: -11.39788462 | BG277: -1.598177986 | BH277: -0.7848673456 | BI277: -0.7848673456 | BJ277: -1.222820113 | BK277: -1.58907161 | BL277: -1.581314026 | BM277: -0.784864635 | BN277: -0.7757582598 | BO277: 19.00776028 | BP277: -11.43283228 | BQ277: 30.74539321 | BR277: -21.63900148 | BS277: 4.165180116 | BT277: -0.4379527671 | BU277: -9.106375929 | BV277: -9.106374376 | BW277: 21.63900149 | BX277: 17.47384274
D278: 115 | E278: 1.15e-07 | F278: 19 | G278: 5 | H278: 0 | I278: -2.288998e-07 | J278: 21.55841531 | K278: 0 | L278: -9.61950289e-13 | M278: 19 | N278: 18.90601936 | O278: 1.823890746 | P278: 1.802332133 | Q278: 1.800799433 | R278: 23.9061398 | S278: 18.9338807 | T278: 18.98920362 | U278: 18.9338807 | V278: 23.90601936 | W278: -2.569221435e-08 | X278: -2.569221435e-08 | Y278: 0.0001358940095 | Z278: 18.90601938 | AA278: 18.90601938 | AB278: -2.568854051e-08 | AC278: -4.019618462e-10 | AD278: 18.99998292 | AE278: 18.92310149 | AF278: 21.55859551 | AG278: -21.55859986 | AH278: 0.0001544078722 | AI278: 0.0001941710024 | AJ278: -5.057315735e-05 | AK278: -5.057315733e-05 | AL278: 21.55859986 | AM278: 21.5584265 | AQ278: 19 | AR278: 0 | AS278: 0 | AT278: 3.855529187 | AU278: 100 | AV278: 0 | AW278: -1.75826e-13 | AX278: 19 | AY278: -1.584329029 | AZ278: 1.040593624 | BA278: 1.00984822 | BB278: 1.004349021 | BC278: 2.577583316 | BD278: -11.25412371 | BE278: 18.96410312 | BF278: -11.25412373 | BG278: -1.584329029 | BH278: -0.7721038664 | BI278: -0.7721038664 | BJ278: -1.2100366 | BK278: -1.575349025 | BL278: -1.567717812 | BM278: -0.772101156 | BN278: -0.7631211519 | BO278: 19.00763389 | BP278: -11.2893307 | BQ278: 30.74540706 | BR278: -21.7653866 | BS278: 4.161912345 | BT278: -0.437932734 | BU278: -8.980004825 | BV278: -8.980003297 | BW278: 21.76538661 | BX278: 17.60349536
D279: 116 | E279: 1.16e-07 | F279: 19 | G279: 5 | H279: 0 | I279: -2.288998e-07 | J279: 21.57549733 | K279: 0 | L279: -9.621711774e-13 | M279: 19 | N279: 18.90595795 | O279: 1.823942135 | P279: 1.802366441 | Q279: 1.80081704 | R279: 23.90607839 | S279: 18.93382772 | T279: 18.98919508 | U279: 18.93382772 | V279: 23.90595795 | W279: -2.568889043e-08 | X279: -2.568889043e-08 | Y279: 0.0001358845002 | Z279: 18.90595798 | AA279: 18.90595798 | AB279: -2.568521656e-08 | AC279: -3.984386771e-10 | AD279: 18.99998292 | AE279: 18.92303997 | AF279: 21.57567753 | AG279: -21.57568188 | AH279: 0.0001544075471 | AI279: 0.000194157413 | AJ279: -5.057355579e-05 | AK279: -5.057355577e-05 | AL279: 21.57568188 | AM279: 21.57550852 | AQ279: 19 | AR279: 0 | AS279: 0 | AT279: 3.728365196 | AU279: 100 | AV279: 0 | AW279: -1.75826e-13 | AX279: 19 | AY279: -1.570319692 | AZ279: 1.040593652 | BA279: 1.009848234 | BB279: 1.004349021 | BC279: 2.588286898 | BD279: -11.10895335 | BE279: 18.96372034 | BF279: -11.10895337 | BG279: -1.570319692 | BH279: -0.7592183327 | BI279: -0.7592183327 | BJ279: -1.19713017 | BK279: -1.561467266 | BL279: -1.553963633 | BM279: -0.7592156225 | BN279: -0.7503631979 | BO279: 19.0075063 | BP279: -11.14442214 | BQ279: 30.74542107 | BR279: -21.89298035 | BS279: 4.15860659 | BT279: -0.437911837 | BU279: -8.85242526 | BV279: -8.852423758 | BW279: 21.89298036 | BX279: 17.73439459
D280: 117 | E280: 1.17e-07 | F280: 19 | G280: 5 | H280: 0 | I280: -2.288998e-07 | J280: 21.59257923 | K280: 0 | L280: -9.623916904e-13 | M280: 19 | N280: 18.90589654 | O280: 1.823993712 | P280: 1.802400936 | Q280: 1.800834837 | R280: 23.90601698 | S280: 18.93377474 | T280: 18.98918654 | U280: 18.93377474 | V280: 23.90589654 | W280: -2.568432839e-08 | X280: -2.568432839e-08 | Y280: 0.0001358749928 | Z280: 18.90589657 | AA280: 18.90589657 | AB280: -2.568065449e-08 | AC280: -3.936797683e-10 | AD280: 18.99998292 | AE280: 18.92297845 | AF280: 21.59275943 | AG280: -21.59276378 | AH280: 0.0001544072271 | AI280: 0.0001941438245 | AJ280: -5.057394947e-05 | AK280: -5.057394945e-05 | AL280: 21.59276378 | AM280: 21.59259042 | AQ280: 19 | AR280: 0 | AS280: 0 | AT280: 3.599977078 | AU280: 100 | AV280: 0 | AW280: -1.75826e-13 | AX280: 19 | AY280: -1.556142868 | AZ280: 1.04059368 | BA280: 1.009848248 | BB280: 1.004349021 | BC280: 2.599118294 | BD280: -10.96232519 | BE280: 18.96333381 | BF280: -10.96232521 | BG280: -1.556142868 | BH280: -0.7462067617 | BI280: -0.7462067617 | BJ280: -1.184096765 | BK280: -1.547419271 | BL280: -1.540044465 | BM280: -0.7462040516 | BN280: -0.7374804545 | BO280: 19.00737746 | BP280: -10.99805835 | BQ280: 30.74543524 | BR280: -22.02182216 | BS280: 4.155261162 | BT280: -0.4378900029 | BU280: -8.723597799 | BV280: -8.723596323 | BW280: 22.02182217 | BX280: 17.86658155
D281: 118 | E281: 1.18e-07 | F281: 19 | G281: 5 | H281: 0 | I281: -2.288998e-07 | J281: 21.60966102 | K281: 0 | L281: -9.626118289e-13 | M281: 19 | N281: 18.90583513 | O281: 1.824045477 | P281: 1.802435619 | Q281: 1.800852823 | R281: 23.90595557 | S281: 18.93372176 | T281: 18.989178 | U281: 18.93372176 | V281: 23.90583513 | W281: -2.569467494e-08 | X281: -2.569467494e-08 | Y281: 0.0001358654712 | Z281: 18.90583516 | AA281: 18.90583516 | AB281: -2.569100101e-08 | AC281: -4.038243731e-10 | AD281: 18.99998292 | AE281: 18.92291692 | AF281: 21.60984122 | AG281: -21.60984557 | AH281: 0.0001544068987 | AI281: 0.000194130237 | AJ281: -5.05743533e-05 | AK281: -5.057435327e-05 | AL281: 21.60984557 | AM281: 21.60967221 | AQ281: 19 | AR281: 0 | AS281: 0 | AT281: 3.470325827 | AU281: 100 | AV281: 0 | AW281: -1.75826e-13 | AX281: 19 | AY281: -1.541790842 | AZ281: 1.040593709 | BA281: 1.009848262 | BB281: 1.004349021 | BC281: 2.610083381 | BD281: -10.81418802 | BE281: 18.96294342 | BF281: -10.81418804 | BG281: -1.541790842 | BH281: -0.7330649552 | BI281: -0.7330649552 | BJ281: -1.170932104 | BK281: -1.533197362 | BL281: -1.525952673 | BM281: -0.7330622453 | BN281: -0.7244687651 | BO281: 19.00724732 | BP281: -10.85018822 | BQ281: 30.7454496 | BR281: -22.15195361 | BS281: 4.151874223 | BT281: -0.437867149 | BU281: -8.59348088 | BV281: -8.593479429 | BW281: 22.15195361 | BX281: 18.00009966
D282: 119 | E282: 1.19e-07 | F282: 19 | G282: 5 | H282: 0 | I282: -2.288998e-07 | J282: 21.62674269 | K282: 0 | L282: -9.628315932e-13 | M282: 19 | N282: 18.90577373 | O282: 1.824097429 | P282: 1.802470489 | Q282: 1.800870999 | R282: 23.90589416 | S282: 18.93366878 | T282: 18.98916945 | U282: 18.93366878 | V282: 23.90577373 | W282: -2.568167757e-08 | X282: -2.568167757e-08 | Y282: 0.0001358559736 | Z282: 18.90577375 | AA282: 18.90577375 | AB282: -2.567800361e-08 | AC282: -3.906316624e-10 | AD282: 18.99998292 | AE282: 18.9228554 | AF282: 21.6269229 | AG282: -21.62692724 | AH282: 0.000154406571 | AI282: 0.0001941166503 | AJ282: -5.057474393e-05 | AK282: -5.05747439e-05 | AL282: 21.62692724 | AM282: 21.62675389 | AQ282: 19 | AR282: 0 | AS282: 0 | AT282: 3.339370562 | AU282: 100 | AV282: 0 | AW282: -1.75826e-13 | AX282: 19 | AY282: -1.527255198 | AZ282: 1.040593738 | BA282: 1.009848276 | BB282: 1.004349022 | BC282: 2.621188573 | BD282: -10.66448748 | BE282: 18.96254902 | BF282: -10.6644875 | BG282: -1.527255198 | BH282: -0.7197884845 | BI282: -0.7197884845 | BJ282: -1.157631666 | BK282: -1.518793167 | BL282: -1.511679929 | BM282: -0.7197857748 | BN282: -0.7113237448 | BO282: 19.00711586 | BP282: -10.70075747 | BQ282: 30.74546413 | BR282: -22.28341855 | BS282: 4.148443771 | BT282: -0.4378431816 | BU282: -8.462030651 | BV282: -8.462029226 | BW282: 22.28341856 | BX282: 18.13499477
D283: 120 | E283: 1.2e-07 | F283: 19 | G283: 5 | H283: 0 | I283: -2.288998e-07 | J283: 21.64382426 | K283: 0 | L283: -9.630509843e-13 | M283: 19 | N283: 18.90571232 | O283: 1.824149568 | P283: 1.802505547 | Q283: 1.800889365 | R283: 23.90583275 | S283: 18.9336158 | T283: 18.98916091 | U283: 18.9336158 | V283: 23.90571232 | W283: -2.569234379e-08 | X283: -2.569234379e-08 | Y283: 0.0001358464529 | Z283: 18.90571234 | AA283: 18.90571234 | AB283: -2.56886698e-08 | AC283: -4.010972986e-10 | AD283: 18.99998292 | AE283: 18.92279388 | AF283: 21.64400446 | AG283: -21.64400881 | AH283: 0.0001544062391 | AI283: 0.0001941030646 | AJ283: -5.057514502e-05 | AK283: -5.0575145e-05 | AL283: 21.64400881 | AM283: 21.64383545 | AQ283: 19 | AR283: 0 | AS283: 0 | AT283: 3.207068443 | AU283: 100 | AV283: 0 | AW283: -1.75826e-13 | AX283: 19 | AY283: -1.512526718 | AZ283: 1.040593767 | BA283: 1.009848291 | BB283: 1.004349022 | BC283: 2.632440891 | BD283: -10.51316573 | BE283: 18.96215049 | BF283: -10.51316575 | BG283: -1.512526718 | BH283: -0.7063726728 | BI283: -0.7063726728 | BJ283: -1.144190667 | BK283: -1.504197517 | BL283: -1.497217108 | BM283: -0.7063699633 | BN283: -0.6980407632 | BO283: 19.00698302 | BP283: -10.54970836 | BQ283: 30.74547886 | BR283: -22.4162633 | BS283: 4.144967608 | BT283: -0.4378179937 | BU283: -8.329200807 | BV283: -8.32919941 | BW283: 22.41626331 | BX283: 18.27131539
D284: 121 | E284: 1.21e-07 | F284: 19 | G284: 5 | H284: 0 | I284: -2.288998e-07 | J284: 21.6609057 | K284: 0 | L284: -9.632700024e-13 | M284: 19 | N284: 18.90565091 | O284: 1.824201895 | P284: 1.802540792 | Q284: 1.80090792 | R284: 23.90577134 | S284: 18.93356281 | T284: 18.98915237 | U284: 18.93356281 | V284: 23.90565091 | W284: -2.568479031e-08 | X284: -2.568479031e-08 | Y284: 0.0001358369511 | Z284: 18.90565093 | AA284: 18.90565093 | AB284: -2.568111629e-08 | AC284: -3.933471178e-10 | AD284: 18.99998292 | AE284: 18.92273236 | AF284: 21.66108591 | AG284: -21.66109026 | AH284: 0.0001544059078 | AI284: 0.0001940894799 | AJ284: -5.057553837e-05 | AK284: -5.057553835e-05 | AL284: 21.66109026 | AM284: 21.6609169 | AQ284: 19 | AR284: 0 | AS284: 0 | AT284: 3.073374603 | AU284: 100 | AV284: 0 | AW284: -1.75826e-13 | AX284: 19 | AY284: -1.497595255 | AZ284: 1.040593797 | BA284: 1.009848306 | BB284: 1.004349022 | BC284: 2.643848063 | BD284: -10.36016116 | BE284: 18.96174767 | BF284: -10.36016118 | BG284: -1.497595255 | BH284: -0.6928125773 | BI284: -0.6928125773 | BJ284: -1.13060404 | BK284: -1.489400313 | BL284: -1.482554162 | BM284: -0.692809868 | BN284: -0.6846149262 | BO284: 19.00684874 | BP284: -10.39697939 | BQ284: 30.74549379 | BR284: -22.55053681 | BS284: 4.141443318 | BT284: -0.4377914624 | BU284: -8.194942411 | BV284: -8.194941041 | BW284: 22.55053682 | BX284: 18.4091129
D285: 122 | E285: 1.22e-07 | F285: 19 | G285: 5 | H285: 0 | I285: -2.288998e-07 | J285: 21.67798703 | K285: 0 | L285: -9.634886484e-13 | M285: 19 | N285: 18.9055895 | O285: 1.824254409 | P285: 1.802576225 | Q285: 1.800926665 | R285: 23.90570993 | S285: 18.93350983 | T285: 18.98914383 | U285: 18.93350983 | V285: 23.9055895 | W285: -2.568766627e-08 | X285: -2.568766627e-08 | Y285: 0.0001358274396 | Z285: 18.90558952 | AA285: 18.90558952 | AB285: -2.568399222e-08 | AC285: -3.960250288e-10 | AD285: 18.99998292 | AE285: 18.92267083 | AF285: 21.67816725 | AG285: -21.67817159 | AH285: 0.0001544055729 | AI285: 0.0001940758961 | AJ285: -5.05759344e-05 | AK285: -5.057593437e-05 | AL285: 21.67817159 | AM285: 21.67799823 | AQ285: 19 | AR285: 0 | AS285: 0 | AT285: 2.938242094 | AU285: 100 | AV285: 0 | AW285: -1.75826e-13 | AX285: 19 | AY285: -1.482449585 | AZ285: 1.040593827 | BA285: 1.00984832 | BB285: 1.004349022 | BC285: 2.655418639 | BD285: -10.20540799 | BE285: 18.96134041 | BF285: -10.205408 | BG285: -1.482449585 | BH285: -0.6791029697 | BI285: -0.6791029697 | BJ285: -1.116866416 | BK285: -1.474390381 | BL285: -1.467679969 | BM285: -0.6791002605 | BN285: -0.6710410575 | BO285: 19.00671299 | BP285: -10.24250487 | BQ285: 30.74550894 | BR285: -22.68629085 | BS285: 4.137868224 | BT285: -0.4377634459 | BU285: -8.059203697 | BV285: -8.059202353 | BW285: 22.68629086 | BX285: 18.54844175
D286: 123 | E286: 1.23e-07 | F286: 19 | G286: 5 | H286: 0 | I286: -2.288998e-07 | J286: 21.69506825 | K286: 0 | L286: -9.637069229e-13 | M286: 19 | N286: 18.90552809 | O286: 1.82430711 | P286: 1.802611845 | Q286: 1.8009456 | R286: 23.90564852 | S286: 18.93345685 | T286: 18.98913529 | U286: 18.93345685 | V286: 23.90552809 | W286: -2.568828467e-08 | X286: -2.568828467e-08 | Y286: 0.0001358179309 | Z286: 18.90552811 | AA286: 18.90552811 | AB286: -2.568461059e-08 | AC286: -3.96445184e-10 | AD286: 18.99998292 | AE286: 18.92260931 | AF286: 21.69524847 | AG286: -21.69525281 | AH286: 0.0001544052397 | AI286: 0.0001940623132 | AJ286: -5.057633084e-05 | AK286: -5.057633082e-05 | AL286: 21.69525281 | AM286: 21.69507946 | AQ286: 19 | AR286: 0 | AS286: 0 | AT286: 2.801621874 | AU286: 100 | AV286: 0 | AW286: -1.75826e-13 | AX286: 19 | AY286: -1.467077206 | AZ286: 1.040593857 | BA286: 1.009848336 | BB286: 1.004349022 | BC286: 2.667162136 | BD286: -10.0488358 | BE286: 18.96092854 | BF286: -10.04883581 | BG286: -1.467077206 | BH286: -0.665238315 | BI286: -0.665238315 | BJ286: -1.102972094 | BK286: -1.459155276 | BL286: -1.452582139 | BM286: -0.6652356061 | BN286: -0.6573136769 | BO286: 19.0065757 | BP286: -10.08621451 | BQ286: 30.74552431 | BR286: -22.82358024 | BS286: 4.134239342 | BT286: -0.4377337794 | BU286: -7.921929863 | BV286: -7.921928547 | BW286: 22.82358025 | BX286: 18.68935973
D287: 124 | E287: 1.24e-07 | F287: 19 | G287: 5 | H287: 0 | I287: -2.288998e-07 | J287: 21.71214936 | K287: 0 | L287: -9.639248265e-13 | M287: 19 | N287: 18.90546668 | O287: 1.824359999 | P287: 1.802647652 | Q287: 1.800964724 | R287: 23.90558711 | S287: 18.93340386 | T287: 18.98912675 | U287: 18.93340386 | V287: 23.90546668 | W287: -2.569159292e-08 | X287: -2.569159292e-08 | Y287: 0.0001358084203 | Z287: 18.9054667 | AA287: 18.9054667 | AB287: -2.568791881e-08 | AC287: -3.995536229e-10 | AD287: 18.99998292 | AE287: 18.92254778 | AF287: 21.71232957 | AG287: -21.71233392 | AH287: 0.0001544048994 | AI287: 0.0001940487312 | AJ287: -5.05767304e-05 | AK287: -5.057673037e-05 | AL287: 21.71233392 | AM287: 21.71216056 | AQ287: 19 | AR287: 0 | AS287: 0 | AT287: 2.663462828 | AU287: 100 | AV287: 0 | AW287: -1.75826e-13 | AX287: 19 | AY287: -1.451464108 | AZ287: 1.040593888 | BA287: 1.009848351 | BB287: 1.004349022 | BC287: 2.679089222 | BD287: -9.890369042 | BE287: 18.96051189 | BF287: -9.890369058 | BG287: -1.451464108 | BH287: -0.65121275 | BI287: -0.65121275 | BJ287: -1.088915019 | BK287: -1.443681045 | BL287: -1.437246774 | BM287: -0.6512100413 | BN287: -0.6434269791 | BO287: 19.00643682 | BP287: -9.928032897 | BQ287: 30.74553992 | BR287: -22.96246305 | BS287: 4.13055333 | BT287: -0.4377022695 | BU287: -7.783062857 | BV287: -7.783061569 | BW287: 22.96246306 | BX287: 18.83192825
D288: 125 | E288: 1.25e-07 | F288: 19 | G288: 5 | H288: 0 | I288: -2.288998e-07 | J288: 21.72923035 | K288: 0 | L288: -9.641423598e-13 | M288: 19 | N288: 18.90540526 | O288: 1.824413074 | P288: 1.802683647 | Q288: 1.800984037 | R288: 23.9055257 | S288: 18.93335088 | T288: 18.98911821 | U288: 18.93335088 | V288: 23.90540526 | W288: -2.568585813e-08 | X288: -2.568585813e-08 | Y288: 0.0001357989193 | Z288: 18.90540529 | AA288: 18.90540529 | AB288: -2.568218399e-08 | AC288: -3.936219966e-10 | AD288: 18.99998292 | AE288: 18.92248626 | AF288: 21.72941057 | AG288: -21.72941491 | AH288: 0.0001544045682 | AI288: 0.0001940351502 | AJ288: -5.057712402e-05 | AK288: -5.057712399e-05 | AL288: 21.72941491 | AM288: 21.72924155 | AQ288: 19 | AR288: 0 | AS288: 0 | AT288: 2.523711871 | AU288: 100 | AV288: 0 | AW288: -1.75826e-13 | AX288: 19 | AY288: -1.435594461 | AZ288: 1.04059392 | BA288: 1.009848367 | BB288: 1.004349023 | BC288: 2.691211946 | BD288: -9.729926435 | BE288: 18.96009028 | BF288: -9.729926451 | BG288: -1.435594461 | BH288: -0.6370200599 | BI288: -0.6370200599 | BJ288: -1.074688748 | BK288: -1.427951919 | BL288: -1.42165817 | BM288: -0.6370173515 | BN288: -0.629374811 | BO288: 19.00629628 | BP288: -9.767878859 | BQ288: 30.74555579 | BR288: -23.10300082 | BS288: 4.126806406 | BT288: -0.4376686879 | BU288: -7.642541148 | BV288: -7.642539888 | BW288: 23.10300083 | BX288: 18.97621264
D289: 126 | E289: 1.26e-07 | F289: 19 | G289: 5 | H289: 0 | I289: -2.288998e-07 | J289: 21.74631123 | K289: 0 | L289: -9.643595234e-13 | M289: 19 | N289: 18.90534385 | O289: 1.824466337 | P289: 1.802719829 | Q289: 1.801003541 | R289: 23.90546429 | S289: 18.93329789 | T289: 18.98910967 | U289: 18.93329789 | V289: 23.90534385 | W289: -2.568904481e-08 | X289: -2.568904481e-08 | Y289: 0.00013578941 | Z289: 18.90534388 | AA289: 18.90534388 | AB289: -2.568537064e-08 | AC289: -3.966103418e-10 | AD289: 18.99998292 | AE289: 18.92242473 | AF289: 21.74649144 | AG289: -21.74649579 | AH289: 0.0001544042264 | AI289: 0.0001940215701 | AJ289: -5.057752063e-05 | AK289: -5.05775206e-05 | AL289: 21.74649579 | AM289: 21.74632243 | AQ289: 19 | AR289: 0 | AS289: 0 | AT289: 2.38231417 | AU289: 100 | AV289: 0 | AW289: -1.75826e-13 | AX289: 19 | AY289: -1.41945022 | AZ289: 1.040593952 | BA289: 1.009848383 | BB289: 1.004349023 | BC289: 2.703544039 | BD289: -9.567420224 | BE289: 18.9596635 | BF289: -9.567420239 | BG289: -1.41945022 | BH289: -0.6226536555 | BI289: -0.6226536555 | BJ289: -1.060286418 | BK289: -1.41194992 | BL289: -1.405798413 | BM289: -0.6226509474 | BN289: -0.6151506485 | BO289: 19.00615402 | BP289: -9.605664788 | BQ289: 30.74557194 | BR289: -23.24525881 | BS289: 4.122994259 | BT289: -0.4376327623 | BU289: -7.500299495 | BV289: -7.500298263 | BW289: 23.24525882 | BX289: 19.12228247
D290: 127 | E290: 1.27e-07 | F290: 19 | G290: 5 | H290: 0 | I290: -2.288998e-07 | J290: 21.76339199 | K290: 0 | L290: -9.64576318e-13 | M290: 19 | N290: 18.90528244 | O290: 1.824519788 | P290: 1.802756198 | Q290: 1.801023234 | R290: 23.90540288 | S290: 18.9332449 | T290: 18.98910113 | U290: 18.9332449 | V290: 23.90528244 | W290: -2.568238554e-08 | X290: -2.568238554e-08 | Y290: 0.0001357799112 | Z290: 18.90528247 | AA290: 18.90528247 | AB290: -2.567871134e-08 | AC290: -3.89756157e-10 | AD290: 18.99998292 | AE290: 18.9223632 | AF290: 21.76357221 | AG290: -21.76357655 | AH290: 0.0001544038888 | AI290: 0.0001940079909 | AJ290: -5.057791038e-05 | AK290: -5.057791036e-05 | AL290: 21.76357655 | AM290: 21.76340319 | AQ290: 19 | AR290: 0 | AS290: 0 | AT290: 2.239213532 | AU290: 100 | AV290: 0 | AW290: -1.75826e-13 | AX290: 19 | AY290: -1.40301061 | AZ290: 1.040593985 | BA290: 1.009848399 | BB290: 1.004349023 | BC290: 2.716101309 | BD290: -9.402755323 | BE290: 18.95923136 | BF290: -9.402755338 | BG290: -1.40301061 | BH290: -0.6081065506 | BI290: -0.6081065506 | BJ290: -1.045700715 | BK290: -1.395654341 | BL290: -1.389646864 | BM290: -0.6081038428 | BN290: -0.6007475746 | BO290: 19.00600997 | BP290: -9.441295745 | BQ290: 30.74558838 | BR290: -23.38930621 | BS290: 4.119111919 | BT290: -0.4375941641 | BU290: -7.356268727 | BV290: -7.356267524 | BW290: 23.38930622 | BX290: 19.2702119
... 1960 more rows

Sheet Determ (hidden)
A1: Determ | B1: 1 | C1: 2 | D1: 3 | E1: 4 | F1: 5 | G1: 6 | H1: 7 | I1: 8 | J1: 9 | K1: 10 | L1: 11 | M1: 12 | N1: 13 | O1: 14 | P1: 15 | Q1: 16 | R1: 17 | S1: 18 | T1: 19 | U1: 20 | V1: 21 | W1: 22 | X1: 23 | Y1: 24 | Z1: 25 | AA1: 26 | AB1: 27 | AC1: 28 | AD1: 29 | AE1: 30 | AF1: 31 | AG1: 32 | AH1: 33 | AI1: 34 | AJ1: 35 | AK1: 36 | AL1: 37 | AM1: 38 | AN1: 39 | AO1: 40
A2: 1 | B2: -7.241773468e+35 | C2: -7.241773468e+35 | D2: -7.241773468e+35 | E2: -7.241773468e+35 | F2: -7.241773468e+35 | G2: -7.241773468e+35 | H2: -1.672924559e+39 | I2: -1.672924559e+39 | J2: -1.672924559e+39 | K2: -1.672924559e+39 | L2: -1.672924559e+39 | M2: -1.672924559e+39 | N2: -1.672924559e+39 | O2: -1.672924559e+39 | P2: -1.672924559e+39 | Q2: -1.672924559e+39 | R2: -1.672924559e+39 | S2: -1.672924559e+39 | T2: -1.672924559e+39 | U2: -1.672924559e+39 | V2: -1.672924559e+39 | W2: -1.672924559e+39 | X2: -1.672924559e+39 | Y2: -1.672924559e+39 | Z2: -1.672924559e+39 | AA2: -1.672924559e+39 | AB2: -1.672924559e+39 | AC2: -1.672924559e+39 | AD2: -1.672924559e+39 | AE2: -1.672924559e+39 | AF2: -1.672924559e+39 | AG2: -1.672924559e+39 | AH2: -1.672924559e+39 | AI2: -1.672924559e+39 | AJ2: -1.672924559e+39 | AK2: -1.672924559e+39 | AL2: -1.672924559e+39 | AM2: -1.672924559e+39 | AN2: -7.241773468e+35 | AO2: -7.241773468e+35 | AP2: -7.241773468e+35 | AQ2: -7.241773468e+35 | AR2: -7.241773468e+35 | AS2: -7.241773468e+35 | AT2: -7.241773468e+35 | AU2: -7.241773468e+35 | AV2: -7.241773468e+35 | AW2: -7.241773468e+35 | AX2: -7.241773468e+35 | AY2: -7.241773468e+35 | AZ2: -7.241773468e+35 | BA2: -2.230079909e+39 | BB2: -2.230079909e+39 | BC2: -2.230079909e+39 | BD2: -2.230079909e+39 | BE2: -2.230079909e+39 | BF2: -2.230079909e+39 | BG2: -2.230079909e+39 | BH2: -2.230079909e+39 | BI2: -2.230079909e+39 | BJ2: -2.230079909e+39 | BK2: -2.230079909e+39 | BL2: -2.230079909e+39 | BM2: -2.230079909e+39 | BN2: -2.230079909e+39 | BO2: -2.230079909e+39 | BP2: -2.230079909e+39 | BQ2: -2.230079909e+39 | BR2: -2.230079909e+39 | BS2: -2.230079909e+39 | BT2: -2.230079909e+39 | BU2: -2.230079909e+39 | BV2: -2.230079909e+39 | BW2: -2.230079909e+39 | BX2: -2.230079909e+39 | BY2: -2.230079909e+39 | BZ2: -2.230079909e+39 | CA2: -2.230079909e+39 | CB2: -2.230079909e+39 | CC2: -2.230079909e+39 | CD2: -2.230079909e+39 | CE2: -2.230079909e+39 | CF2: -2.230079909e+39 | CG2: -2.230079909e+39 | CH2: -2.230079909e+39 | CI2: -2.230079909e+39 | CJ2: -2.230079909e+39 | CK2: -2.230079909e+39 | CL2: -2.230079909e+39 | CM2: -2.230079909e+39 | CN2: -2.230079909e+39 | CO2: -2.230079909e+39 | CP2: -2.230079909e+39 | CQ2: -7.241773468e+35 | CR2: -7.241773468e+35 | CS2: -7.241773468e+35 | CT2: -7.241773468e+35 | CU2: -7.241773468e+35 | CV2: -7.241773468e+35 | CW2: -7.241773468e+35 | CX2: -7.241773468e+35 | CY2: -7.241773468e+35 | CZ2: -7.241773468e+35 | DA2: -7.241773468e+35 | DB2: -7.241773468e+35 | DC2: -7.241773468e+35 | DD2: -1.672924559e+39 | DE2: -1.672924559e+39 | DF2: -1.672924559e+39 | DG2: -1.672924559e+39 | DH2: -1.672924559e+39 | DI2: -1.672924559e+39 | DJ2: -1.672924559e+39 | DK2: -1.672924559e+39 | DL2: -1.672924559e+39 | DM2: -1.672924559e+39 | DN2: -1.672924559e+39 | DO2: -1.672924559e+39 | DP2: -1.672924559e+39 | DQ2: -1.672924559e+39 | DR2: -1.672924559e+39 | DS2: -1.672924559e+39 | DT2: -1.672924559e+39 | DU2: -1.672924559e+39 | DV2: -1.672924559e+39 | DW2: -1.672924559e+39 | DX2: -1.672924559e+39 | DY2: -1.672924559e+39 | DZ2: -1.672924559e+39 | EA2: -1.672924559e+39 | EB2: -1.672924559e+39 | EC2: -1.672924559e+39 | ED2: -1.672924559e+39 | EE2: -1.672924559e+39 | EF2: -1.672924559e+39 | EG2: -1.672924559e+39 | EH2: -1.672924559e+39 | EI2: -1.672924559e+39 | EJ2: -7.241773468e+35 | EK2: -7.241773468e+35 | EL2: -7.241773468e+35 | EM2: -7.241773468e+35 | EN2: -7.241773468e+35 | EO2: -7.241773468e+35 | EP2: -7.241773468e+35 | EQ2: -7.241773468e+35 | ER2: -7.241773468e+35 | ES2: -7.241773468e+35 | ET2: -7.241773468e+35 | EU2: -7.241773468e+35 | EV2: -8.94952572e+39 | EW2: -8.94952572e+39 | EX2: -8.94952572e+39 | EY2: -8.94952572e+39 | EZ2: -8.94952572e+39 | FA2: -8.94952572e+39 | FB2: -8.94952572e+39 | FC2: -8.94952572e+39 | FD2: -8.94952572e+39 | FE2: -8.94952572e+39 | FF2: -8.94952572e+39 | FG2: -8.94952572e+39 | FH2: -8.94952572e+39 | FI2: -8.94952572e+39 | FJ2: -8.94952572e+39 | FK2: -8.94952572e+39 | FL2: -8.94952572e+39 | FM2: -8.94952572e+39 | FN2: -8.94952572e+39 | FO2: -8.94952572e+39 | FP2: -8.94952572e+39 | FQ2: -8.94952572e+39 | FR2: -8.94952572e+39 | FS2: -8.94952572e+39 | FT2: -8.94952572e+39 | FU2: -8.94952572e+39 | FV2: -8.94952572e+39 | FW2: -8.94952572e+39 | FX2: -8.94952572e+39 | FY2: -8.94952572e+39 | FZ2: -8.94952572e+39 | GA2: -8.94952572e+39 | GB2: -8.94952572e+39 | GC2: -8.94952572e+39 | GD2: -8.94952572e+39 | GE2: -8.94952572e+39 | GF2: -5.135535066e+36 | GG2: -5.135535066e+36 | GH2: -5.135535066e+36 | GI2: -5.135535066e+36 | GJ2: -5.135535066e+36 | GK2: -5.135535066e+36 | GL2: -5.135535066e+36 | GM2: -5.135535066e+36 | GN2: -5.135535066e+36 | GO2: -5.135535066e+36 | GP2: -5.135535066e+36 | GQ2: -5.135535066e+36 | GR2: -5.135535066e+36 | GS2: -5.135535066e+36 | GT2: -5.135535066e+36 | GU2: -5.135535066e+36 | GV2: -5.135535066e+36 | GW2: -5.135535066e+36 | GX2: -5.135535066e+36 | GY2: -5.135535066e+36 | GZ2: -5.135535066e+36 | HA2: -5.135535066e+36 | HB2: -5.135535066e+36 | HC2: -5.135535066e+36 | HD2: -5.135535066e+36 | HE2: -5.135535066e+36 | HF2: -5.135535066e+36 | HG2: -6.715163781e+39 | HH2: -6.715163781e+39 | HI2: -6.715163781e+39 | HJ2: -6.715163781e+39 | HK2: -6.715163781e+39 | HL2: -6.715163781e+39 | HM2: -6.715163781e+39 | HN2: -6.715163781e+39 | HO2: -6.715163781e+39 | HP2: -6.715163781e+39 | HQ2: -6.715163781e+39 | HR2: -6.715163781e+39 | HS2: -6.715163781e+39 | HT2: -6.715163781e+39 | HU2: -6.715163781e+39 | HV2: -6.715163781e+39 | HW2: -6.715163781e+39 | HX2: -6.715163781e+39 | HY2: -6.715163781e+39 | HZ2: -6.715163781e+39 | IA2: -6.715163781e+39 | IB2: -6.715163781e+39 | IC2: -6.715163781e+39 | ID2: -6.715163781e+39 | IE2: -6.715163781e+39 | IF2: -6.715163781e+39 | IG2: -6.715163781e+39 | IH2: -6.715163781e+39 | II2: -6.715163781e+39 | IJ2: -6.715163781e+39 | IK2: -6.715163781e+39 | IL2: -6.715163781e+39 | IM2: -6.715163781e+39 | IN2: -6.715163781e+39 | IO2: -6.715163781e+39 | IP2: -6.715163781e+39 | IQ2: -6.715163781e+39 | IR2: -6.715163781e+39 | IS2: -6.715163781e+39 | IT2: -6.715163781e+39 | IU2: -6.715163781e+39 | IV2: -6.715163781e+39 | IW2: -6.715163781e+39 | IX2: -6.715163781e+39 | IY2: -6.715163781e+39 | IZ2: -6.715163781e+39 | JA2: -6.715163781e+39 | JB2: -6.715163781e+39 | JC2: -6.715163781e+39 | JD2: -6.715163781e+39 | JE2: -6.715163781e+39 | JF2: -6.715163781e+39 | JG2: -6.715163781e+39 | JH2: -6.715163781e+39 | JI2: -6.715163781e+39 | JJ2: -6.715163781e+39 | JK2: -6.715163781e+39 | JL2: -6.715163781e+39 | JM2: -6.715163781e+39 | JN2: -6.715163781e+39 | JO2: -6.715163781e+39 | JP2: -6.715163781e+39 | JQ2: -6.715163781e+39 | JR2: -5.135535066e+36 | JS2: -5.135535066e+36 | JT2: -5.135535066e+36 | JU2: -5.135535066e+36 | JV2: -5.135535066e+36 | JW2: -5.135535066e+36 | JX2: -5.135535066e+36 | JY2: -5.135535066e+36 | JZ2: -5.135535066e+36 | KA2: -5.135535066e+36 | KB2: -5.135535066e+36 | KC2: -5.135535066e+36 | KD2: -5.135535066e+36 | KE2: -5.135535066e+36 | KF2: -5.135535066e+36 | KG2: -5.135535066e+36 | KH2: -5.135535066e+36 | KI2: -5.135535066e+36 | KJ2: -5.135535066e+36 | KK2: -5.135535066e+36 | KL2: -5.135535066e+36 | KM2: -5.135535066e+36 | KN2: -5.135535066e+36 | KO2: -5.135535066e+36 | KP2: -1.270929801e+41 | KQ2: -1.270929801e+41 | KR2: -1.270929801e+41 | KS2: -1.270929801e+41 | KT2: -1.270929801e+41 | KU2: -1.270929801e+41 | KV2: -1.270929801e+41 | KW2: -1.270929801e+41 | KX2: -1.270929801e+41 | KY2: -1.270929801e+41 | KZ2: -1.270929801e+41 | LA2: -1.270929801e+41 | LB2: -1.270929801e+41 | LC2: -1.270929801e+41 | LD2: -1.270929801e+41 | LE2: -1.270929801e+41 | LF2: -1.270929801e+41 | LG2: -1.270929801e+41 | LH2: -1.270929801e+41 | LI2: -1.270929801e+41 | LJ2: -1.270929801e+41 | LK2: -1.270929801e+41 | LL2: -1.270929801e+41 | LM2: -1.270929801e+41 | LN2: -1.270929801e+41 | LO2: -1.270929801e+41 | LP2: -1.270929801e+41 | LQ2: -1.270929801e+41 | LR2: -1.270929801e+41 | LS2: -1.270929801e+41 | LT2: -1.270929801e+41 | LU2: -1.270929801e+41 | LV2: -1.270929801e+41 | LW2: -1.270929801e+41 | LX2: -1.270929801e+41 | LY2: -1.270929801e+41 | LZ2: -1.270929801e+41 | MA2: -1.270929801e+41 | MB2: -1.270929801e+41 | MC2: -1.270929801e+41 | MD2: -1.270929801e+41 | ME2: -1.270929801e+41 | MF2: -1.270929801e+41 | MG2: -1.270929801e+41 | MH2: -1.270929801e+41 | MI2: -1.270929801e+41 | MJ2: -1.270929801e+41 | MK2: -1.270929801e+41 | ML2: -1.270929801e+41 | MM2: -1.270929801e+41 | MN2: -1.270929801e+41 | MO2: -1.270929801e+41 | MP2: -1.270929801e+41 | MQ2: -1.270929801e+41 | MR2: -1.270929801e+41 | MS2: -1.270929801e+41 | MT2: -1.270929801e+41 | MU2: -1.270929801e+41 | MV2: -1.270929801e+41 | MW2: -1.270929801e+41 | MX2: -1.270929801e+41 | MY2: -1.270929801e+41 | MZ2: -1.270929801e+41 | NA2: -1.270929801e+41 | NB2: -1.270929801e+41 | NC2: -1.270929801e+41 | ND2: -1.270929801e+41 | NE2: -1.270929801e+41 | NF2: -1.270929801e+41 | NG2: -1.270929801e+41 | NH2: -1.270929801e+41 | NI2: -1.270929801e+41 | NJ2: -1.270929801e+41 | NK2: -1.270929801e+41 | NL2: -6.149218422e+38 | NM2: -6.149218422e+38 | NN2: -6.149218422e+38 | NO2: -6.149218422e+38 | NP2: -6.149218422e+38 | NQ2: -6.149218422e+38 | NR2: -6.149218422e+38 | NS2: -6.149218422e+38 | NT2: -6.149218422e+38 | NU2: -6.149218422e+38 | NV2: -6.149218422e+38 | NW2: -6.149218422e+38 | NX2: -6.149218422e+38 | NY2: -6.149218422e+38 | NZ2: -6.149218422e+38 | OA2: -6.149218422e+38 | OB2: -6.149218422e+38 | OC2: -6.149218422e+38 | OD2: -6.149218422e+38 | OE2: -6.149218422e+38 | OF2: -6.149218422e+38 | OG2: -6.149218422e+38 | OH2: -6.149218422e+38 | OI2: -6.149218422e+38 | OJ2: -6.149218422e+38 | OK2: -6.149218422e+38 | OL2: -6.149218422e+38 | OM2: -6.149218422e+38 | ON2: -6.149218422e+38 | OO2: -6.149218422e+38 | OP2: -6.149218422e+38 | OQ2: -6.149218422e+38 | OR2: -6.149218422e+38 | OS2: -6.149218422e+38 | OT2: -6.149218422e+38 | OU2: -6.149218422e+38 | OV2: -6.149218422e+38 | OW2: -6.149218422e+38 | OX2: -6.149218422e+38 | OY2: -6.149218422e+38 | OZ2: -6.149218422e+38 | PA2: -6.149218422e+38 | PB2: -6.149218422e+38 | PC2: -6.149218422e+38 | PD2: -6.149218422e+38 | PE2: -6.149218422e+38 | PF2: -6.149218422e+38 | PG2: -6.149218422e+38 | PH2: -6.149218422e+38 | PI2: -6.149218422e+38 | PJ2: -6.149218422e+38 | PK2: -6.149218422e+38 | PL2: -6.149218422e+38 | PM2: -6.149218422e+38 | PN2: -6.149218422e+38 | PO2: -6.149218422e+38 | PP2: -6.149218422e+38 | PQ2: -6.149218422e+38 | PR2: -6.149218422e+38 | PS2: -6.149218422e+38 | PT2: -6.149218422e+38 | PU2: -6.149218422e+38 | PV2: -6.149218422e+38 | PW2: -6.149218422e+38 | PX2: -6.149218422e+38 | PY2: -6.149218422e+38 | PZ2: -6.149218422e+38 | QA2: -6.149218422e+38 | QB2: -6.149218422e+38 | QC2: -6.149218422e+38 | QD2: -6.149218422e+38 | QE2: -6.149218422e+38 | QF2: -6.149218422e+38 | QG2: -6.149218422e+38 | QH2: -6.149218422e+38 | QI2: -6.149218422e+38 | QJ2: -6.149218422e+38 | QK2: -6.149218422e+38 | QL2: -6.149218422e+38 | QM2: -6.149218422e+38 | QN2: -6.149218422e+38 | QO2: -6.149218422e+38 | QP2: -6.149218422e+38 | QQ2: -6.149218422e+38 | QR2: -6.149218422e+38 | QS2: -6.149218422e+38 | QT2: -6.149218422e+38 | QU2: -6.149218422e+38 | QV2: -6.149218422e+38 | QW2: -6.149218422e+38 | QX2: -6.149218422e+38 | QY2: -6.149218422e+38 | QZ2: -6.149218422e+38 | RA2: -6.149218422e+38 | RB2: -6.149218422e+38 | RC2: -6.149218422e+38 | RD2: -6.149218422e+38 | RE2: -6.149218422e+38 | RF2: -6.149218422e+38 | RG2: -6.149218422e+38 | RH2: -6.149218422e+38 | RI2: -6.149218422e+38 | RJ2: -6.149218422e+38 | RK2: -6.149218422e+38 | RL2: -6.149218422e+38 | RM2: -6.149218422e+38 | RN2: -6.149218422e+38 | RO2: -6.149218422e+38 | RP2: -6.149218422e+38 | RQ2: -6.149218422e+38 | RR2: -6.149218422e+38 | RS2: -6.149218422e+38 | RT2: -6.149218422e+38 | RU2: -6.149218422e+38 | RV2: -6.149218422e+38 | RW2: -6.149218422e+38 | RX2: -6.149218422e+38 | RY2: -6.149218422e+38 | RZ2: -6.149218422e+38 | SA2: -6.149218422e+38 | SB2: -6.149218422e+38 | SC2: -6.149218422e+38 | SD2: -6.149218422e+38 | SE2: -6.149218422e+38 | SF2: -5.0791508e+41 | SG2: -5.0791508e+41 | SH2: -5.0791508e+41 | SI2: -5.0791508e+41 | SJ2: -5.0791508e+41 | SK2: -5.0791508e+41 | SL2: -5.0791508e+41 | SM2: -5.0791508e+41 | SN2: -5.0791508e+41 | SO2: -5.0791508e+41 | SP2: -5.0791508e+41 | SQ2: -5.0791508e+41 | SR2: -5.0791508e+41 | SS2: -5.0791508e+41 | ST2: -5.0791508e+41 | SU2: -5.0791508e+41 | SV2: -5.0791508e+41 | SW2: -5.0791508e+41 | SX2: -5.0791508e+41 | SY2: -5.0791508e+41 | SZ2: -5.0791508e+41 | TA2: -5.0791508e+41 | TB2: -5.0791508e+41 | TC2: -5.0791508e+41 | TD2: -5.0791508e+41 | TE2: -5.0791508e+41 | TF2: -5.0791508e+41 | TG2: -5.0791508e+41 | TH2: -5.0791508e+41 | TI2: -5.0791508e+41 | TJ2: -5.0791508e+41 | TK2: -5.0791508e+41 | TL2: -5.0791508e+41 | TM2: -5.0791508e+41 | TN2: -5.0791508e+41 | TO2: -5.0791508e+41 | TP2: -5.0791508e+41 | TQ2: -5.0791508e+41 | TR2: -5.0791508e+41 | TS2: -5.0791508e+41 | TT2: -5.0791508e+41 | TU2: -5.0791508e+41 | TV2: -5.0791508e+41 | TW2: -5.0791508e+41 | TX2: -5.0791508e+41 | TY2: -5.0791508e+41 | TZ2: -5.0791508e+41 | UA2: -5.0791508e+41 | UB2: -5.0791508e+41 | UC2: -5.0791508e+41 | UD2: -5.0791508e+41 | UE2: -5.0791508e+41 | UF2: -5.0791508e+41 | UG2: -5.0791508e+41 | UH2: -5.0791508e+41 | UI2: -5.0791508e+41 | UJ2: -5.0791508e+41 | UK2: -5.0791508e+41 | UL2: -5.0791508e+41 | UM2: -5.0791508e+41 | UN2: -5.0791508e+41 | UO2: -5.0791508e+41 | UP2: -5.0791508e+41 | UQ2: -5.0791508e+41 | UR2: -5.0791508e+41 | US2: -5.0791508e+41 | UT2: -5.0791508e+41 | UU2: -5.0791508e+41 | UV2: -5.0791508e+41 | UW2: -5.0791508e+41 | UX2: -5.0791508e+41 | UY2: -5.0791508e+41 | UZ2: -5.0791508e+41 | VA2: -5.0791508e+41 | VB2: -5.0791508e+41 | VC2: -5.0791508e+41 | VD2: -2.457844757e+39 | VE2: -2.457844757e+39 | VF2: -2.457844757e+39 | VG2: -2.457844757e+39 | VH2: -2.457844757e+39 | VI2: -2.457844757e+39 | VJ2: -2.457844757e+39 | VK2: -2.457844757e+39 | VL2: -2.457844757e+39 | VM2: -2.457844757e+39 | VN2: -2.457844757e+39 | VO2: -2.457844757e+39 | VP2: -2.457844757e+39 | VQ2: -2.457844757e+39 | VR2: -2.457844757e+39 | VS2: -2.457844757e+39 | VT2: -2.457844757e+39 | VU2: -2.457844757e+39 | VV2: -2.457844757e+39 | VW2: -2.457844757e+39 | VX2: -2.457844757e+39 | VY2: -2.457844757e+39 | VZ2: -2.457844757e+39 | WA2: -2.457844757e+39 | WB2: -2.457844757e+39 | WC2: -2.457844757e+39 | WD2: -2.457844757e+39 | WE2: -2.457844757e+39 | WF2: -2.457844757e+39 | WG2: -2.457844757e+39 | WH2: -2.457844757e+39 | WI2: -2.457844757e+39 | WJ2: -2.457844757e+39 | WK2: -2.457844757e+39 | WL2: -2.457844757e+39 | WM2: -2.457844757e+39 | WN2: -2.457844757e+39 | WO2: -2.457844757e+39 | WP2: -2.457844757e+39 | WQ2: -2.457844757e+39 | WR2: -2.457844757e+39 | WS2: -2.457844757e+39 | WT2: -2.457844757e+39 | WU2: -2.457844757e+39 | WV2: -2.457844757e+39 | WW2: -2.457844757e+39 | WX2: -2.457844757e+39 | WY2: -2.457844757e+39 | WZ2: -2.457844757e+39 | XA2: -2.457844757e+39 | XB2: -2.457844757e+39 | XC2: -2.457844757e+39 | XD2: -2.457844757e+39 | XE2: -2.457844757e+39 | XF2: -2.457844757e+39 | XG2: -2.457844757e+39 | XH2: -2.457844757e+39 | XI2: -2.457844757e+39 | XJ2: -2.457844757e+39 | XK2: -2.457844757e+39 | XL2: -2.457844757e+39 | XM2: -2.457844757e+39 | XN2: -2.457844757e+39 | XO2: -2.457844757e+39 | XP2: -2.457844757e+39 | XQ2: -2.457844757e+39 | XR2: -2.457844757e+39 | XS2: -2.457844757e+39 | XT2: -2.457844757e+39 | XU2: -2.457844757e+39 | XV2: -2.457844757e+39 | XW2: -2.457844757e+39 | XX2: -2.457844757e+39 | XY2: -2.457844757e+39 | XZ2: -2.457844757e+39 | YA2: -2.457844757e+39 | YB2: -2.457844757e+39 | YC2: -2.457844757e+39 | YD2: -2.457844757e+39 | YE2: -2.457844757e+39 | YF2: -2.457844757e+39 | YG2: -2.457844757e+39 | YH2: -2.457844757e+39 | YI2: -2.457844757e+39 | YJ2: -2.457844757e+39 | YK2: -2.457844757e+39 | YL2: -2.457844757e+39 | YM2: -2.457844757e+39 | YN2: -2.457844757e+39 | YO2: -2.457844757e+39 | YP2: -2.457844757e+39 | YQ2: -2.457844757e+39 | YR2: -2.457844757e+39 | YS2: -2.457844757e+39 | YT2: -2.457844757e+39 | YU2: -2.457844757e+39 | YV2: -2.457844757e+39 | YW2: -2.457844757e+39 | YX2: -2.457844757e+39 | YY2: -2.457844757e+39 | YZ2: -2.457844757e+39 | ZA2: -2.457844757e+39 | ZB2: -2.457844757e+39 | ZC2: -2.457844757e+39 | ZD2: -2.457844757e+39 | ZE2: -2.457844757e+39 | ZF2: -2.457844757e+39 | ZG2: -2.457844757e+39 | ZH2: -2.457844757e+39 | ZI2: -2.457844757e+39 | ZJ2: -2.457844757e+39 | ZK2: -2.457844757e+39 | ZL2: -2.457844757e+39 | ZM2: -2.457844757e+39 | ZN2: -2.457844757e+39 | ZO2: -2.457844757e+39 | ZP2: -2.457844757e+39 | ZQ2: -2.457844757e+39 | ZR2: -2.457844757e+39 | ZS2: -2.457844757e+39 | ZT2: -2.457844757e+39 | ZU2: -2.457844757e+39 | ZV2: -2.457844757e+39 | ZW2: -2.457844757e+39 | ZX2: -2.457844757e+39 | ZY2: -2.457844757e+39 | ZZ2: -2.457844757e+39 | AAA2: -2.457844757e+39 | AAB2: -2.457844757e+39 | AAC2: -2.457844757e+39 | AAD2: -2.457844757e+39 | AAE2: -2.457844757e+39 | AAF2: -2.457844757e+39 | AAG2: -2.457844757e+39 | AAH2: -2.457844757e+39 | AAI2: -2.457844757e+39 | AAJ2: -2.457844757e+39 | AAK2: -2.457844757e+39 | AAL2: -2.457844757e+39 | AAM2: -2.457844757e+39 | AAN2: -2.457844757e+39 | AAO2: -2.457844757e+39 | AAP2: -2.457844757e+39 | AAQ2: -2.457844757e+39 | AAR2: -2.457844757e+39 | AAS2: -2.457844757e+39 | AAT2: -2.457844757e+39 | AAU2: -2.457844757e+39 | AAV2: -2.457844757e+39 | AAW2: -2.457844757e+39 | AAX2: -6.911211454e+42 | AAY2: -6.911211454e+42 | AAZ2: -6.911211454e+42 | ABA2: -6.911211454e+42 | ABB2: -6.911211454e+42 | ABC2: -6.911211454e+42 | ABD2: -6.911211454e+42 | ABE2: -6.911211454e+42 | ABF2: -6.911211454e+42 | ABG2: -6.911211454e+42 | ABH2: -6.911211454e+42 | ABI2: -6.911211454e+42 | ABJ2: -6.911211454e+42 | ABK2: -6.911211454e+42 | ABL2: -6.911211454e+42 | ABM2: -6.911211454e+42 | ABN2: -6.911211454e+42 | ABO2: -6.911211454e+42 | ABP2: -6.911211454e+42 | ABQ2: -6.911211454e+42 | ABR2: -6.911211454e+42 | ABS2: -6.911211454e+42 | ABT2: -6.911211454e+42 | ABU2: -6.911211454e+42 | ABV2: -6.911211454e+42 | ABW2: -6.911211454e+42 | ABX2: -6.911211454e+42 | ABY2: -6.911211454e+42 | ABZ2: -6.911211454e+42 | ACA2: -6.911211454e+42 | ACB2: -6.911211454e+42 | ACC2: -6.911211454e+42 | ACD2: -6.911211454e+42 | ACE2: -6.911211454e+42 | ACF2: -6.911211454e+42 | ACG2: -6.911211454e+42 | ACH2: -6.911211454e+42 | ACI2: -6.911211454e+42 | ACJ2: -6.911211454e+42 | ACK2: -6.911211454e+42 | ACL2: -6.911211454e+42 | ACM2: -6.911211454e+42 | ACN2: -6.911211454e+42 | ACO2: -6.911211454e+42 | ACP2: -6.911211454e+42 | ACQ2: -6.911211454e+42 | ACR2: -6.911211454e+42 | ACS2: -6.911211454e+42 | ACT2: -6.911211454e+42 | ACU2: -6.911211454e+42 | ACV2: -6.911211454e+42 | ACW2: -6.911211454e+42 | ACX2: -6.911211454e+42 | ACY2: -6.911211454e+42 | ACZ2: -6.911211454e+42 | ADA2: -6.911211454e+42 | ADB2: -6.911211454e+42 | ADC2: -6.911211454e+42 | ADD2: -6.911211454e+42 | ADE2: -6.911211454e+42 | ADF2: -6.911211454e+42 | ADG2: -6.911211454e+42 | ADH2: -6.911211454e+42 | ADI2: -6.911211454e+42 | ADJ2: -6.911211454e+42 | ADK2: -6.911211454e+42 | ADL2: -6.911211454e+42 | ADM2: -6.911211454e+42 | ADN2: -6.911211454e+42 | ADO2: -6.911211454e+42 | ADP2: -6.911211454e+42 | ADQ2: -6.911211454e+42 | ADR2: -6.911211454e+42 | ADS2: -6.911211454e+42 | ADT2: -6.911211454e+42 | ADU2: -6.911211454e+42 | ADV2: -6.911211454e+42 | ADW2: -6.911211454e+42 | ADX2: -6.911211454e+42 | ADY2: -6.911211454e+42 | ADZ2: -6.911211454e+42 | AEA2: -6.911211454e+42 | AEB2: -6.911211454e+42 | AEC2: -6.911211454e+42 | AED2: -6.911211454e+42 | AEE2: -6.911211454e+42 | AEF2: -6.911211454e+42 | AEG2: -6.911211454e+42 | AEH2: -6.911211454e+42 | AEI2: -6.911211454e+42 | AEJ2: -6.911211454e+42 | AEK2: -6.911211454e+42 | AEL2: -6.911211454e+42 | AEM2: -6.911211454e+42 | AEN2: -6.911211454e+42 | AEO2: -6.911211454e+42 | AEP2: -6.911211454e+42 | AEQ2: -6.911211454e+42 | AER2: -6.911211454e+42 | AES2: -6.911211454e+42 | AET2: -6.911211454e+42 | AEU2: -6.911211454e+42 | AEV2: -6.911211454e+42 | AEW2: -6.911211454e+42 | AEX2: -6.911211454e+42 | AEY2: -6.911211454e+42 | AEZ2: -6.911211454e+42 | AFA2: -6.911211454e+42 | AFB2: -6.911211454e+42 | AFC2: -6.911211454e+42 | AFD2: -6.911211454e+42 | AFE2: -6.911211454e+42 | AFF2: -6.911211454e+42 | AFG2: -6.911211454e+42 | AFH2: -6.911211454e+42 | AFI2: -6.911211454e+42 | AFJ2: -6.911211454e+42 | AFK2: -6.911211454e+42 | AFL2: -6.911211454e+42 | AFM2: -6.911211454e+42 | AFN2: -6.911211454e+42 | AFO2: -6.911211454e+42 | AFP2: -6.911211454e+42 | AFQ2: -6.911211454e+42 | AFR2: -6.911211454e+42 | AFS2: -6.911211454e+42 | AFT2: -6.911211454e+42 | AFU2: -6.911211454e+42 | AFV2: -6.911211454e+42 | AFW2: -6.911211454e+42 | AFX2: -6.911211454e+42 | AFY2: -6.911211454e+42 | AFZ2: -6.911211454e+42 | AGA2: -6.911211454e+42 | AGB2: -6.911211454e+42 | AGC2: -6.911211454e+42 | AGD2: -6.911211454e+42 | AGE2: -6.911211454e+42 | AGF2: -6.911211454e+42 | AGG2: -6.911211454e+42 | AGH2: -6.911211454e+42 | AGI2: -6.911211454e+42 | AGJ2: -6.911211454e+42 | AGK2: -6.911211454e+42 | AGL2: -6.911211454e+42 | AGM2: -6.911211454e+42 | AGN2: -6.911211454e+42 | AGO2: -6.911211454e+42 | AGP2: -6.911211454e+42 | AGQ2: -6.911211454e+42 | AGR2: -6.911211454e+42 | AGS2: -6.911211454e+42 | AGT2: -6.911211454e+42 | AGU2: -6.911211454e+42 | AGV2: -6.911211454e+42 | AGW2: -6.911211454e+42 | AGX2: -6.911211454e+42 | AGY2: -6.911211454e+42 | AGZ2: -6.911211454e+42 | AHA2: -6.911211454e+42 | AHB2: -6.911211454e+42 | AHC2: -6.911211454e+42 | AHD2: -6.911211454e+42 | AHE2: -6.911211454e+42 | AHF2: -6.911211454e+42 | AHG2: -6.911211454e+42 | AHH2: -6.911211454e+42 | AHI2: -6.911211454e+42 | AHJ2: -6.911211454e+42 | AHK2: -6.911211454e+42 | AHL2: -6.911211454e+42 | AHM2: -6.911211454e+42 | AHN2: -6.911211454e+42 | AHO2: -6.911211454e+42 | AHP2: -6.911211454e+42 | AHQ2: -6.911211454e+42 | AHR2: -6.911211454e+42 | AHS2: -6.911211454e+42 | AHT2: -6.911211454e+42 | AHU2: -6.911211454e+42 | AHV2: -6.911211454e+42 | AHW2: -6.911211454e+42 | AHX2: -6.911211454e+42 | AHY2: -6.911211454e+42 | AHZ2: -6.911211454e+42 | AIA2: -6.911211454e+42 | AIB2: -6.911211454e+42 | AIC2: -6.911211454e+42 | AID2: -6.911211454e+42 | AIE2: -6.911211454e+42 | AIF2: -6.911211454e+42 | AIG2: -6.911211454e+42 | AIH2: -6.911211454e+42 | AII2: -6.911211454e+42 | AIJ2: -6.911211454e+42 | AIK2: -6.911211454e+42 | AIL2: -6.911211454e+42 | AIM2: -6.911211454e+42 | AIN2: -6.911211454e+42 | AIO2: -6.911211454e+42 | AIP2: -6.911211454e+42 | AIQ2: -6.911211454e+42 | AIR2: -6.911211454e+42 | AIS2: -6.911211454e+42 | AIT2: -6.911211454e+42 | AIU2: -6.911211454e+42 | AIV2: -6.911211454e+42 | AIW2: -6.911211454e+42 | AIX2: -6.911211454e+42 | AIY2: -6.911211454e+42 | AIZ2: -6.911211454e+42 | AJA2: -6.911211454e+42 | AJB2: -6.911211454e+42 | AJC2: -6.911211454e+42 | AJD2: -6.911211454e+42 | AJE2: -6.911211454e+42 | AJF2: -6.911211454e+42 | AJG2: -6.911211454e+42 | AJH2: -6.911211454e+42 | AJI2: -6.911211454e+42 | AJJ2: -6.911211454e+42 | AJK2: -6.911211454e+42 | AJL2: -6.911211454e+42 | AJM2: -6.911211454e+42 | AJN2: -6.911211454e+42 | AJO2: -6.911211454e+42 | AJP2: -6.911211454e+42 | AJQ2: -6.911211454e+42 | AJR2: -6.911211454e+42 | AJS2: -6.911211454e+42 | AJT2: -6.911211454e+42 | AJU2: -6.911211454e+42 | AJV2: -6.911211454e+42 | AJW2: -6.911211454e+42 | AJX2: -6.911211454e+42 | AJY2: -6.911211454e+42 | AJZ2: -6.911211454e+42 | AKA2: -6.911211454e+42 | AKB2: -6.911211454e+42 | AKC2: -6.911211454e+42 | AKD2: -6.911211454e+42 | AKE2: -6.911211454e+42 | AKF2: -6.911211454e+42 | AKG2: -6.911211454e+42 | AKH2: -6.911211454e+42 | AKI2: -6.911211454e+42 | AKJ2: -6.911211454e+42 | AKK2: -6.911211454e+42 | AKL2: -6.911211454e+42 | AKM2: -6.911211454e+42 | AKN2: -6.911211454e+42 | AKO2: -6.911211454e+42 | AKP2: -6.911211454e+42 | AKQ2: -6.911211454e+42 | AKR2: -6.911211454e+42 | AKS2: -6.911211454e+42 | AKT2: -6.911211454e+42 | AKU2: -6.911211454e+42 | AKV2: -6.911211454e+42 | AKW2: -6.911211454e+42 | AKX2: -6.911211454e+42 | AKY2: -6.911211454e+42 | AKZ2: -6.911211454e+42 | ALA2: -6.911211454e+42 | ALB2: -6.911211454e+42 | ALC2: -6.911211454e+42 | ALD2: -6.911211454e+42 | ALE2: -6.911211454e+42 | ALF2: -6.911211454e+42 | ALG2: -6.911211454e+42 | ALH2: -6.911211454e+42 | ALI2: -6.911211454e+42 | ALJ2: -6.911211454e+42 | ALK2: -6.911211454e+42 | ALL2: -6.911211454e+42 | ALM2: -6.911211454e+42 | ALN2: -6.911211454e+42 | ALO2: -6.911211454e+42 | ALP2: -6.911211454e+42 | ALQ2: -6.911211454e+42 | ALR2: -6.911211454e+42 | ALS2: -6.911211454e+42 | ALT2: -6.911211454e+42 | ALU2: -6.911211454e+42 | ALV2: -6.911211454e+42 | ALW2: -6.911211454e+42 | ALX2: -6.911211454e+42 | ALY2: -6.911211454e+42 | ALZ2: -6.911211454e+42 | AMA2: -6.911211454e+42 | AMB2: -6.911211454e+42 | AMC2: -6.911211454e+42 | AMD2: -6.911211454e+42 | AME2: -6.911211454e+42 | AMF2: -6.911211454e+42 | AMG2: -6.911211454e+42 | AMH2: -6.911211454e+42 | AMI2: -6.911211454e+42 | AMJ2: -6.911211454e+42 | AMK2: -6.911211454e+42 | AML2: -6.911211454e+42 | AMM2: -6.911211454e+42 | AMN2: -6.911211454e+42 | AMO2: -6.911211454e+42 | AMP2: -6.911211454e+42 | AMQ2: -6.911211454e+42 | AMR2: -6.911211454e+42 | AMS2: -6.911211454e+42 | AMT2: -6.911211454e+42 | AMU2: -6.911211454e+42 | AMV2: -6.911211454e+42 | AMW2: -6.911211454e+42 | AMX2: -6.911211454e+42 | AMY2: -6.911211454e+42 | AMZ2: -6.911211454e+42 | ANA2: -6.911211454e+42 | ANB2: -6.911211454e+42 | ANC2: -6.911211454e+42 | AND2: -6.911211454e+42 | ANE2: -6.911211454e+42 | ANF2: -6.911211454e+42 | ANG2: -6.911211454e+42 | ANH2: -6.911211454e+42 | ANI2: -6.911211454e+42 | ANJ2: -6.911211454e+42 | ANK2: -6.911211454e+42 | ANL2: -6.911211454e+42 | ANM2: -6.911211454e+42 | ANN2: -6.911211454e+42 | ANO2: -6.911211454e+42 | ANP2: -6.911211454e+42 | ANQ2: -6.911211454e+42 | ANR2: -6.911211454e+42 | ANS2: -6.911211454e+42 | ANT2: -6.911211454e+42 | ANU2: -6.911211454e+42 | ANV2: -6.911211454e+42 | ANW2: -6.911211454e+42 | ANX2: -6.911211454e+42 | ANY2: -6.911211454e+42 | ANZ2: -6.911211454e+42 | AOA2: -6.911211454e+42 | AOB2: -6.911211454e+42 | AOC2: -6.911211454e+42 | AOD2: -6.911211454e+42 | AOE2: -6.911211454e+42 | AOF2: -6.911211454e+42 | AOG2: -6.911211454e+42 | AOH2: -6.911211454e+42 | AOI2: -6.911211454e+42 | AOJ2: -6.911211454e+42 | AOK2: -2.457844757e+39 | AOL2: -2.457844757e+39 | AOM2: -2.457844757e+39 | AON2: -2.457844757e+39 | AOO2: -2.457844757e+39 | AOP2: -2.457844757e+39 | AOQ2: -2.457844757e+39 | AOR2: -2.457844757e+39 | AOS2: -2.457844757e+39 | AOT2: -2.457844757e+39 | AOU2: -2.457844757e+39 | AOV2: -2.457844757e+39 | AOW2: -2.457844757e+39 | AOX2: -2.457844757e+39 | AOY2: -2.457844757e+39 | AOZ2: -2.457844757e+39 | APA2: -2.457844757e+39 | APB2: -2.457844757e+39 | APC2: -2.457844757e+39 | APD2: -2.457844757e+39 | APE2: -2.457844757e+39 | APF2: -2.457844757e+39 | APG2: -2.457844757e+39 | APH2: -2.457844757e+39 | API2: -2.457844757e+39 | APJ2: -2.457844757e+39 | APK2: -2.457844757e+39 | APL2: -2.457844757e+39 | APM2: -2.457844757e+39 | APN2: -2.457844757e+39 | APO2: -2.457844757e+39 | APP2: -2.457844757e+39 | APQ2: -2.457844757e+39 | APR2: -2.457844757e+39 | APS2: -2.457844757e+39 | APT2: -2.457844757e+39 | APU2: -2.457844757e+39 | APV2: -2.457844757e+39 | APW2: -2.457844757e+39 | APX2: -2.457844757e+39 | APY2: -2.457844757e+39 | APZ2: -2.457844757e+39 | AQA2: -2.457844757e+39 | AQB2: -2.457844757e+39 | AQC2: -2.457844757e+39 | AQD2: -2.457844757e+39 | AQE2: -2.457844757e+39 | AQF2: -2.457844757e+39 | AQG2: -2.457844757e+39 | AQH2: -2.457844757e+39 | AQI2: -2.457844757e+39 | AQJ2: -2.457844757e+39 | AQK2: -2.457844757e+39 | AQL2: -2.457844757e+39 | AQM2: -2.457844757e+39 | AQN2: -2.457844757e+39 | AQO2: -2.457844757e+39 | AQP2: -2.457844757e+39 | AQQ2: -2.457844757e+39 | AQR2: -2.457844757e+39 | AQS2: -2.457844757e+39 | AQT2: -2.457844757e+39 | AQU2: -2.457844757e+39 | AQV2: -2.457844757e+39 | AQW2: -2.457844757e+39 | AQX2: -2.457844757e+39 | AQY2: -2.457844757e+39 | AQZ2: -2.457844757e+39 | ARA2: -2.457844757e+39 | ARB2: -2.457844757e+39 | ARC2: -2.457844757e+39 | ARD2: -2.457844757e+39 | ARE2: -2.457844757e+39 | ARF2: -2.457844757e+39 | ARG2: -2.457844757e+39 | ARH2: -2.457844757e+39 | ARI2: -2.457844757e+39 | ARJ2: -2.457844757e+39 | ARK2: -2.457844757e+39 | ARL2: -2.457844757e+39 | ARM2: -2.457844757e+39 | ARN2: -2.457844757e+39 | ARO2: -2.457844757e+39 | ARP2: -2.457844757e+39 | ARQ2: -2.457844757e+39 | ARR2: -2.457844757e+39 | ARS2: -2.457844757e+39 | ART2: -2.457844757e+39 | ARU2: -2.457844757e+39 | ARV2: -2.457844757e+39 | ARW2: -2.457844757e+39 | ARX2: -2.457844757e+39 | ARY2: -2.457844757e+39 | ARZ2: -2.457844757e+39 | ASA2: -2.457844757e+39 | ASB2: -2.457844757e+39 | ASC2: -2.457844757e+39 | ASD2: -2.457844757e+39 | ASE2: -2.457844757e+39 | ASF2: -2.457844757e+39 | ASG2: -2.457844757e+39 | ASH2: -2.457844757e+39 | ASI2: -2.457844757e+39 | ASJ2: -2.457844757e+39 | ASK2: -2.457844757e+39 | ASL2: -2.457844757e+39 | ASM2: -2.457844757e+39 | ASN2: -2.457844757e+39 | ASO2: -2.457844757e+39 | ASP2: -2.457844757e+39 | ASQ2: -2.457844757e+39 | ASR2: -2.457844757e+39 | ASS2: -2.457844757e+39 | AST2: -2.457844757e+39 | ASU2: -2.457844757e+39 | ASV2: -2.457844757e+39 | ASW2: -2.457844757e+39 | ASX2: -2.457844757e+39 | ASY2: -2.457844757e+39 | ASZ2: -2.457844757e+39 | ATA2: -2.457844757e+39 | ATB2: -2.457844757e+39 | ATC2: -2.457844757e+39 | ATD2: -2.457844757e+39 | ATE2: -2.457844757e+39 | ATF2: -2.457844757e+39 | ATG2: -2.457844757e+39 | ATH2: -2.457844757e+39 | ATI2: -2.457844757e+39 | ATJ2: -2.457844757e+39 | ATK2: -2.457844757e+39 | ATL2: -2.457844757e+39 | ATM2: -2.457844757e+39 | ATN2: -2.457844757e+39 | ATO2: -2.457844757e+39 | ATP2: -2.457844757e+39 | ATQ2: -2.457844757e+39 | ATR2: -2.457844757e+39 | ATS2: -2.457844757e+39 | ATT2: -2.457844757e+39 | ATU2: -2.457844757e+39 | ATV2: -2.457844757e+39 | ATW2: -2.457844757e+39 | ATX2: -2.457844757e+39 | ATY2: -2.457844757e+39 | ATZ2: -2.457844757e+39 | AUA2: -2.457844757e+39 | AUB2: -2.457844757e+39 | AUC2: -2.457844757e+39 | AUD2: -2.457844757e+39 | AUE2: -2.457844757e+39 | AUF2: -2.457844757e+39 | AUG2: -2.457844757e+39 | AUH2: -2.457844757e+39 | AUI2: -2.457844757e+39 | AUJ2: -2.457844757e+39 | AUK2: -2.457844757e+39 | AUL2: -2.457844757e+39 | AUM2: -2.457844757e+39 | AUN2: -2.457844757e+39 | AUO2: -2.457844757e+39 | AUP2: -2.457844757e+39 | AUQ2: -2.457844757e+39 | AUR2: -2.457844757e+39 | AUS2: -2.457844757e+39 | AUT2: -2.457844757e+39 | AUU2: -2.457844757e+39 | AUV2: -2.457844757e+39 | AUW2: -2.457844757e+39 | AUX2: -2.457844757e+39 | AUY2: -2.457844757e+39 | AUZ2: -2.457844757e+39 | AVA2: -2.457844757e+39 | AVB2: -2.457844757e+39 | AVC2: -2.457844757e+39 | AVD2: -2.457844757e+39 | AVE2: -2.457844757e+39 | AVF2: -2.457844757e+39 | AVG2: -2.457844757e+39 | AVH2: -2.457844757e+39 | AVI2: -2.457844757e+39 | AVJ2: -2.457844757e+39 | AVK2: -2.457844757e+39 | AVL2: -2.457844757e+39 | AVM2: -2.457844757e+39 | AVN2: -2.457844757e+39 | AVO2: -2.457844757e+39 | AVP2: -2.457844757e+39 | AVQ2: -2.457844757e+39 | AVR2: -2.457844757e+39 | AVS2: -2.457844757e+39 | AVT2: -2.457844757e+39 | AVU2: -2.457844757e+39 | AVV2: -2.457844757e+39 | AVW2: -2.457844757e+39 | AVX2: -2.457844757e+39 | AVY2: -2.457844757e+39 | AVZ2: -2.457844757e+39 | AWA2: -2.457844757e+39 | AWB2: -2.457844757e+39 | AWC2: -2.457844757e+39 | AWD2: -2.457844757e+39 | AWE2: -2.457844757e+39 | AWF2: -2.457844757e+39 | AWG2: -2.457844757e+39 | AWH2: -2.457844757e+39 | AWI2: -2.457844757e+39 | AWJ2: -2.457844757e+39 | AWK2: -2.457844757e+39 | AWL2: -2.457844757e+39 | AWM2: -2.457844757e+39 | AWN2: -2.457844757e+39 | AWO2: -2.457844757e+39 | AWP2: -2.457844757e+39 | AWQ2: -2.457844757e+39 | AWR2: -2.457844757e+39 | AWS2: -2.457844757e+39 | AWT2: -2.457844757e+39 | AWU2: -2.457844757e+39 | AWV2: -2.457844757e+39 | AWW2: -2.457844757e+39 | AWX2: -2.457844757e+39 | AWY2: -2.457844757e+39 | AWZ2: -2.457844757e+39 | AXA2: -2.457844757e+39 | AXB2: -2.457844757e+39 | AXC2: -2.457844757e+39 | AXD2: -2.457844757e+39 | AXE2: -2.457844757e+39 | AXF2: -2.457844757e+39 | AXG2: -2.457844757e+39 | AXH2: -2.457844757e+39 | AXI2: -2.457844757e+39 | AXJ2: -2.457844757e+39 | AXK2: -2.457844757e+39 | AXL2: -2.457844757e+39 | AXM2: -2.457844757e+39 | AXN2: -2.457844757e+39 | AXO2: -2.457844757e+39 | AXP2: -2.457844757e+39 | AXQ2: -2.457844757e+39 | AXR2: -2.457844757e+39 | AXS2: -2.457844757e+39 | AXT2: -2.457844757e+39 | AXU2: -2.457844757e+39 | AXV2: -2.457844757e+39 | AXW2: -2.457844757e+39 | AXX2: -2.457844757e+39 | AXY2: -2.457844757e+39 | AXZ2: -2.457844757e+39 | AYA2: -2.457844757e+39 | AYB2: -2.457844757e+39 | AYC2: -2.457844757e+39 | AYD2: -2.457844757e+39 | AYE2: -2.457844757e+39 | AYF2: -2.457844757e+39 | AYG2: -2.457844757e+39 | AYH2: -2.457844757e+39 | AYI2: -2.457844757e+39 | AYJ2: -2.457844757e+39 | AYK2: -2.457844757e+39 | AYL2: -2.457844757e+39 | AYM2: -2.457844757e+39 | AYN2: -2.457844757e+39 | AYO2: -2.457844757e+39 | AYP2: -2.457844757e+39 | AYQ2: -2.457844757e+39 | AYR2: -2.457844757e+39 | AYS2: -2.457844757e+39 | AYT2: -2.457844757e+39 | AYU2: -2.457844757e+39 | AYV2: -6.911211454e+42 | AYW2: -6.911211454e+42 | AYX2: -6.911211454e+42 | AYY2: -6.911211454e+42 | AYZ2: -6.911211454e+42 | AZA2: -6.911211454e+42 | AZB2: -6.911211454e+42 | AZC2: -6.911211454e+42 | AZD2: -6.911211454e+42 | AZE2: -6.911211454e+42 | AZF2: -6.911211454e+42 | AZG2: -6.911211454e+42 | AZH2: -6.911211454e+42 | AZI2: -6.911211454e+42 | AZJ2: -6.911211454e+42 | AZK2: -6.911211454e+42 | AZL2: -6.911211454e+42 | AZM2: -6.911211454e+42 | AZN2: -6.911211454e+42 | AZO2: -6.911211454e+42 | AZP2: -6.911211454e+42 | AZQ2: -6.911211454e+42 | AZR2: -6.911211454e+42 | AZS2: -6.911211454e+42 | AZT2: -6.911211454e+42 | AZU2: -6.911211454e+42
A3: 2 | B3: -7.241820811e+35 | C3: -7.241820811e+35 | D3: -7.241820811e+35 | E3: -7.241820811e+35 | F3: -7.241820811e+35 | G3: -7.241820811e+35 | H3: -4.022855269e+38 | I3: -1.769335348e+39 | J3: -3.102965798e+39 | K3: -4.439686634e+39 | L3: -4.440139827e+39 | M3: -4.439064711e+39 | N3: -4.438055245e+39 | O3: -4.437046067e+39 | P3: -4.436036903e+39 | Q3: -4.43502778e+39 | R3: -4.434018702e+39 | S3: -4.433009675e+39 | T3: -4.432000702e+39 | U3: -4.430991789e+39 | V3: -4.42998294e+39 | W3: -4.428974159e+39 | X3: -4.427965452e+39 | Y3: -4.426956823e+39 | Z3: -4.425948277e+39 | AA3: -4.424939818e+39 | AB3: -4.42393145e+39 | AC3: -4.42292318e+39 | AD3: -4.42191501e+39 | AE3: -4.420906946e+39 | AF3: -4.419898992e+39 | AG3: -4.418891153e+39 | AH3: -4.417883433e+39 | AI3: -4.416875836e+39 | AJ3: -4.415868369e+39 | AK3: -3.078560031e+39 | AL3: -1.739720659e+39 | AM3: -4.009376422e+38 | AN3: -7.241820811e+35 | AO3: -7.241820811e+35 | AP3: -7.241820811e+35 | AQ3: -7.241820811e+35 | AR3: -7.241820811e+35 | AS3: -7.241820811e+35 | AT3: -7.241820811e+35 | AU3: -7.241820811e+35 | AV3: -7.241820811e+35 | AW3: -7.241820811e+35 | AX3: -7.241820811e+35 | AY3: -7.241820811e+35 | AZ3: -7.241820811e+35 | BA3: -4.24770156e+38 | BB3: -1.76237333e+39 | BC3: -3.100022039e+39 | BD3: -4.437688697e+39 | BE3: -4.439069603e+39 | BF3: -4.439126585e+39 | BG3: -4.439182222e+39 | BH3: -4.439237842e+39 | BI3: -4.439293445e+39 | BJ3: -4.439349032e+39 | BK3: -4.439404602e+39 | BL3: -4.439460156e+39 | BM3: -4.439515692e+39 | BN3: -4.439571211e+39 | BO3: -4.439626712e+39 | BP3: -4.439682195e+39 | BQ3: -4.43973766e+39 | BR3: -4.439793107e+39 | BS3: -4.439848535e+39 | BT3: -4.439903945e+39 | BU3: -4.439959336e+39 | BV3: -4.440014707e+39 | BW3: -4.440070059e+39 | BX3: -4.440125392e+39 | BY3: -4.440180705e+39 | BZ3: -4.440235997e+39 | CA3: -4.44029127e+39 | CB3: -4.440346521e+39 | CC3: -4.440401753e+39 | CD3: -4.440456963e+39 | CE3: -4.440512152e+39 | CF3: -4.44056732e+39 | CG3: -4.440622466e+39 | CH3: -4.440677591e+39 | CI3: -4.440732693e+39 | CJ3: -4.440787773e+39 | CK3: -4.440842831e+39 | CL3: -4.440897866e+39 | CM3: -4.440952879e+39 | CN3: -3.104720797e+39 | CO3: -1.767164874e+39 | CP3: -4.296094346e+38 | CQ3: -7.241820811e+35 | CR3: -7.241820811e+35 | CS3: -7.241820811e+35 | CT3: -7.241820811e+35 | CU3: -7.241820811e+35 | CV3: -7.241820811e+35 | CW3: -7.241820811e+35 | CX3: -7.241820811e+35 | CY3: -7.241820811e+35 | CZ3: -7.241820811e+35 | DA3: -7.241820811e+35 | DB3: -7.241820811e+35 | DC3: -7.241820811e+35 | DD3: -3.577001124e+38 | DE3: -1.746118987e+39 | DF3: -3.079974699e+39 | DG3: -4.416668934e+39 | DH3: -4.417123425e+39 | DI3: -4.416047264e+39 | DJ3: -4.415037545e+39 | DK3: -4.414028225e+39 | DL3: -4.413019029e+39 | DM3: -4.412009983e+39 | DN3: -4.411001091e+39 | DO3: -4.409992358e+39 | DP3: -4.408983788e+39 | DQ3: -4.407975386e+39 | DR3: -4.406967156e+39 | DS3: -4.405959102e+39 | DT3: -4.40495123e+39 | DU3: -4.403943542e+39 | DV3: -4.402936045e+39 | DW3: -4.401928742e+39 | DX3: -4.400921637e+39 | DY3: -4.399914736e+39 | DZ3: -4.398908042e+39 | EA3: -4.397901559e+39 | EB3: -4.396895292e+39 | EC3: -4.395889246e+39 | ED3: -4.394883424e+39 | EE3: -4.393877831e+39 | EF3: -4.392872472e+39 | EG3: -3.055566347e+39 | EH3: -1.716725761e+39 | EI3: -3.779369516e+38 | EJ3: -7.241820811e+35 | EK3: -7.241820811e+35 | EL3: -7.241820811e+35 | EM3: -7.241820811e+35 | EN3: -7.241820811e+35 | EO3: -7.241820811e+35 | EP3: -7.241820811e+35 | EQ3: -7.241820811e+35 | ER3: -7.241820811e+35 | ES3: -7.241820811e+35 | ET3: -7.241820811e+35 | EU3: -7.241820811e+35 | EV3: -1.787753975e+40 | EW3: -1.787458262e+40 | EX3: -1.787466171e+40 | EY3: -1.787476689e+40 | EZ3: -1.787486598e+40 | FA3: -1.787496491e+40 | FB3: -1.787506377e+40 | FC3: -1.787516256e+40 | FD3: -1.787526127e+40 | FE3: -1.787535991e+40 | FF3: -1.787545847e+40 | FG3: -1.787555695e+40 | FH3: -1.787565536e+40 | FI3: -1.787575369e+40 | FJ3: -1.787585194e+40 | FK3: -1.787595012e+40 | FL3: -1.787604822e+40 | FM3: -1.787614625e+40 | FN3: -1.78762442e+40 | FO3: -1.787634207e+40 | FP3: -1.787643987e+40 | FQ3: -1.787653759e+40 | FR3: -1.787663523e+40 | FS3: -1.787673279e+40 | FT3: -1.787683028e+40 | FU3: -1.787692769e+40 | FV3: -1.787702503e+40 | FW3: -1.787712229e+40 | FX3: -1.787721947e+40 | FY3: -1.787731657e+40 | FZ3: -1.519941241e+40 | GA3: -1.251620394e+40 | GB3: -9.83298505e+39 | GC3: -7.149766639e+39 | GD3: -4.466549337e+39 | GE3: -1.783335211e+39 | GF3: -5.13555406e+36 | GG3: -5.13555406e+36 | GH3: -5.13555406e+36 | GI3: -5.13555406e+36 | GJ3: -5.13555406e+36 | GK3: -5.13555406e+36 | GL3: -5.13555406e+36 | GM3: -5.13555406e+36 | GN3: -5.13555406e+36 | GO3: -5.13555406e+36 | GP3: -5.13555406e+36 | GQ3: -5.13555406e+36 | GR3: -5.13555406e+36 | GS3: -5.13555406e+36 | GT3: -5.13555406e+36 | GU3: -5.13555406e+36 | GV3: -5.13555406e+36 | GW3: -5.13555406e+36 | GX3: -5.13555406e+36 | GY3: -5.13555406e+36 | GZ3: -5.13555406e+36 | HA3: -5.13555406e+36 | HB3: -5.13555406e+36 | HC3: -5.13555406e+36 | HD3: -5.13555406e+36 | HE3: -5.13555406e+36 | HF3: -5.13555406e+36 | HG3: -1.560819497e+39 | HH3: -4.491536867e+39 | HI3: -7.121008083e+39 | HJ3: -9.801805645e+39 | HK3: -1.248376449e+40 | HL3: -1.51656088e+40 | HM3: -1.784744806e+40 | HN3: -1.78513917e+40 | HO3: -1.784869213e+40 | HP3: -1.78465102e+40 | HQ3: -1.784433371e+40 | HR3: -1.784215659e+40 | HS3: -1.783997951e+40 | HT3: -1.783780246e+40 | HU3: -1.783562546e+40 | HV3: -1.78334485e+40 | HW3: -1.783127159e+40 | HX3: -1.782909473e+40 | HY3: -1.782691792e+40 | HZ3: -1.782474117e+40 | IA3: -1.782256448e+40 | IB3: -1.782038785e+40 | IC3: -1.781821128e+40 | ID3: -1.781603477e+40 | IE3: -1.781385834e+40 | IF3: -1.781168197e+40 | IG3: -1.780950568e+40 | IH3: -1.780732946e+40 | II3: -1.780515332e+40 | IJ3: -1.780297726e+40 | IK3: -1.780080128e+40 | IL3: -1.779862539e+40 | IM3: -1.779644959e+40 | IN3: -1.779427388e+40 | IO3: -1.779209826e+40 | IP3: -1.778992274e+40 | IQ3: -1.778774731e+40 | IR3: -1.778557199e+40 | IS3: -1.778339677e+40 | IT3: -1.778122165e+40 | IU3: -1.777904664e+40 | IV3: -1.777687174e+40 | IW3: -1.777469696e+40 | IX3: -1.777252229e+40 | IY3: -1.777034773e+40 | IZ3: -1.77681733e+40 | JA3: -1.776599899e+40 | JB3: -1.776382481e+40 | JC3: -1.776165075e+40 | JD3: -1.775947682e+40 | JE3: -1.775730303e+40 | JF3: -1.775512937e+40 | JG3: -1.775295585e+40 | JH3: -1.775078246e+40 | JI3: -1.774860922e+40 | JJ3: -1.774643613e+40 | JK3: -1.774426318e+40 | JL3: -1.506419563e+40 | JM3: -1.237746426e+40 | JN3: -9.691243654e+39 | JO3: -7.005009268e+39 | JP3: -4.318731121e+39 | JQ3: -1.632321819e+39 | JR3: -5.13555406e+36 | JS3: -5.13555406e+36 | JT3: -5.13555406e+36 | JU3: -5.13555406e+36 | JV3: -5.13555406e+36 | JW3: -5.13555406e+36 | JX3: -5.13555406e+36 | JY3: -5.13555406e+36 | JZ3: -5.13555406e+36 | KA3: -5.13555406e+36 | KB3: -5.13555406e+36 | KC3: -5.13555406e+36 | KD3: -5.13555406e+36 | KE3: -5.13555406e+36 | KF3: -5.13555406e+36 | KG3: -5.13555406e+36 | KH3: -5.13555406e+36 | KI3: -5.13555406e+36 | KJ3: -5.13555406e+36 | KK3: -5.13555406e+36 | KL3: -5.13555406e+36 | KM3: -5.13555406e+36 | KN3: -5.13555406e+36 | KO3: -5.13555406e+36 | KP3: -2.506394763e+41 | KQ3: -2.484652623e+41 | KR3: -2.456851457e+41 | KS3: -2.425435907e+41 | KT3: -2.391803176e+41 | KU3: -2.356876614e+41 | KV3: -2.321392915e+41 | KW3: -2.285941498e+41 | KX3: -2.250916671e+41 | KY3: -2.216488911e+41 | KZ3: -2.182629362e+41 | LA3: -2.149176491e+41 | LB3: -2.115917237e+41 | LC3: -2.082657024e+41 | LD3: -2.049263503e+41 | LE3: -2.015680649e+41 | LF3: -1.98191883e+41 | LG3: -1.94803096e+41 | LH3: -1.914085317e+41 | LI3: -1.880143066e+41 | LJ3: -1.846244788e+41 | LK3: -1.812406606e+41 | LL3: -1.778623834e+41 | LM3: -1.744878816e+41 | LN3: -1.711149601e+41 | LO3: -1.677416944e+41 | LP3: -1.643668378e+41 | LQ3: -1.609899242e+41 | LR3: -1.576111366e+41 | LS3: -1.542310513e+41 | LT3: -1.508503614e+41 | LU3: -1.474696597e+41 | LV3: -1.440893154e+41 | LW3: -1.407094483e+41 | LX3: -1.373299746e+41 | LY3: -1.339506905e+41 | LZ3: -1.305713591e+41 | MA3: -1.271917784e+41 | MB3: -1.238118175e+41 | MC3: -1.204314227e+41 | MD3: -1.170506014e+41 | ME3: -1.136693948e+41 | MF3: -1.102878497e+41 | MG3: -1.069059971e+41 | MH3: -1.035238412e+41 | MI3: -1.001413569e+41 | MJ3: -9.675849496e+40 | MK3: -9.33751898e+40 | ML3: -8.999136731e+40 | MM3: -8.660695006e+40 | MN3: -8.32218591e+40 | MO3: -7.983601238e+40 | MP3: -7.644932055e+40 | MQ3: -7.306168124e+40 | MR3: -6.96729726e+40 | MS3: -6.628304645e+40 | MT3: -6.289172107e+40 | MU3: -5.949877287e+40 | MV3: -5.610392593e+40 | MW3: -5.270683777e+40 | MX3: -4.930707931e+40 | MY3: -4.5904106e+40 | MZ3: -4.249721551e+40 | NA3: -3.908548466e+40 | NB3: -3.566767299e+40 | NC3: -3.224207037e+40 | ND3: -2.880624584e+40 | NE3: -2.535661095e+40 | NF3: -2.188760771e+40 | NG3: -1.839005441e+40 | NH3: -1.484730321e+40 | NI3: -1.122410132e+40 | NJ3: -7.40690109e+39 | NK3: -2.813447511e+39 | NL3: -7.595706419e+39 | NM3: -6.999277384e+39 | NN3: -6.328826466e+39 | NO3: -5.593899661e+39 | NP3: -4.799361794e+39 | NQ3: -3.950481082e+39 | NR3: -3.051948187e+39 | NS3: -2.105938925e+39 | NT3: -1.10804239e+39 | NU3: -6.149221922e+38 | NV3: -6.149221922e+38 | NW3: -6.149221922e+38 | NX3: -6.149221922e+38 | NY3: -6.149221922e+38 | NZ3: -6.149221922e+38 | OA3: -6.149221922e+38 | OB3: -6.149221922e+38 | OC3: -6.149221922e+38 | OD3: -6.149221922e+38 | OE3: -6.149221922e+38 | OF3: -6.149221922e+38 | OG3: -6.149221922e+38 | OH3: -6.149221922e+38 | OI3: -6.149221922e+38 | OJ3: -6.149221922e+38 | OK3: -6.149221922e+38 | OL3: -6.149221922e+38 | OM3: -6.149221922e+38 | ON3: -6.149221922e+38 | OO3: -6.149221922e+38 | OP3: -6.149221922e+38 | OQ3: -6.149221922e+38 | OR3: -6.149221922e+38 | OS3: -6.149221922e+38 | OT3: -6.149221922e+38 | OU3: -6.149221922e+38 | OV3: -6.149221922e+38 | OW3: -6.149221922e+38 | OX3: -6.149221922e+38 | OY3: -6.149221922e+38 | OZ3: -6.149221922e+38 | PA3: -6.149221922e+38 | PB3: -6.149221922e+38 | PC3: -6.149221922e+38 | PD3: -6.149221922e+38 | PE3: -6.149221922e+38 | PF3: -6.149221922e+38 | PG3: -6.149221922e+38 | PH3: -6.149221922e+38 | PI3: -6.149221922e+38 | PJ3: -6.149221922e+38 | PK3: -6.149221922e+38 | PL3: -6.149221922e+38 | PM3: -6.149221922e+38 | PN3: -6.149221922e+38 | PO3: -6.149221922e+38 | PP3: -6.149221922e+38 | PQ3: -6.149221922e+38 | PR3: -6.149221922e+38 | PS3: -6.149221922e+38 | PT3: -6.149221922e+38 | PU3: -6.149221922e+38 | PV3: -6.149221922e+38 | PW3: -6.149221922e+38 | PX3: -6.149221922e+38 | PY3: -6.149221922e+38 | PZ3: -6.149221922e+38 | QA3: -6.149221922e+38 | QB3: -6.149221922e+38 | QC3: -6.149221922e+38 | QD3: -6.149221922e+38 | QE3: -6.149221922e+38 | QF3: -6.149221922e+38 | QG3: -6.149221922e+38 | QH3: -6.149221922e+38 | QI3: -6.149221922e+38 | QJ3: -6.149221922e+38 | QK3: -6.149221922e+38 | QL3: -6.149221922e+38 | QM3: -6.149221922e+38 | QN3: -6.149221922e+38 | QO3: -6.149221922e+38 | QP3: -6.149221922e+38 | QQ3: -6.149221922e+38 | QR3: -6.149221922e+38 | QS3: -6.149221922e+38 | QT3: -6.149221922e+38 | QU3: -6.149221922e+38 | QV3: -6.149221922e+38 | QW3: -6.149221922e+38 | QX3: -6.149221922e+38 | QY3: -6.149221922e+38 | QZ3: -6.149221922e+38 | RA3: -6.149221922e+38 | RB3: -6.149221922e+38 | RC3: -6.149221922e+38 | RD3: -6.149221922e+38 | RE3: -6.149221922e+38 | RF3: -6.149221922e+38 | RG3: -6.149221922e+38 | RH3: -6.149221922e+38 | RI3: -6.149221922e+38 | RJ3: -6.149221922e+38 | RK3: -6.149221922e+38 | RL3: -6.149221922e+38 | RM3: -6.149221922e+38 | RN3: -6.149221922e+38 | RO3: -6.149221922e+38 | RP3: -6.149221922e+38 | RQ3: -6.149221922e+38 | RR3: -6.149221922e+38 | RS3: -6.149221922e+38 | RT3: -6.149221922e+38 | RU3: -6.149221922e+38 | RV3: -6.149221922e+38 | RW3: -6.149221922e+38 | RX3: -6.149221922e+38 | RY3: -6.149221922e+38 | RZ3: -6.149221922e+38 | SA3: -6.149221922e+38 | SB3: -6.149221922e+38 | SC3: -6.149221922e+38 | SD3: -6.149221922e+38 | SE3: -6.149221922e+38 | SF3: -1.007294624e+42 | SG3: -1.007283707e+42 | SH3: -1.00249818e+42 | SI3: -9.938104069e+41 | SJ3: -9.827006074e+41 | SK3: -9.701459239e+41 | SL3: -9.567049247e+41 | SM3: -9.427469658e+41 | SN3: -9.285669143e+41 | SO3: -9.144007216e+41 | SP3: -9.004061532e+41 | SQ3: -8.866512458e+41 | SR3: -8.731241379e+41 | SS3: -8.597598219e+41 | ST3: -8.464727123e+41 | SU3: -8.331847373e+41 | SV3: -8.198428759e+41 | SW3: -8.064247911e+41 | SX3: -7.92934807e+41 | SY3: -7.793943062e+41 | SZ3: -7.658307909e+41 | TA3: -7.522688519e+41 | TB3: -7.387247626e+41 | TC3: -7.252049378e+41 | TD3: -7.117074212e+41 | TE3: -6.982250534e+41 | TF3: -6.847489691e+41 | TG3: -6.712714172e+41 | TH3: -6.577873954e+41 | TI3: -6.442950542e+41 | TJ3: -6.307951611e+41 | TK3: -6.172900609e+41 | TL3: -6.037825611e+41 | TM3: -5.902750532e+41 | TN3: -5.767690205e+41 | TO3: -5.632649356e+41 | TP3: -5.497624498e+41 | TQ3: -5.362607321e+41 | TR3: -5.227588229e+41 | TS3: -5.092559065e+41 | TT3: -4.957514577e+41 | TU3: -4.822452652e+41 | TV3: -4.68737365e+41 | TW3: -4.55227928e+41 | TX3: -4.41717147e+41 | TY3: -4.282051502e+41 | TZ3: -4.146919556e+41 | UA3: -4.011774632e+41 | UB3: -3.876614753e+41 | UC3: -3.741437294e+41 | UD3: -3.606239293e+41 | UE3: -3.471017668e+41 | UF3: -3.335769288e+41 | UG3: -3.200490912e+41 | UH3: -3.065179016e+41 | UI3: -2.929829565e+41 | UJ3: -2.794437758e+41 | UK3: -2.658997751e+41 | UL3: -2.523502378e+41 | UM3: -2.387942825e+41 | UN3: -2.252308219e+41 | UO3: -2.116585077e+41 | UP3: -1.980756527e+41 | UQ3: -1.844801179e+41 | UR3: -1.708691483e+41 | US3: -1.57239128e+41 | UT3: -1.435852068e+41 | UU3: -1.299007116e+41 | UV3: -1.161761798e+41 | UW3: -1.023976867e+41 | UX3: -8.854375129e+40 | UY3: -7.457908351e+40 | UZ3: -6.044022909e+40 | VA3: -4.599486038e+40 | VB3: -3.083199539e+40 | VC3: -1.288732397e+40 | VD3: -3.053025561e+40 | VE3: -2.816659247e+40 | VF3: -2.550158054e+40 | VG3: -2.257592461e+40 | VH3: -1.940884568e+40 | VI3: -1.602132804e+40 | VJ3: -1.243257784e+40 | VK3: -8.652286094e+39 | VL3: -4.66539874e+39 | VM3: -2.457846156e+39 | VN3: -2.457846156e+39 | VO3: -2.457846156e+39 | VP3: -2.457846156e+39 | VQ3: -2.457846156e+39 | VR3: -2.457846156e+39 | VS3: -2.457846156e+39 | VT3: -2.457846156e+39 | VU3: -2.457846156e+39 | VV3: -2.457846156e+39 | VW3: -2.457846156e+39 | VX3: -2.457846156e+39 | VY3: -2.457846156e+39 | VZ3: -2.457846156e+39 | WA3: -2.457846156e+39 | WB3: -2.457846156e+39 | WC3: -2.457846156e+39 | WD3: -2.457846156e+39 | WE3: -2.457846156e+39 | WF3: -2.457846156e+39 | WG3: -2.457846156e+39 | WH3: -2.457846156e+39 | WI3: -2.457846156e+39 | WJ3: -2.457846156e+39 | WK3: -2.457846156e+39 | WL3: -2.457846156e+39 | WM3: -2.457846156e+39 | WN3: -2.457846156e+39 | WO3: -2.457846156e+39 | WP3: -2.457846156e+39 | WQ3: -2.457846156e+39 | WR3: -2.457846156e+39 | WS3: -2.457846156e+39 | WT3: -2.457846156e+39 | WU3: -2.457846156e+39 | WV3: -2.457846156e+39 | WW3: -2.457846156e+39 | WX3: -2.457846156e+39 | WY3: -2.457846156e+39 | WZ3: -2.457846156e+39 | XA3: -2.457846156e+39 | XB3: -2.457846156e+39 | XC3: -2.457846156e+39 | XD3: -2.457846156e+39 | XE3: -2.457846156e+39 | XF3: -2.457846156e+39 | XG3: -2.457846156e+39 | XH3: -2.457846156e+39 | XI3: -2.457846156e+39 | XJ3: -2.457846156e+39 | XK3: -2.457846156e+39 | XL3: -2.457846156e+39 | XM3: -2.457846156e+39 | XN3: -2.457846156e+39 | XO3: -2.457846156e+39 | XP3: -2.457846156e+39 | XQ3: -2.457846156e+39 | XR3: -2.457846156e+39 | XS3: -2.457846156e+39 | XT3: -2.457846156e+39 | XU3: -2.457846156e+39 | XV3: -2.457846156e+39 | XW3: -2.457846156e+39 | XX3: -2.457846156e+39 | XY3: -2.457846156e+39 | XZ3: -2.457846156e+39 | YA3: -2.457846156e+39 | YB3: -2.457846156e+39 | YC3: -2.457846156e+39 | YD3: -2.457846156e+39 | YE3: -2.457846156e+39 | YF3: -2.457846156e+39 | YG3: -2.457846156e+39 | YH3: -2.457846156e+39 | YI3: -2.457846156e+39 | YJ3: -2.457846156e+39 | YK3: -2.457846156e+39 | YL3: -2.457846156e+39 | YM3: -2.457846156e+39 | YN3: -2.457846156e+39 | YO3: -2.457846156e+39 | YP3: -2.457846156e+39 | YQ3: -2.457846156e+39 | YR3: -2.457846156e+39 | YS3: -2.457846156e+39 | YT3: -2.457846156e+39 | YU3: -2.457846156e+39 | YV3: -2.457846156e+39 | YW3: -2.457846156e+39 | YX3: -2.457846156e+39 | YY3: -2.457846156e+39 | YZ3: -2.457846156e+39 | ZA3: -2.457846156e+39 | ZB3: -2.457846156e+39 | ZC3: -2.457846156e+39 | ZD3: -2.457846156e+39 | ZE3: -2.457846156e+39 | ZF3: -2.457846156e+39 | ZG3: -2.457846156e+39 | ZH3: -2.457846156e+39 | ZI3: -2.457846156e+39 | ZJ3: -2.457846156e+39 | ZK3: -2.457846156e+39 | ZL3: -2.457846156e+39 | ZM3: -2.457846156e+39 | ZN3: -2.457846156e+39 | ZO3: -2.457846156e+39 | ZP3: -2.457846156e+39 | ZQ3: -2.457846156e+39 | ZR3: -2.457846156e+39 | ZS3: -2.457846156e+39 | ZT3: -2.457846156e+39 | ZU3: -2.457846156e+39 | ZV3: -2.457846156e+39 | ZW3: -2.457846156e+39 | ZX3: -2.457846156e+39 | ZY3: -2.457846156e+39 | ZZ3: -2.457846156e+39 | AAA3: -2.457846156e+39 | AAB3: -2.457846156e+39 | AAC3: -2.457846156e+39 | AAD3: -2.457846156e+39 | AAE3: -2.457846156e+39 | AAF3: -2.457846156e+39 | AAG3: -2.457846156e+39 | AAH3: -2.457846156e+39 | AAI3: -2.457846156e+39 | AAJ3: -2.457846156e+39 | AAK3: -2.457846156e+39 | AAL3: -2.457846156e+39 | AAM3: -2.457846156e+39 | AAN3: -2.457846156e+39 | AAO3: -2.457846156e+39 | AAP3: -2.457846156e+39 | AAQ3: -2.457846156e+39 | AAR3: -2.457846156e+39 | AAS3: -2.457846156e+39 | AAT3: -2.457846156e+39 | AAU3: -2.457846156e+39 | AAV3: -2.457846156e+39 | AAW3: -2.457846156e+39 | AAX3: -6.589688145e+42 | AAY3: -6.589688145e+42 | AAZ3: -6.589208153e+42 | ABA3: -6.588580577e+42 | ABB3: -6.587953635e+42 | ABC3: -6.587327899e+42 | ABD3: -6.586705298e+42 | ABE3: -6.583867981e+42 | ABF3: -6.584418604e+42 | ABG3: -6.584411868e+42 | ABH3: -6.58410966e+42 | ABI3: -6.583650468e+42 | ABJ3: -6.583108449e+42 | ABK3: -6.582523591e+42 | ABL3: -6.586406333e+42 | ABM3: -6.599683637e+42 | ABN3: -6.613072299e+42 | ABO3: -6.626510564e+42 | ABP3: -6.639970614e+42 | ABQ3: -6.653441657e+42 | ABR3: -6.666920588e+42 | ABS3: -6.680407033e+42 | ABT3: -6.693900958e+42 | ABU3: -6.707375088e+42 | ABV3: -6.720557231e+42 | ABW3: -6.733741288e+42 | ABX3: -6.746925578e+42 | ABY3: -6.760109268e+42 | ABZ3: -6.773292218e+42 | ACA3: -6.786474714e+42 | ACB3: -6.799657203e+42 | ACC3: -6.812840091e+42 | ACD3: -6.826023633e+42 | ACE3: -6.839207908e+42 | ACF3: -6.85239285e+42 | ACG3: -6.865578314e+42 | ACH3: -6.878764134e+42 | ACI3: -6.891950172e+42 | ACJ3: -6.905136337e+42 | ACK3: -6.91832259e+42 | ACL3: -6.93150893e+42 | ACM3: -6.944695378e+42 | ACN3: -6.957881958e+42 | ACO3: -6.971068687e+42 | ACP3: -6.984255571e+42 | ACQ3: -6.997442604e+42 | ACR3: -7.01062977e+42 | ACS3: -7.023817053e+42 | ACT3: -7.037004433e+42 | ACU3: -7.050191899e+42 | ACV3: -7.06337944e+42 | ACW3: -7.076567051e+42 | ACX3: -7.08975473e+42 | ACY3: -7.102942475e+42 | ACZ3: -7.116130285e+42 | ADA3: -7.129318157e+42 | ADB3: -7.142506091e+42 | ADC3: -7.15569408e+42 | ADD3: -7.168882123e+42 | ADE3: -7.182070215e+42 | ADF3: -7.195258352e+42 | ADG3: -7.208446533e+42 | ADH3: -7.221634754e+42 | ADI3: -7.234823014e+42 | ADJ3: -7.24801131e+42 | ADK3: -7.261199643e+42 | ADL3: -7.274388009e+42 | ADM3: -7.287576408e+42 | ADN3: -7.300764837e+42 | ADO3: -7.313953295e+42 | ADP3: -7.327141783e+42 | ADQ3: -7.340330297e+42 | ADR3: -7.353518836e+42 | ADS3: -7.366707399e+42 | ADT3: -7.379895986e+42 | ADU3: -7.393084595e+42 | ADV3: -7.399995544e+42 | ADW3: -7.403616972e+42 | ADX3: -7.405514651e+42 | ADY3: -7.406509059e+42 | ADZ3: -7.407030143e+42 | AEA3: -7.407303198e+42 | AEB3: -7.407446282e+42 | AEC3: -7.40752126e+42 | AED3: -7.407560549e+42 | AEE3: -7.407581137e+42 | AEF3: -7.407591926e+42 | AEG3: -7.407597578e+42 | AEH3: -7.407600541e+42 | AEI3: -7.407602092e+42 | AEJ3: -7.407602905e+42 | AEK3: -7.407603331e+42 | AEL3: -7.407603554e+42 | AEM3: -7.40760367e+42 | AEN3: -7.407603731e+42 | AEO3: -7.407603764e+42 | AEP3: -7.40760378e+42 | AEQ3: -7.407603788e+42 | AER3: -7.407603792e+42 | AES3: -7.407603794e+42 | AET3: -7.407603795e+42 | AEU3: -7.407603795e+42 | AEV3: -7.407603795e+42 | AEW3: -7.407603794e+42 | AEX3: -7.407603794e+42 | AEY3: -7.407603794e+42 | AEZ3: -7.407603794e+42 | AFA3: -7.407603793e+42 | AFB3: -7.407603792e+42 | AFC3: -7.407603792e+42 | AFD3: -7.407603792e+42 | AFE3: -7.407603791e+42 | AFF3: -7.407603791e+42 | AFG3: -7.40760379e+42 | AFH3: -7.40760379e+42 | AFI3: -7.407603789e+42 | AFJ3: -7.407603789e+42 | AFK3: -7.407603788e+42 | AFL3: -7.407603788e+42 | AFM3: -7.407603788e+42 | AFN3: -7.407603787e+42 | AFO3: -7.407603786e+42 | AFP3: -7.407603786e+42 | AFQ3: -7.407603786e+42 | AFR3: -7.407603785e+42 | AFS3: -7.407603784e+42 | AFT3: -7.407603784e+42 | AFU3: -7.407603784e+42 | AFV3: -7.407603783e+42 | AFW3: -7.407603783e+42 | AFX3: -7.407603782e+42 | AFY3: -7.407603782e+42 | AFZ3: -7.407603781e+42 | AGA3: -7.40760378e+42 | AGB3: -7.40760378e+42 | AGC3: -7.40760378e+42 | AGD3: -7.407603779e+42 | AGE3: -7.407603779e+42 | AGF3: -7.407603778e+42 | AGG3: -7.407603778e+42 | AGH3: -7.407603778e+42 | AGI3: -7.407603777e+42 | AGJ3: -7.407603776e+42 | AGK3: -7.407603776e+42 | AGL3: -7.407603775e+42 | AGM3: -7.407603775e+42 | AGN3: -7.407603774e+42 | AGO3: -7.407603774e+42 | AGP3: -7.407603773e+42 | AGQ3: -7.407603773e+42 | AGR3: -7.407603772e+42 | AGS3: -7.407603772e+42 | AGT3: -7.407603772e+42 | AGU3: -7.407603771e+42 | AGV3: -7.40760377e+42 | AGW3: -7.40760377e+42 | AGX3: -7.40760377e+42 | AGY3: -7.407603769e+42 | AGZ3: -7.407603768e+42 | AHA3: -7.407603768e+42 | AHB3: -7.407603767e+42 | AHC3: -7.407603767e+42 | AHD3: -7.407603766e+42 | AHE3: -7.407603766e+42 | AHF3: -7.407603766e+42 | AHG3: -7.407603765e+42 | AHH3: -7.407603764e+42 | AHI3: -7.407603764e+42 | AHJ3: -7.407603763e+42 | AHK3: -7.407603763e+42 | AHL3: -7.407603762e+42 | AHM3: -7.407603762e+42 | AHN3: -7.407603761e+42 | AHO3: -7.407603761e+42 | AHP3: -7.40760376e+42 | AHQ3: -7.40760376e+42 | AHR3: -7.40760376e+42 | AHS3: -7.407603759e+42 | AHT3: -7.407603758e+42 | AHU3: -7.407603758e+42 | AHV3: -7.407603757e+42 | AHW3: -7.407603757e+42 | AHX3: -7.407603757e+42 | AHY3: -7.407603756e+42 | AHZ3: -7.407603755e+42 | AIA3: -7.407603755e+42 | AIB3: -7.407603755e+42 | AIC3: -7.407603754e+42 | AID3: -7.407603753e+42 | AIE3: -7.407603753e+42 | AIF3: -7.407603752e+42 | AIG3: -7.407603752e+42 | AIH3: -7.407603751e+42 | AII3: -7.407603751e+42 | AIJ3: -7.40760375e+42 | AIK3: -7.40760375e+42 | AIL3: -7.407603749e+42 | AIM3: -7.407603749e+42 | AIN3: -7.407603748e+42 | AIO3: -7.407603748e+42 | AIP3: -7.407603747e+42 | AIQ3: -7.407603747e+42 | AIR3: -7.407603746e+42 | AIS3: -7.407603745e+42 | AIT3: -7.407603745e+42 | AIU3: -7.407603745e+42 | AIV3: -7.407603744e+42 | AIW3: -7.407603743e+42 | AIX3: -7.407603744e+42 | AIY3: -7.407603743e+42 | AIZ3: -7.407603742e+42 | AJA3: -7.407603741e+42 | AJB3: -7.407603742e+42 | AJC3: -7.407603741e+42 | AJD3: -7.40760374e+42 | AJE3: -7.407603739e+42 | AJF3: -7.407603739e+42 | AJG3: -7.407603738e+42 | AJH3: -7.407603738e+42 | AJI3: -7.407603737e+42 | AJJ3: -7.407603737e+42 | AJK3: -7.407603737e+42 | AJL3: -7.407603736e+42 | AJM3: -7.407603735e+42 | AJN3: -7.407603735e+42 | AJO3: -7.407603735e+42 | AJP3: -7.407603734e+42 | AJQ3: -7.407603733e+42 | AJR3: -7.407603733e+42 | AJS3: -7.407603732e+42 | AJT3: -7.407603732e+42 | AJU3: -7.407603731e+42 | AJV3: -7.407603731e+42 | AJW3: -7.40760373e+42 | AJX3: -7.40760373e+42 | AJY3: -7.407603729e+42 | AJZ3: -7.407603728e+42 | AKA3: -7.407603728e+42 | AKB3: -7.407603728e+42 | AKC3: -7.407603727e+42 | AKD3: -7.407603726e+42 | AKE3: -7.407603726e+42 | AKF3: -7.407603725e+42 | AKG3: -7.407603724e+42 | AKH3: -7.407603724e+42 | AKI3: -7.407603724e+42 | AKJ3: -7.407603723e+42 | AKK3: -7.407603723e+42 | AKL3: -7.407603722e+42 | AKM3: -7.407603722e+42 | AKN3: -7.407603721e+42 | AKO3: -7.40760372e+42 | AKP3: -7.40760372e+42 | AKQ3: -7.40760372e+42 | AKR3: -7.407603719e+42 | AKS3: -7.407603719e+42 | AKT3: -7.407603718e+42 | AKU3: -7.407603717e+42 | AKV3: -7.407603716e+42 | AKW3: -7.407603717e+42 | AKX3: -7.407603716e+42 | AKY3: -7.407603715e+42 | AKZ3: -7.407603715e+42 | ALA3: -7.407603714e+42 | ALB3: -7.407603713e+42 | ALC3: -7.407603713e+42 | ALD3: -7.407603713e+42 | ALE3: -7.407603712e+42 | ALF3: -7.407603711e+42 | ALG3: -7.407603711e+42 | ALH3: -7.40760371e+42 | ALI3: -7.40760371e+42 | ALJ3: -7.407603709e+42 | ALK3: -7.407603708e+42 | ALL3: -7.407603708e+42 | ALM3: -7.407603707e+42 | ALN3: -7.401326025e+42 | ALO3: -7.391758801e+42 | ALP3: -7.380467817e+42 | ALQ3: -7.368273567e+42 | ALR3: -7.355606e+42 | ALS3: -7.342690421e+42 | ALT3: -7.329644889e+42 | ALU3: -7.316531272e+42 | ALV3: -7.303381989e+42 | ALW3: -7.290214028e+42 | ALX3: -7.277036292e+42 | ALY3: -7.263853447e+42 | ALZ3: -7.250667939e+42 | AMA3: -7.237481049e+42 | AMB3: -7.224293451e+42 | AMC3: -7.211105497e+42 | AMD3: -7.197917373e+42 | AME3: -7.184729177e+42 | AMF3: -7.171540963e+42 | AMG3: -7.158352758e+42 | AMH3: -7.145164577e+42 | AMI3: -7.131976431e+42 | AMJ3: -7.118788327e+42 | AMK3: -7.105600267e+42 | AML3: -7.092412256e+42 | AMM3: -7.079224298e+42 | AMN3: -7.066036395e+42 | AMO3: -7.052848552e+42 | AMP3: -7.039660773e+42 | AMQ3: -7.026473059e+42 | AMR3: -7.013285418e+42 | AMS3: -7.000097853e+42 | AMT3: -6.986910369e+42 | AMU3: -6.973722972e+42 | AMV3: -6.960535668e+42 | AMW3: -6.947348463e+42 | AMX3: -6.934161366e+42 | AMY3: -6.920974383e+42 | AMZ3: -6.907787524e+42 | ANA3: -6.8946008e+42 | ANB3: -6.881414219e+42 | ANC3: -6.868227796e+42 | AND3: -6.855041543e+42 | ANE3: -6.841855476e+42 | ANF3: -6.828669611e+42 | ANG3: -6.815483969e+42 | ANH3: -6.80229857e+42 | ANI3: -6.789113439e+42 | ANJ3: -6.775928605e+42 | ANK3: -6.7627441e+42 | ANL3: -6.749559961e+42 | ANM3: -6.736376232e+42 | ANN3: -6.723192961e+42 | ANO3: -6.710010208e+42 | ANP3: -6.696589274e+42 | ANQ3: -6.683079051e+42 | ANR3: -6.669569609e+42 | ANS3: -6.65606107e+42 | ANT3: -6.642553581e+42 | ANU3: -6.629047325e+42 | ANV3: -6.615542532e+42 | ANW3: -6.602039492e+42 | ANX3: -6.588538577e+42 | ANY3: -6.582447251e+42 | ANZ3: -6.583073931e+42 | AOA3: -6.583700414e+42 | AOB3: -6.58432664e+42 | AOC3: -6.584952521e+42 | AOD3: -6.585577914e+42 | AOE3: -6.586227206e+42 | AOF3: -6.586836295e+42 | AOG3: -6.587451879e+42 | AOH3: -6.588063364e+42 | AOI3: -6.588586688e+42 | AOJ3: -6.58915496e+42 | AOK3: -2.457846156e+39 | AOL3: -2.457846156e+39 | AOM3: -2.457846156e+39 | AON3: -2.457846156e+39 | AOO3: -2.457846156e+39 | AOP3: -2.457846156e+39 | AOQ3: -2.457846156e+39 | AOR3: -2.457846156e+39 | AOS3: -2.457846156e+39 | AOT3: -2.457846156e+39 | AOU3: -2.457846156e+39 | AOV3: -2.457846156e+39 | AOW3: -2.457846156e+39 | AOX3: -2.457846156e+39 | AOY3: -2.457846156e+39 | AOZ3: -2.457846156e+39 | APA3: -2.457846156e+39 | APB3: -2.457846156e+39 | APC3: -2.457846156e+39 | APD3: -2.457846156e+39 | APE3: -2.457846156e+39 | APF3: -2.457846156e+39 | APG3: -2.457846156e+39 | APH3: -2.457846156e+39 | API3: -2.457846156e+39 | APJ3: -2.457846156e+39 | APK3: -2.457846156e+39 | APL3: -2.457846156e+39 | APM3: -2.457846156e+39 | APN3: -2.457846156e+39 | APO3: -2.457846156e+39 | APP3: -2.457846156e+39 | APQ3: -2.457846156e+39 | APR3: -2.457846156e+39 | APS3: -2.457846156e+39 | APT3: -2.457846156e+39 | APU3: -2.457846156e+39 | APV3: -2.457846156e+39 | APW3: -2.457846156e+39 | APX3: -2.457846156e+39 | APY3: -2.457846156e+39 | APZ3: -2.457846156e+39 | AQA3: -2.457846156e+39 | AQB3: -2.457846156e+39 | AQC3: -2.457846156e+39 | AQD3: -2.457846156e+39 | AQE3: -2.457846156e+39 | AQF3: -2.457846156e+39 | AQG3: -2.457846156e+39 | AQH3: -2.457846156e+39 | AQI3: -2.457846156e+39 | AQJ3: -2.457846156e+39 | AQK3: -2.457846156e+39 | AQL3: -2.457846156e+39 | AQM3: -2.457846156e+39 | AQN3: -2.457846156e+39 | AQO3: -2.457846156e+39 | AQP3: -2.457846156e+39 | AQQ3: -2.457846156e+39 | AQR3: -2.457846156e+39 | AQS3: -2.457846156e+39 | AQT3: -2.457846156e+39 | AQU3: -2.457846156e+39 | AQV3: -2.457846156e+39 | AQW3: -2.457846156e+39 | AQX3: -2.457846156e+39 | AQY3: -2.457846156e+39 | AQZ3: -2.457846156e+39 | ARA3: -2.457846156e+39 | ARB3: -2.457846156e+39 | ARC3: -2.457846156e+39 | ARD3: -2.457846156e+39 | ARE3: -2.457846156e+39 | ARF3: -2.457846156e+39 | ARG3: -2.457846156e+39 | ARH3: -2.457846156e+39 | ARI3: -2.457846156e+39 | ARJ3: -2.457846156e+39 | ARK3: -2.457846156e+39 | ARL3: -2.457846156e+39 | ARM3: -2.457846156e+39 | ARN3: -2.457846156e+39 | ARO3: -2.457846156e+39 | ARP3: -2.457846156e+39 | ARQ3: -2.457846156e+39 | ARR3: -2.457846156e+39 | ARS3: -2.457846156e+39 | ART3: -2.457846156e+39 | ARU3: -2.457846156e+39 | ARV3: -2.457846156e+39 | ARW3: -2.457846156e+39 | ARX3: -2.457846156e+39 | ARY3: -2.457846156e+39 | ARZ3: -2.457846156e+39 | ASA3: -2.457846156e+39 | ASB3: -2.457846156e+39 | ASC3: -2.457846156e+39 | ASD3: -2.457846156e+39 | ASE3: -2.457846156e+39 | ASF3: -2.457846156e+39 | ASG3: -2.457846156e+39 | ASH3: -2.457846156e+39 | ASI3: -2.457846156e+39 | ASJ3: -2.457846156e+39 | ASK3: -2.457846156e+39 | ASL3: -2.457846156e+39 | ASM3: -2.457846156e+39 | ASN3: -2.457846156e+39 | ASO3: -2.457846156e+39 | ASP3: -2.457846156e+39 | ASQ3: -2.457846156e+39 | ASR3: -2.457846156e+39 | ASS3: -2.457846156e+39 | AST3: -2.457846156e+39 | ASU3: -2.457846156e+39 | ASV3: -2.457846156e+39 | ASW3: -2.457846156e+39 | ASX3: -2.457846156e+39 | ASY3: -2.457846156e+39 | ASZ3: -2.457846156e+39 | ATA3: -2.457846156e+39 | ATB3: -2.457846156e+39 | ATC3: -2.457846156e+39 | ATD3: -2.457846156e+39 | ATE3: -2.457846156e+39 | ATF3: -2.457846156e+39 | ATG3: -2.457846156e+39 | ATH3: -2.457846156e+39 | ATI3: -2.457846156e+39 | ATJ3: -2.457846156e+39 | ATK3: -2.457846156e+39 | ATL3: -2.457846156e+39 | ATM3: -2.457846156e+39 | ATN3: -2.457846156e+39 | ATO3: -2.457846156e+39 | ATP3: -2.457846156e+39 | ATQ3: -2.457846156e+39 | ATR3: -2.457846156e+39 | ATS3: -2.457846156e+39 | ATT3: -2.457846156e+39 | ATU3: -2.457846156e+39 | ATV3: -2.457846156e+39 | ATW3: -2.457846156e+39 | ATX3: -2.457846156e+39 | ATY3: -2.457846156e+39 | ATZ3: -2.457846156e+39 | AUA3: -2.457846156e+39 | AUB3: -2.457846156e+39 | AUC3: -2.457846156e+39 | AUD3: -2.457846156e+39 | AUE3: -2.457846156e+39 | AUF3: -2.457846156e+39 | AUG3: -2.457846156e+39 | AUH3: -2.457846156e+39 | AUI3: -2.457846156e+39 | AUJ3: -2.457846156e+39 | AUK3: -2.457846156e+39 | AUL3: -2.457846156e+39 | AUM3: -2.457846156e+39 | AUN3: -2.457846156e+39 | AUO3: -2.457846156e+39 | AUP3: -2.457846156e+39 | AUQ3: -2.457846156e+39 | AUR3: -2.457846156e+39 | AUS3: -2.457846156e+39 | AUT3: -2.457846156e+39 | AUU3: -2.457846156e+39 | AUV3: -2.457846156e+39 | AUW3: -2.457846156e+39 | AUX3: -2.457846156e+39 | AUY3: -2.457846156e+39 | AUZ3: -2.457846156e+39 | AVA3: -2.457846156e+39 | AVB3: -2.457846156e+39 | AVC3: -2.457846156e+39 | AVD3: -2.457846156e+39 | AVE3: -2.457846156e+39 | AVF3: -2.457846156e+39 | AVG3: -2.457846156e+39 | AVH3: -2.457846156e+39 | AVI3: -2.457846156e+39 | AVJ3: -2.457846156e+39 | AVK3: -2.457846156e+39 | AVL3: -2.457846156e+39 | AVM3: -2.457846156e+39 | AVN3: -2.457846156e+39 | AVO3: -2.457846156e+39 | AVP3: -2.457846156e+39 | AVQ3: -2.457846156e+39 | AVR3: -2.457846156e+39 | AVS3: -2.457846156e+39 | AVT3: -2.457846156e+39 | AVU3: -2.457846156e+39 | AVV3: -2.457846156e+39 | AVW3: -2.457846156e+39 | AVX3: -2.457846156e+39 | AVY3: -2.457846156e+39 | AVZ3: -2.457846156e+39 | AWA3: -2.457846156e+39 | AWB3: -2.457846156e+39 | AWC3: -2.457846156e+39 | AWD3: -2.457846156e+39 | AWE3: -2.457846156e+39 | AWF3: -2.457846156e+39 | AWG3: -2.457846156e+39 | AWH3: -2.457846156e+39 | AWI3: -2.457846156e+39 | AWJ3: -2.457846156e+39 | AWK3: -2.457846156e+39 | AWL3: -2.457846156e+39 | AWM3: -2.457846156e+39 | AWN3: -2.457846156e+39 | AWO3: -2.457846156e+39 | AWP3: -2.457846156e+39 | AWQ3: -2.457846156e+39 | AWR3: -2.457846156e+39 | AWS3: -2.457846156e+39 | AWT3: -2.457846156e+39 | AWU3: -2.457846156e+39 | AWV3: -2.457846156e+39 | AWW3: -2.457846156e+39 | AWX3: -2.457846156e+39 | AWY3: -2.457846156e+39 | AWZ3: -2.457846156e+39 | AXA3: -2.457846156e+39 | AXB3: -2.457846156e+39 | AXC3: -2.457846156e+39 | AXD3: -2.457846156e+39 | AXE3: -2.457846156e+39 | AXF3: -2.457846156e+39 | AXG3: -2.457846156e+39 | AXH3: -2.457846156e+39 | AXI3: -2.457846156e+39 | AXJ3: -2.457846156e+39 | AXK3: -2.457846156e+39 | AXL3: -2.457846156e+39 | AXM3: -2.457846156e+39 | AXN3: -2.457846156e+39 | AXO3: -2.457846156e+39 | AXP3: -2.457846156e+39 | AXQ3: -2.457846156e+39 | AXR3: -2.457846156e+39 | AXS3: -2.457846156e+39 | AXT3: -2.457846156e+39 | AXU3: -2.457846156e+39 | AXV3: -2.457846156e+39 | AXW3: -2.457846156e+39 | AXX3: -2.457846156e+39 | AXY3: -2.457846156e+39 | AXZ3: -2.457846156e+39 | AYA3: -2.457846156e+39 | AYB3: -2.457846156e+39 | AYC3: -2.457846156e+39 | AYD3: -2.457846156e+39 | AYE3: -2.457846156e+39 | AYF3: -2.457846156e+39 | AYG3: -2.457846156e+39 | AYH3: -2.457846156e+39 | AYI3: -2.457846156e+39 | AYJ3: -2.457846156e+39 | AYK3: -2.457846156e+39 | AYL3: -2.457846156e+39 | AYM3: -2.457846156e+39 | AYN3: -2.457846156e+39 | AYO3: -2.457846156e+39 | AYP3: -2.457846156e+39 | AYQ3: -2.457846156e+39 | AYR3: -2.457846156e+39 | AYS3: -2.457846156e+39 | AYT3: -2.457846156e+39 | AYU3: -2.457846156e+39 | AYV3: -6.589688145e+42 | AYW3: -6.589492803e+42 | AYX3: -6.588315763e+42 | AYY3: -6.587139341e+42 | AYZ3: -6.58596458e+42 | AZA3: -6.584797329e+42 | AZB3: -6.583707308e+42 | AZC3: -6.582588318e+42 | AZD3: -6.596178402e+42 | AZE3: -6.621021423e+42 | AZF3: -6.646037882e+42 | AZG3: -6.671161088e+42 | AZH3: -6.69635116e+42 | AZI3: -6.721572785e+42 | AZJ3: -6.746220116e+42 | AZK3: -6.770886351e+42 | AZL3: -6.795565527e+42 | AZM3: -6.820253775e+42 | AZN3: -6.844948575e+42 | AZO3: -6.869648285e+42 | AZP3: -6.894351827e+42 | AZQ3: -6.919058477e+42 | AZR3: -6.943767724e+42 | AZS3: -6.968479184e+42 | AZT3: -6.993192543e+42 | AZU3: -7.017907538e+42
